Workbook

Sheet Правила расчёта
A2: Рейтинг трассы (сложность) | B2: =Y+X/100
A3: Расстояние, км | B3: Y
A4: Набор высоты, м | B4: X
A5: Количество пунктов питания | B5: Z
A7: Средний интервал между пунктами питания (к-т автономности) | B7: =(Y+X/100)/Z
A9: Штраф за автономность
A10: Коэф-т автономности | B10: 13 и более | C10: 11 - 12 | D10: 9 - 10 | E10: 7 - 8 | F10: 5 - 6 | G10: меньше 5
A11: Штраф в очках | B11: 0 | C11: -10 | D11: -15 | E11: -20 | F11: -25 | G11: -30
C12: -2 | D12: -3 | E12: -4 | F12: -15 | G12: -30
A13: Коэф-т автономности | B13: 13 | C13: 12 | D13: 11 | E13: 10 | F13: 9 | G13: 8 | H13: 7 | I13: 6 | J13: 5 | K13: 4 | L13: 3 | M13: 2 | N13: 1 | O13: 0
A14: Штраф в очках | B14: 0 | C14: -10 | D14: -10 | E14: -15 | F14: -15 | G14: -20 | H14: -20 | I14: -25 | J14: -25 | K14: -30 | L14: -30 | M14: -30 | N14: -30 | O14: 0
B15: 0 | C15: -2 | D15: -2 | E15: -3 | F15: -3 | G15: -4 | H15: -4 | I15: -15 | J15: -15 | K15: -30 | L15: -30 | M15: -30 | N15: -30 | O15: 0
A16: Штраф за круги
A17: Кол-во кругов | B17: 0 | C17: 1 | D17: 2 | E17: 3 | F17: 4 | G17: 5 | H17: 6 | I17: 7 | J17: 8 | K17: 9 | L17: 10 | M17: 11
A18: Штраф в очках | B18: 0 | C18: 0 | D18: 0 | E18: -10 | F18: -15 | G18: -20 | H18: -25 | I18: -30 | J18: -35 | K18: -40 | L18: -45 | M18: -50
B19: 0 | C19: 0 | D19: 0 | E19: -2 | F19: -4 | G19: -10 | H19: -20 | I19: -30 | J19: -35 | K19: -40 | L19: -45 | M19: -50
A21: Итог ОЧКИ дистанции = Сложность МИНУС штраф за автономность МИНУС штраф за круги | I21: Округление до двух знаков
A23: Формула личного рез-та дистанции = 100 - ((место участника в итоговом протоколе-1)/количество стартовавших) × 100.
A25: Формула личного результата за соревнования = Квадратный корень ( Итог ОЧКИ за дистанцию) умножить на личный результат

Sheet Гонки
A1: № | B1: дата | C1: название гонки | D1: название дистанции | E1: Служебн 1 - где | F1: длина | G1: набор высоты | H1: сложность | I1: круги | J1: штраф круги | K1: ПП | L1: К-т автономности | M1: штраф пп | N1: Итог ОЧКИ | O1: кол-во стартов. Ж. | P1: кол-во стартов. М.
A2: 1 | B2: 2018-01-27 | C2: Зима минус 100 | D2: Трейл 50 | E2: =CONCATENATE(C2," ",D2,) -> Зима минус 100 Трейл 50 | F2: 50.8 | G2: 350 | H2: =F2+G2/100 -> 54.3 | I2: 0 | J2: =HLOOKUP(I2,'Правила расчёта'!$A$17:$M$19,3,FALSE) -> 0 | K2: 0 | L2: =MROUND(IF(K2=0,0,H2/K2),0) -> 0 | M2: =IF(L2=0,0,IF(L2>=13,0,HLOOKUP(Гонки!L2,'Правила расчёта'!$A$13:$O$15,3,FALSE))) -> 0 | N2: =H2+J2+M2 -> 54.3 | O2: 14 | P2: 34
A3: 2 | B3: 2018-01-27 | C3: Зима минус 100 | D3: Трейл 100 | E3: =CONCATENATE(C3," ",D3,) -> Зима минус 100 Трейл 100 | F3: 106.2 | G3: 760 | H3: =F3+G3/100 -> 113.8 | I3: 0 | J3: =HLOOKUP(I3,'Правила расчёта'!$A$17:$M$19,3,FALSE) -> 0 | K3: 1 | L3: =MROUND(IF(K3=0,0,H3/K3),1) -> 114 | M3: =IF(L3=0,0,IF(L3>=13,0,HLOOKUP(Гонки!L3,'Правила расчёта'!$A$13:$O$15,3,FALSE))) -> 0 | N3: =H3+J3+M3 -> 113.8 | O3: 5 | P3: 25
A4: 3 | B4: 2018-03-04 | C4: Жук-трейл # 4 Минское Море | D4: Трейл 25 | E4: =CONCATENATE(C4," ",D4,) -> Жук-трейл # 4 Минское Море Трейл 25 | F4: =8.45*3 -> 25.35 | G4: =112*3 -> 336 | H4: =F4+G4/100 -> 28.71 | I4: 3 | J4: =HLOOKUP(I4,'Правила расчёта'!$A$17:$M$19,3,FALSE) -> -2 | K4: 2 | L4: =MROUND(IF(K4=0,0,H4/K4),1) -> 14 | M4: =IF(L4=0,0,IF(L4>=13,0,HLOOKUP(Гонки!L4,'Правила расчёта'!$A$13:$O$15,3,FALSE))) -> 0 | N4: =H4+J4+M4 -> 26.71 | O4: 11 | P4: 81
A5: 4 | B5: 2018-03-04 | C5: Жук-трейл # 4 Минское Море | D5: Трейл 16 | E5: =CONCATENATE(C5," ",D5,) -> Жук-трейл # 4 Минское Море Трейл 16 | F5: =8.45*2 -> 16.9 | G5: =112*2 -> 224 | H5: =F5+G5/100 -> 19.14 | I5: 2 | J5: =HLOOKUP(I5,'Правила расчёта'!$A$17:$M$19,3,FALSE) -> 0 | K5: 1 | L5: 19 | M5: =IF(L5=0,0,IF(L5>=13,0,HLOOKUP(Гонки!L5,'Правила расчёта'!$A$13:$O$15,3,FALSE))) -> 0 | N5: =H5+J5+M5 -> 19.14 | O5: 27 | P5: 51
A6: 5 | B6: 2018-03-04 | C6: Жук-трейл # 4 Минское Море | D6: Трейл 8 | E6: =CONCATENATE(C6," ",D6,) -> Жук-трейл # 4 Минское Море Трейл 8 | F6: =8.45*1 -> 8.45 | G6: 112 | H6: =F6+G6/100 -> 9.57 | I6: 1 | J6: =HLOOKUP(I6,'Правила расчёта'!$A$17:$M$19,3,FALSE) -> 0 | K6: 0 | L6: 0 | M6: =IF(L6=0,0,IF(L6>=13,0,HLOOKUP(Гонки!L6,'Правила расчёта'!$A$13:$O$15,3,FALSE))) -> 0 | N6: =H6+J6+M6 -> 9.57 | O6: 24 | P6: 36
A7: 6 | B7: 2018-04-15 | C7: Жук-трейл # 5 Крево | D7: Трейл 70 | E7: Жук-трейл # 5 Крево Трейл 70 | F7: 70.4 | G7: 961 | H7: =F7+G7/100 -> 80.01 | I7: 1 | J7: =HLOOKUP(I7,'Правила расчёта'!$A$17:$M$19,3,FALSE) -> 0 | K7: 5 | L7: 16 | M7: =IF(L7=0,0,IF(L7>=13,0,HLOOKUP(Гонки!L7,'Правила расчёта'!$A$13:$O$15,3,FALSE))) -> 0 | N7: =H7+J7+M7 -> 80.01 | O7: 3 | P7: 15
A8: 7 | B8: 2018-04-15 | C8: Жук-трейл # 5 Крево | D8: Трейл 45 | E8: Жук-трейл # 5 Крево Трейл 45 | F8: 44.7 | G8: 632 | H8: 51.02 | I8: 1 | J8: =HLOOKUP(I8,'Правила расчёта'!$A$17:$M$19,3,FALSE) -> 0 | K8: 3 | L8: 17 | M8: =IF(L8=0,0,IF(L8>=13,0,HLOOKUP(Гонки!L8,'Правила расчёта'!$A$13:$O$15,3,FALSE))) -> 0 | N8: 51.02 | O8: 3 | P8: 20
A9: 8 | B9: 2018-04-15 | C9: Жук-трейл # 5 Крево | D9: Трейл 21 | E9: Жук-трейл # 5 Крево Трейл 21 | F9: 21.3 | G9: 308 | H9: 24.38 | I9: 1 | J9: =HLOOKUP(I9,'Правила расчёта'!$A$17:$M$19,3,FALSE) -> 0 | K9: 1 | L9: 24 | M9: =IF(L9=0,0,IF(L9>=13,0,HLOOKUP(Гонки!L9,'Правила расчёта'!$A$13:$O$15,3,FALSE))) -> 0 | N9: 24.38 | O9: 15 | P9: 45
A10: 9 | B10: 2018-04-15 | C10: Жук-трейл # 5 Крево | D10: Трейл 10 | E10: Жук-трейл # 5 Крево Трейл 10 | F10: 11.9 | G10: 198 | H10: 13.88 | I10: 1 | J10: =HLOOKUP(I10,'Правила расчёта'!$A$17:$M$19,3,FALSE) -> 0 | K10: 0 | L10: 0 | M10: =IF(L10=0,0,IF(L10>=13,0,HLOOKUP(Гонки!L10,'Правила расчёта'!$A$13:$O$15,3,FALSE))) -> 0 | N10: 13.88 | O10: 26 | P10: 56
A11: 10 | B11: 2018-05-26 | C11: "Налибоки 2018" | D11: Трейл 21 | E11: "Налибоки 2018" Трейл 21 | F11: 22.41 | G11: 262 | H11: 25.03 | I11: 1 | J11: =HLOOKUP(I11,'Правила расчёта'!$A$17:$M$19,3,FALSE) -> 0 | K11: 1 | L11: 25 | M11: =IF(L11=0,0,IF(L11>=13,0,HLOOKUP(Гонки!L11,'Правила расчёта'!$A$13:$O$15,3,FALSE))) -> 0 | N11: 25.03 | O11: 40 | P11: 55
A12: 11 | B12: 2018-05-26 | C12: "Налибоки 2018" | D12: Трейл 42 | E12: "Налибоки 2018" Трейл 42 | F12: 46.86 | G12: 494 | H12: 51.8 | I12: 1 | J12: =HLOOKUP(I12,'Правила расчёта'!$A$17:$M$19,3,FALSE) -> 0 | K12: 2 | L12: 26 | M12: =IF(L12=0,0,IF(L12>=13,0,HLOOKUP(Гонки!L12,'Правила расчёта'!$A$13:$O$15,3,FALSE))) -> 0 | N12: 51.8 | O12: 13 | P12: 41
A13: 12 | B13: 2018-05-26 | C13: "Налибоки 2018" | D13: Трейл 100 | E13: "Налибоки 2018" Трейл 100 | F13: 98.27 | G13: 1013 | H13: 108.4 | I13: 1 | J13: =HLOOKUP(I13,'Правила расчёта'!$A$17:$M$19,3,FALSE) -> 0 | K13: 5 | L13: 22 | M13: =IF(L13=0,0,IF(L13>=13,0,HLOOKUP(Гонки!L13,'Правила расчёта'!$A$13:$O$15,3,FALSE))) -> 0 | N13: 108.4 | O13: 3 | P13: 36
A14: 13 | B14: 2018-07-07 | C14: Жук-трейл #6 Купалье | D14: Трейл 5 | E14: Жук-трейл #6 Купалье Трейл 5 | F14: 5.32 | G14: 36 | H14: 5.68 | I14: 1 | J14: =HLOOKUP(I14,'Правила расчёта'!$A$17:$M$19,3,FALSE) -> 0 | K14: 0 | L14: 0 | M14: =IF(L14=0,0,IF(L14>=13,0,HLOOKUP(Гонки!L14,'Правила расчёта'!$A$13:$O$15,3,FALSE))) -> 0 | N14: 5.68 | O14: 27 | P14: 23
A15: 14 | B15: 2018-07-07 | C15: Жук-трейл #6 Купалье | D15: Трейл 10 | E15: Жук-трейл #6 Купалье Трейл 10 | F15: =5.32*2 -> 10.64 | G15: =G14*2 -> 72 | H15: 11.36 | I15: 2 | J15: =HLOOKUP(I15,'Правила расчёта'!$A$17:$M$19,3,FALSE) -> 0 | K15: 1 | L15: 11 | M15: =IF(L15=0,0,IF(L15>=13,0,HLOOKUP(Гонки!L15,'Правила расчёта'!$A$13:$O$15,3,FALSE))) -> -2 | N15: 9.36 | O15: 33 | P15: 57
A16: 15 | B16: 2018-07-07 | C16: Жук-трейл #6 Купалье | D16: Трейл 21 | E16: Жук-трейл #6 Купалье Трейл 21 | F16: =5.32*4 -> 21.28 | G16: =G14*4 -> 144 | H16: 22.72 | I16: 4 | J16: =HLOOKUP(I16,'Правила расчёта'!$A$17:$M$19,3,FALSE) -> -4 | K16: 3 | L16: 8 | M16: =IF(L16=0,0,IF(L16>=13,0,HLOOKUP(Гонки!L16,'Правила расчёта'!$A$13:$O$15,3,FALSE))) -> -4 | N16: 14.72 | O16: 14 | P16: 78
A29: Дата | B29: 2018-01-27 | C29: 2018-01-27 | D29: 2018-03-04 | E29: 2018-03-04 | F29: 2018-03-04 | G29: 2018-04-15 | H29: 2018-04-15 | I29: 2018-04-15 | J29: 2018-04-15 | K29: 2018-05-26 | M29: 2018-05-26 | N29: 2018-05-26 | O29: 2018-07-07 | P29: 2018-07-07 | Q29: 2018-07-07
A30: Название гонки | B30: Зима минус 100 | C30: Зима минус 100 | D30: Жук-трейл # 4 Минское Море | E30: Жук-трейл # 4 Минское Море | F30: Жук-трейл # 4 Минское Море | G30: Жук-трейл # 5 Крево | H30: Жук-трейл # 5 Крево | I30: Жук-трейл # 5 Крево | J30: Жук-трейл # 5 Крево | K30: "Налибоки 2018" | M30: "Налибоки 2018" | N30: "Налибоки 2018" | O30: Жук-трейл #6 Купалье | P30: Жук-трейл #6 Купалье | Q30: Жук-трейл #6 Купалье
A31: Название дистанции | B31: Трейл 50 | C31: Трейл 100 | D31: Трейл 25 | E31: Трейл 16 | F31: Трейл 8 | G31: Трейл 70 | H31: Трейл 45 | I31: Трейл 21 | J31: Трейл 10 | K31: Трейл 21 | M31: Трейл 42 | N31: Трейл 100 | O31: Трейл5 | P31: Трейл10 | Q31: Трейл21
A32: Длина, км | B32: 50.8 | C32: 106.2 | D32: =8.45*3 -> 25.35 | E32: =8.45*2 -> 16.9 | F32: =8.45*1 -> 8.45 | G32: 70.4 | H32: 44.7 | I32: 21.3 | J32: 11.9 | K32: 22.41 | M32: 46.86 | N32: 98.27
A33: Набор высоты, м | B33: 350 | C33: 760 | D33: =112*3 -> 336 | E33: =112*2 -> 224 | F33: 112 | G33: 961 | H33: 632 | I33: 308 | J33: 198 | K33: 262 | M33: 494 | N33: 1013
A34: Рейтинг трассы (сложность) | B34: =ROUND(B32+B33/100,2) -> 54.3 | C34: =ROUND(C32+C33/100,2) -> 113.8 | D34: 28.71 | E34: 19.14 | F34: 9.57 | G34: 80.01 | H34: 51.02 | I34: 24.38 | J34: 13.88 | K34: 25.03 | M34: 51.8 | N34: 108.4 | O34: =ROUND(O32+O33/100,2) -> 0 | P34: =ROUND(P32+P33/100,2) -> 0 | Q34: =ROUND(Q32+Q33/100,2) -> 0
A35: Количество кругов | B35: 0 | C35: 0 | D35: 3 | E35: 2 | F35: 1 | G35: 1 | H35: 1 | I35: 1 | J35: 1 | K35: 1 | M35: 1 | N35: 1
A36: Штрафы за круги | B36: =HLOOKUP(B35,'Правила расчёта'!$A$17:$M$18,2,FALSE) -> 0 | C36: =HLOOKUP(C35,'Правила расчёта'!$A$17:$M$18,2,FALSE) -> 0 | D36: =HLOOKUP(D35,'Правила расчёта'!$A$17:$M$18,2,FALSE) -> -10 | E36: =HLOOKUP(E35,'Правила расчёта'!$A$17:$M$18,2,FALSE) -> 0 | F36: =HLOOKUP(F35,'Правила расчёта'!$A$17:$M$18,2,FALSE) -> 0 | G36: =HLOOKUP(G35,'Правила расчёта'!$A$17:$M$18,2,FALSE) -> 0 | H36: =HLOOKUP(H35,'Правила расчёта'!$A$17:$M$18,2,FALSE) -> 0 | I36: =HLOOKUP(I35,'Правила расчёта'!$A$17:$M$18,2,FALSE) -> 0 | J36: =HLOOKUP(J35,'Правила расчёта'!$A$17:$M$18,2,FALSE) -> 0 | K36: =HLOOKUP(K35,'Правила расчёта'!$A$17:$M$18,2,FALSE) -> 0 | M36: =HLOOKUP(M35,'Правила расчёта'!$A$17:$M$18,2,FALSE) -> 0 | N36: =HLOOKUP(N35,'Правила расчёта'!$A$17:$M$18,2,FALSE) -> 0 | O36: =HLOOKUP(O35,'Правила расчёта'!$A$17:$M$18,2,FALSE) -> 0 | P36: =HLOOKUP(P35,'Правила расчёта'!$A$17:$M$18,2,FALSE) -> 0 | Q36: =HLOOKUP(Q35,'Правила расчёта'!$A$17:$M$18,2,FALSE) -> 0
A37: Кол-во пунктов питания | B37: 0 | C37: 1 | D37: 2 | E37: 1 | F37: 0 | G37: 5 | H37: 3 | I37: 1 | J37: 0 | K37: 1 | M37: 2 | N37: 5
A38: К-т автономности | B38: =IF(B37=0,0,(B32+B33/100)/B37) -> 0 | C38: =ROUND(IF(C37=0,0,(C32+C33/100)/C37),2) -> 113.8 | D38: =ROUND(IF(D37=0,0,(D32+D33/100)/D37),2) -> 14.36 | E38: 19.14 | F38: 0 | G38: 16 | H38: 17.01 | I38: 24.38 | J38: 0 | K38: 25.03 | M38: 25.9 | N38: 21.68 | O38: =ROUND(IF(O37=0,0,(O32+O33/100)/O37),2) -> 0 | P38: =ROUND(IF(P37=0,0,(P32+P33/100)/P37),2) -> 0 | Q38: =ROUND(IF(Q37=0,0,(Q32+Q33/100)/Q37),2) -> 0
A39: Штраф за неавтономность | B39: =IF(B38>13,0,HLOOKUP(B38,'Правила расчёта'!$A$13:$O$14,2,FALSE)) -> 0 | C39: =IF(C38>13,0,HLOOKUP(C38,'Правила расчёта'!$A$13:$O$14,2,FALSE)) -> 0 | D39: =IF(D38>13,0,HLOOKUP(D38,'Правила расчёта'!$A$13:$O$14,2,FALSE)) -> 0 | E39: =IF(E38>13,0,HLOOKUP(E38,'Правила расчёта'!$A$13:$O$14,2,FALSE)) -> 0 | F39: =IF(F38>13,0,HLOOKUP(F38,'Правила расчёта'!$A$13:$O$14,2,FALSE)) -> 0 | G39: =IF(G38>13,0,HLOOKUP(G38,'Правила расчёта'!$A$13:$O$14,2,FALSE)) -> 0 | H39: =IF(H38>13,0,HLOOKUP(H38,'Правила расчёта'!$A$13:$O$14,2,FALSE)) -> 0 | I39: =IF(I38>13,0,HLOOKUP(I38,'Правила расчёта'!$A$13:$O$14,2,FALSE)) -> 0 | J39: =IF(J38>13,0,HLOOKUP(J38,'Правила расчёта'!$A$13:$O$14,2,FALSE)) -> 0 | K39: =IF(K38>13,0,HLOOKUP(K38,'Правила расчёта'!$A$13:$O$14,2,FALSE)) -> 0 | M39: =IF(M38>13,0,HLOOKUP(M38,'Правила расчёта'!$A$13:$O$14,2,FALSE)) -> 0 | N39: =IF(N38>13,0,HLOOKUP(N38,'Правила расчёта'!$A$13:$O$14,2,FALSE)) -> 0 | O39: =IF(O38>13,0,HLOOKUP(O38,'Правила расчёта'!$A$13:$O$14,2,FALSE)) -> 0 | P39: =IF(P38>13,0,HLOOKUP(P38,'Правила расчёта'!$A$13:$O$14,2,FALSE)) -> 0 | Q39: =IF(Q38>13,0,HLOOKUP(Q38,'Правила расчёта'!$A$13:$O$14,2,FALSE)) -> 0
A40: ИТОГО ОЧКОВ | B40: =B34-B36-B39 -> 54.3 | C40: =C34-C36-C39 -> 113.8 | D40: 38.71 | E40: 19.14 | F40: 9.57 | G40: 80.01 | H40: 51.02 | I40: 24.38 | J40: 13.88 | K40: 25.03 | M40: 51.8 | N40: 108.4 | O40: =O34-O36-O39 -> 0 | P40: =P34-P36-P39 -> 0 | Q40: =Q34-Q36-Q39 -> 0
A41: Кол-во участниц ЖЕНЩИНЫ | B41: 14 | C41: 5 | D41: 11 | E41: 27 | F41: 24 | G41: 3 | H41: 3 | I41: 15 | J41: 26 | K41: 40 | M41: 13 | N41: 3
A42: Кол-во участниц МУЖЧИНЫ | B42: 34 | C42: 25 | D42: 81 | E42: 51 | F42: 36 | G42: 15 | H42: 20 | I42: 45 | J42: 56 | K42: 55 | M42: 41 | N42: 36

Sheet личные рез-ты по гонкам списком
A1: Гонка | B1: Дистанция | C1: где (служубн 1) | D1: Рейтинг трассы | E1: Пол | F1: Кол-во участников по полу | G1: Фамилия Имя | H1: Год рождения | I1: Surname Name | J1: Ф+И (служебн 2) | K1: Пол1 | L1: место | M1: личный рез-т дистанции | N1: личный рез-т соревнований
A2: =Гонки!$C$2 -> Зима минус 100 | B2: =Гонки!$D$2 -> Трейл 50 | C2: =CONCATENATE(A2," ",B2) -> Зима минус 100 Трейл 50 | D2: =VLOOKUP(C2,Список_гонок,10,FALSE) -> 54.3 | E2: Ж | F2: =IF(E2="Ж",VLOOKUP(C2,Гонки!$E$2:$P$16,11,FALSE),VLOOKUP(C2,Гонки!$E$2:$P$16,12,FALSE)) -> 14 | G2: Скирук Юлия | H2: 1988 | I2: =Translit(G2) -> Skiruk Yuliya | J2: =CONCATENATE(G2," / ",I2," / ",H2) -> Скирук Юлия / Skiruk Yuliya / 1988 | K2: =E2 -> Ж | L2: 1 | M2: =100-((L2-1)/F2)*100 -> 100 | N2: =ROUND(SQRT(D2)*M2,2) -> 736.89
A3: =Гонки!$C$2 -> Зима минус 100 | B3: =Гонки!$D$2 -> Трейл 50 | C3: =CONCATENATE(A3," ",B3) -> Зима минус 100 Трейл 50 | D3: 54.3 | E3: Ж | F3: =IF(E3="Ж",VLOOKUP(C3,Гонки!$E$2:$P$16,11,FALSE),VLOOKUP(C3,Гонки!$E$2:$P$16,12,FALSE)) -> 14 | G3: Белинская Галина | H3: 1980 | I3: =Translit(G3) -> Belinskaya Galina | J3: =CONCATENATE(G3," / ",I3," / ",H3) -> Белинская Галина / Belinskaya Galina / 1980 | K3: =E3 -> Ж | L3: 2 | M3: =100-((L3-1)/F3)*100 -> 92.85714286 | N3: =ROUND(SQRT(D3)*M3,2) -> 684.25
A4: =Гонки!$C$2 -> Зима минус 100 | B4: =Гонки!$D$2 -> Трейл 50 | C4: Зима минус 100 Трейл 50 | D4: 54.3 | E4: Ж | F4: =IF(E4="Ж",VLOOKUP(C4,Гонки!$E$2:$P$16,11,FALSE),VLOOKUP(C4,Гонки!$E$2:$P$16,12,FALSE)) -> 14 | G4: Обухова Екатерина | H4: 1978 | I4: Obuhova Ekaterina | J4: Обухова Екатерина / Obuhova Ekaterina / 1978 | K4: Ж | L4: 3 | M4: 85.71428571 | N4: 631.62
A5: =Гонки!$C$2 -> Зима минус 100 | B5: =Гонки!$D$2 -> Трейл 50 | C5: Зима минус 100 Трейл 50 | D5: 54.3 | E5: Ж | F5: =IF(E5="Ж",VLOOKUP(C5,Гонки!$E$2:$P$16,11,FALSE),VLOOKUP(C5,Гонки!$E$2:$P$16,12,FALSE)) -> 14 | G5: Куцун Надежда | H5: 1982 | I5: Kutsun Nadezhda | J5: Куцун Надежда / Kutsun Nadezhda / 1982 | K5: Ж | L5: 4 | M5: 78.57142857 | N5: 578.98
A6: =Гонки!$C$2 -> Зима минус 100 | B6: =Гонки!$D$2 -> Трейл 50 | C6: Зима минус 100 Трейл 50 | D6: 54.3 | E6: Ж | F6: =IF(E6="Ж",VLOOKUP(C6,Гонки!$E$2:$P$16,11,FALSE),VLOOKUP(C6,Гонки!$E$2:$P$16,12,FALSE)) -> 14 | G6: Михно Алла | H6: 1979 | I6: Mihno Alla | J6: Михно Алла / Mihno Alla / 1979 | K6: Ж | L6: 5 | M6: 71.42857143 | N6: 526.35
A7: =Гонки!$C$2 -> Зима минус 100 | B7: =Гонки!$D$2 -> Трейл 50 | C7: Зима минус 100 Трейл 50 | D7: 54.3 | E7: Ж | F7: =IF(E7="Ж",VLOOKUP(C7,Гонки!$E$2:$P$16,11,FALSE),VLOOKUP(C7,Гонки!$E$2:$P$16,12,FALSE)) -> 14 | G7: Радчук Алеся | H7: 1996 | I7: Radchuk Alesya | J7: Радчук Алеся / Radchuk Alesya / 1996 | K7: Ж | L7: 6 | M7: 64.28571429 | N7: 473.71
A8: =Гонки!$C$2 -> Зима минус 100 | B8: =Гонки!$D$2 -> Трейл 50 | C8: Зима минус 100 Трейл 50 | D8: 54.3 | E8: Ж | F8: =IF(E8="Ж",VLOOKUP(C8,Гонки!$E$2:$P$16,11,FALSE),VLOOKUP(C8,Гонки!$E$2:$P$16,12,FALSE)) -> 14 | G8: Янович Лена | H8: 1996 | I8: Yanovich Lena | J8: Янович Лена / Yanovich Lena / 1996 | K8: Ж | L8: 7 | M8: 57.14285714 | N8: 421.08
A9: =Гонки!$C$2 -> Зима минус 100 | B9: =Гонки!$D$2 -> Трейл 50 | C9: Зима минус 100 Трейл 50 | D9: 54.3 | E9: Ж | F9: =IF(E9="Ж",VLOOKUP(C9,Гонки!$E$2:$P$16,11,FALSE),VLOOKUP(C9,Гонки!$E$2:$P$16,12,FALSE)) -> 14 | G9: Кордунская Екатерина | H9: 1983 | I9: Kordunskaya Ekaterina | J9: Кордунская Екатерина / Kordunskaya Ekaterina / 1983 | K9: Ж | L9: 8 | M9: 50 | N9: 368.44
A10: =Гонки!$C$2 -> Зима минус 100 | B10: =Гонки!$D$2 -> Трейл 50 | C10: Зима минус 100 Трейл 50 | D10: 54.3 | E10: Ж | F10: =IF(E10="Ж",VLOOKUP(C10,Гонки!$E$2:$P$16,11,FALSE),VLOOKUP(C10,Гонки!$E$2:$P$16,12,FALSE)) -> 14 | G10: Чернель Татьяна | H10: 1982 | I10: Chernel Tatyana | J10: Чернель Татьяна / Chernel Tatyana / 1982 | K10: Ж | L10: 9 | M10: 42.85714286 | N10: 315.81
A11: =Гонки!$C$2 -> Зима минус 100 | B11: =Гонки!$D$2 -> Трейл 50 | C11: Зима минус 100 Трейл 50 | D11: 54.3 | E11: Ж | F11: =IF(E11="Ж",VLOOKUP(C11,Гонки!$E$2:$P$16,11,FALSE),VLOOKUP(C11,Гонки!$E$2:$P$16,12,FALSE)) -> 14 | G11: Арловская Кристина | H11: 1989 | I11: Arlovskaya Kristina | J11: Арловская Кристина / Arlovskaya Kristina / 1989 | K11: Ж | L11: 10 | M11: 35.71428571 | N11: 263.17
A12: =Гонки!$C$2 -> Зима минус 100 | B12: =Гонки!$D$2 -> Трейл 50 | C12: Зима минус 100 Трейл 50 | D12: 54.3 | E12: Ж | F12: =IF(E12="Ж",VLOOKUP(C12,Гонки!$E$2:$P$16,11,FALSE),VLOOKUP(C12,Гонки!$E$2:$P$16,12,FALSE)) -> 14 | G12: Литвинка Нина | H12: 1991 | I12: Litvinka Nina | J12: Литвинка Нина / Litvinka Nina / 1991 | K12: Ж | L12: 11 | M12: 28.57142857 | N12: 210.54
A13: =Гонки!$C$2 -> Зима минус 100 | B13: =Гонки!$D$2 -> Трейл 50 | C13: Зима минус 100 Трейл 50 | D13: 54.3 | E13: М | F13: =IF(E13="Ж",VLOOKUP(C13,Гонки!$E$2:$P$16,11,FALSE),VLOOKUP(C13,Гонки!$E$2:$P$16,12,FALSE)) -> 34 | G13: Евсюченя Александр | H13: 1991 | I13: Evsyuchenya Aleksandr | J13: Евсюченя Александр / Evsyuchenya Aleksandr / 1991 | K13: М | L13: 1 | M13: 100 | N13: 736.89
A14: =Гонки!$C$2 -> Зима минус 100 | B14: =Гонки!$D$2 -> Трейл 50 | C14: Зима минус 100 Трейл 50 | D14: 54.3 | E14: М | F14: =IF(E14="Ж",VLOOKUP(C14,Гонки!$E$2:$P$16,11,FALSE),VLOOKUP(C14,Гонки!$E$2:$P$16,12,FALSE)) -> 34 | G14: Некрасов Василий | H14: 1986 | I14: Nekrasov Vasilij | J14: Некрасов Василий / Nekrasov Vasilij / 1986 | K14: М | L14: 2 | M14: 97.05882353 | N14: 715.21
A15: =Гонки!$C$2 -> Зима минус 100 | B15: =Гонки!$D$2 -> Трейл 50 | C15: Зима минус 100 Трейл 50 | D15: 54.3 | E15: М | F15: =IF(E15="Ж",VLOOKUP(C15,Гонки!$E$2:$P$16,11,FALSE),VLOOKUP(C15,Гонки!$E$2:$P$16,12,FALSE)) -> 34 | G15: Березовский Андрей | H15: 1973 | I15: Berezovskij Andrej | J15: Березовский Андрей / Berezovskij Andrej / 1973 | K15: М | L15: 3 | M15: 94.11764706 | N15: 693.54
A16: =Гонки!$C$2 -> Зима минус 100 | B16: =Гонки!$D$2 -> Трейл 50 | C16: Зима минус 100 Трейл 50 | D16: 54.3 | E16: М | F16: =IF(E16="Ж",VLOOKUP(C16,Гонки!$E$2:$P$16,11,FALSE),VLOOKUP(C16,Гонки!$E$2:$P$16,12,FALSE)) -> 34 | G16: Сидоревич Александр | H16: 1985 | I16: Sidorevich Aleksandr | J16: Сидоревич Александр / Sidorevich Aleksandr / 1985 | K16: М | L16: 4 | M16: 91.17647059 | N16: 671.87
A17: =Гонки!$C$2 -> Зима минус 100 | B17: =Гонки!$D$2 -> Трейл 50 | C17: Зима минус 100 Трейл 50 | D17: 54.3 | E17: М | F17: =IF(E17="Ж",VLOOKUP(C17,Гонки!$E$2:$P$16,11,FALSE),VLOOKUP(C17,Гонки!$E$2:$P$16,12,FALSE)) -> 34 | G17: Скуратович Антон | H17: 1985 | I17: Skuratovich Anton | J17: Скуратович Антон / Skuratovich Anton / 1985 | K17: М | L17: 5 | M17: 88.23529412 | N17: 650.19
A18: =Гонки!$C$2 -> Зима минус 100 | B18: =Гонки!$D$2 -> Трейл 50 | C18: Зима минус 100 Трейл 50 | D18: 54.3 | E18: М | F18: =IF(E18="Ж",VLOOKUP(C18,Гонки!$E$2:$P$16,11,FALSE),VLOOKUP(C18,Гонки!$E$2:$P$16,12,FALSE)) -> 34 | G18: Бабицкий Кирилл | H18: 1998 | I18: Babitskij Kirill | J18: Бабицкий Кирилл / Babitskij Kirill / 1998 | K18: М | L18: 6 | M18: 85.29411765 | N18: 628.52
A19: =Гонки!$C$2 -> Зима минус 100 | B19: =Гонки!$D$2 -> Трейл 50 | C19: Зима минус 100 Трейл 50 | D19: 54.3 | E19: М | F19: =IF(E19="Ж",VLOOKUP(C19,Гонки!$E$2:$P$16,11,FALSE),VLOOKUP(C19,Гонки!$E$2:$P$16,12,FALSE)) -> 34 | G19: Лисовский Павел | H19: 1986 | I19: Lisovskij Pavel | J19: Лисовский Павел / Lisovskij Pavel / 1986 | K19: М | L19: 7 | M19: 82.35294118 | N19: 606.85
A20: =Гонки!$C$2 -> Зима минус 100 | B20: =Гонки!$D$2 -> Трейл 50 | C20: Зима минус 100 Трейл 50 | D20: 54.3 | E20: М | F20: =IF(E20="Ж",VLOOKUP(C20,Гонки!$E$2:$P$16,11,FALSE),VLOOKUP(C20,Гонки!$E$2:$P$16,12,FALSE)) -> 34 | G20: Коровец Богдан | H20: 1976 | I20: Korovets Bogdan | J20: Коровец Богдан / Korovets Bogdan / 1976 | K20: М | L20: 8 | M20: 79.41176471 | N20: 585.17
A21: =Гонки!$C$2 -> Зима минус 100 | B21: =Гонки!$D$2 -> Трейл 50 | C21: Зима минус 100 Трейл 50 | D21: 54.3 | E21: М | F21: =IF(E21="Ж",VLOOKUP(C21,Гонки!$E$2:$P$16,11,FALSE),VLOOKUP(C21,Гонки!$E$2:$P$16,12,FALSE)) -> 34 | G21: Крисенков Алексей | H21: 1983 | I21: Krisenkov Aleksej | J21: Крисенков Алексей / Krisenkov Aleksej / 1983 | K21: М | L21: 9 | M21: 76.47058824 | N21: 563.5
A22: =Гонки!$C$2 -> Зима минус 100 | B22: =Гонки!$D$2 -> Трейл 50 | C22: Зима минус 100 Трейл 50 | D22: 54.3 | E22: М | F22: =IF(E22="Ж",VLOOKUP(C22,Гонки!$E$2:$P$16,11,FALSE),VLOOKUP(C22,Гонки!$E$2:$P$16,12,FALSE)) -> 34 | G22: Рачковский Сергей | H22: 1988 | I22: Rachkovskij Sergej | J22: Рачковский Сергей / Rachkovskij Sergej / 1988 | K22: М | L22: 10 | M22: 73.52941176 | N22: 541.83
A23: =Гонки!$C$2 -> Зима минус 100 | B23: =Гонки!$D$2 -> Трейл 50 | C23: Зима минус 100 Трейл 50 | D23: 54.3 | E23: М | F23: =IF(E23="Ж",VLOOKUP(C23,Гонки!$E$2:$P$16,11,FALSE),VLOOKUP(C23,Гонки!$E$2:$P$16,12,FALSE)) -> 34 | G23: Лисовский Виктор | H23: 1964 | I23: Lisovskij Viktor | J23: Лисовский Виктор / Lisovskij Viktor / 1964 | K23: М | L23: 11 | M23: 70.58823529 | N23: 520.15
A24: =Гонки!$C$2 -> Зима минус 100 | B24: =Гонки!$D$2 -> Трейл 50 | C24: Зима минус 100 Трейл 50 | D24: 54.3 | E24: М | F24: =IF(E24="Ж",VLOOKUP(C24,Гонки!$E$2:$P$16,11,FALSE),VLOOKUP(C24,Гонки!$E$2:$P$16,12,FALSE)) -> 34 | G24: Тюев Даниил | H24: 1977 | I24: Tyuev Daniil | J24: Тюев Даниил / Tyuev Daniil / 1977 | K24: М | L24: 12 | M24: 67.64705882 | N24: 498.48
A25: =Гонки!$C$2 -> Зима минус 100 | B25: =Гонки!$D$2 -> Трейл 50 | C25: Зима минус 100 Трейл 50 | D25: 54.3 | E25: М | F25: =IF(E25="Ж",VLOOKUP(C25,Гонки!$E$2:$P$16,11,FALSE),VLOOKUP(C25,Гонки!$E$2:$P$16,12,FALSE)) -> 34 | G25: Лавник Игорь | H25: 1983 | I25: Lavnik Igor | J25: Лавник Игорь / Lavnik Igor / 1983 | K25: М | L25: 13 | M25: 64.70588235 | N25: 476.81
A26: =Гонки!$C$2 -> Зима минус 100 | B26: =Гонки!$D$2 -> Трейл 50 | C26: Зима минус 100 Трейл 50 | D26: 54.3 | E26: М | F26: =IF(E26="Ж",VLOOKUP(C26,Гонки!$E$2:$P$16,11,FALSE),VLOOKUP(C26,Гонки!$E$2:$P$16,12,FALSE)) -> 34 | G26: Грек Илья | H26: 1992 | I26: Grek Ilya | J26: Грек Илья / Grek Ilya / 1992 | K26: М | L26: 14 | M26: 61.76470588 | N26: 455.14
A27: =Гонки!$C$2 -> Зима минус 100 | B27: =Гонки!$D$2 -> Трейл 50 | C27: Зима минус 100 Трейл 50 | D27: 54.3 | E27: М | F27: =IF(E27="Ж",VLOOKUP(C27,Гонки!$E$2:$P$16,11,FALSE),VLOOKUP(C27,Гонки!$E$2:$P$16,12,FALSE)) -> 34 | G27: Поцелуев Сергей | H27: 1973 | I27: Potseluev Sergej | J27: Поцелуев Сергей / Potseluev Sergej / 1973 | K27: М | L27: 15 | M27: 58.82352941 | N27: 433.46
A28: =Гонки!$C$2 -> Зима минус 100 | B28: =Гонки!$D$2 -> Трейл 50 | C28: Зима минус 100 Трейл 50 | D28: 54.3 | E28: М | F28: =IF(E28="Ж",VLOOKUP(C28,Гонки!$E$2:$P$16,11,FALSE),VLOOKUP(C28,Гонки!$E$2:$P$16,12,FALSE)) -> 34 | G28: Малалетников Павел | H28: 1982 | I28: Malaletnikov Pavel | J28: Малалетников Павел / Malaletnikov Pavel / 1982 | K28: М | L28: 16 | M28: 55.88235294 | N28: 411.79
A29: =Гонки!$C$2 -> Зима минус 100 | B29: =Гонки!$D$2 -> Трейл 50 | C29: Зима минус 100 Трейл 50 | D29: 54.3 | E29: М | F29: =IF(E29="Ж",VLOOKUP(C29,Гонки!$E$2:$P$16,11,FALSE),VLOOKUP(C29,Гонки!$E$2:$P$16,12,FALSE)) -> 34 | G29: Храмов Антон | H29: 1991 | I29: Hramov Anton | J29: Храмов Антон / Hramov Anton / 1991 | K29: М | L29: 17 | M29: 52.94117647 | N29: 390.12
A30: =Гонки!$C$2 -> Зима минус 100 | B30: =Гонки!$D$2 -> Трейл 50 | C30: Зима минус 100 Трейл 50 | D30: 54.3 | E30: М | F30: =IF(E30="Ж",VLOOKUP(C30,Гонки!$E$2:$P$16,11,FALSE),VLOOKUP(C30,Гонки!$E$2:$P$16,12,FALSE)) -> 34 | G30: Мурашов Владимир | H30: 1983 | I30: Murashov Vladimir | J30: Мурашов Владимир / Murashov Vladimir / 1983 | K30: М | L30: 18 | M30: 50 | N30: 368.44
A31: =Гонки!$C$2 -> Зима минус 100 | B31: =Гонки!$D$2 -> Трейл 50 | C31: Зима минус 100 Трейл 50 | D31: 54.3 | E31: М | F31: =IF(E31="Ж",VLOOKUP(C31,Гонки!$E$2:$P$16,11,FALSE),VLOOKUP(C31,Гонки!$E$2:$P$16,12,FALSE)) -> 34 | G31: Быков Владимир | H31: 1977 | I31: Bykov Vladimir | J31: Быков Владимир / Bykov Vladimir / 1977 | K31: М | L31: 19 | M31: 47.05882353 | N31: 346.77
A32: =Гонки!$C$2 -> Зима минус 100 | B32: =Гонки!$D$2 -> Трейл 50 | C32: Зима минус 100 Трейл 50 | D32: 54.3 | E32: М | F32: =IF(E32="Ж",VLOOKUP(C32,Гонки!$E$2:$P$16,11,FALSE),VLOOKUP(C32,Гонки!$E$2:$P$16,12,FALSE)) -> 34 | G32: Михно Борис | H32: 1982 | I32: Mihno Boris | J32: Михно Борис / Mihno Boris / 1982 | K32: М | L32: 20 | M32: 44.11764706 | N32: 325.1
A33: =Гонки!$C$2 -> Зима минус 100 | B33: =Гонки!$D$2 -> Трейл 50 | C33: Зима минус 100 Трейл 50 | D33: 54.3 | E33: М | F33: =IF(E33="Ж",VLOOKUP(C33,Гонки!$E$2:$P$16,11,FALSE),VLOOKUP(C33,Гонки!$E$2:$P$16,12,FALSE)) -> 34 | G33: Иванчик Александр | H33: 1990 | I33: Ivanchik Aleksandr | J33: Иванчик Александр / Ivanchik Aleksandr / 1990 | K33: М | L33: 21 | M33: 41.17647059 | N33: 303.42
A34: =Гонки!$C$2 -> Зима минус 100 | B34: =Гонки!$D$2 -> Трейл 50 | C34: Зима минус 100 Трейл 50 | D34: 54.3 | E34: М | F34: =IF(E34="Ж",VLOOKUP(C34,Гонки!$E$2:$P$16,11,FALSE),VLOOKUP(C34,Гонки!$E$2:$P$16,12,FALSE)) -> 34 | G34: Леверовский Александр | H34: 1988 | I34: Leverovskij Aleksandr | J34: Леверовский Александр / Leverovskij Aleksandr / 1988 | K34: М | L34: 22 | M34: 38.23529412 | N34: 281.75
A35: =Гонки!$C$2 -> Зима минус 100 | B35: =Гонки!$D$2 -> Трейл 50 | C35: Зима минус 100 Трейл 50 | D35: 54.3 | E35: М | F35: =IF(E35="Ж",VLOOKUP(C35,Гонки!$E$2:$P$16,11,FALSE),VLOOKUP(C35,Гонки!$E$2:$P$16,12,FALSE)) -> 34 | G35: Чичин Юрий | H35: 1979 | I35: Chichin Yurij | J35: Чичин Юрий / Chichin Yurij / 1979 | K35: М | L35: 23 | M35: 35.29411765 | N35: 260.08
A36: =Гонки!$C$2 -> Зима минус 100 | B36: =Гонки!$D$2 -> Трейл 50 | C36: Зима минус 100 Трейл 50 | D36: 54.3 | E36: М | F36: =IF(E36="Ж",VLOOKUP(C36,Гонки!$E$2:$P$16,11,FALSE),VLOOKUP(C36,Гонки!$E$2:$P$16,12,FALSE)) -> 34 | G36: Бачища Николай | H36: 1988 | I36: Bachischa Nikolaj | J36: Бачища Николай / Bachischa Nikolaj / 1988 | K36: М | L36: 24 | M36: 32.35294118 | N36: 238.4
A37: =Гонки!$C$2 -> Зима минус 100 | B37: =Гонки!$D$2 -> Трейл 50 | C37: Зима минус 100 Трейл 50 | D37: 54.3 | E37: М | F37: =IF(E37="Ж",VLOOKUP(C37,Гонки!$E$2:$P$16,11,FALSE),VLOOKUP(C37,Гонки!$E$2:$P$16,12,FALSE)) -> 34 | G37: Кузьмич Дмитрий | H37: 1975 | I37: Kuzmich Dmitrij | J37: Кузьмич Дмитрий / Kuzmich Dmitrij / 1975 | K37: М | L37: 25 | M37: 29.41176471 | N37: 216.73
A38: =Гонки!$C$2 -> Зима минус 100 | B38: =Гонки!$D$2 -> Трейл 50 | C38: Зима минус 100 Трейл 50 | D38: 54.3 | E38: М | F38: =IF(E38="Ж",VLOOKUP(C38,Гонки!$E$2:$P$16,11,FALSE),VLOOKUP(C38,Гонки!$E$2:$P$16,12,FALSE)) -> 34 | G38: Лялеко Сергей | H38: 1986 | I38: Lyaleko Sergej | J38: Лялеко Сергей / Lyaleko Sergej / 1986 | K38: М | L38: 26 | M38: 26.47058824 | N38: 195.06
A39: =Гонки!$C$2 -> Зима минус 100 | B39: =Гонки!$D$2 -> Трейл 50 | C39: Зима минус 100 Трейл 50 | D39: 54.3 | E39: М | F39: =IF(E39="Ж",VLOOKUP(C39,Гонки!$E$2:$P$16,11,FALSE),VLOOKUP(C39,Гонки!$E$2:$P$16,12,FALSE)) -> 34 | G39: Лучкин Олег | H39: 1983 | I39: Luchkin Oleg | J39: Лучкин Олег / Luchkin Oleg / 1983 | K39: М | L39: 27 | M39: 23.52941176 | N39: 173.38
A40: =Гонки!$C$2 -> Зима минус 100 | B40: =Гонки!$D$2 -> Трейл 50 | C40: Зима минус 100 Трейл 50 | D40: 54.3 | E40: М | F40: =IF(E40="Ж",VLOOKUP(C40,Гонки!$E$2:$P$16,11,FALSE),VLOOKUP(C40,Гонки!$E$2:$P$16,12,FALSE)) -> 34 | G40: Занько Юрий | H40: 1982 | I40: Zanko Yurij | J40: Занько Юрий / Zanko Yurij / 1982 | K40: М | L40: 28 | M40: 20.58823529 | N40: 151.71
A41: =Гонки!$C$2 -> Зима минус 100 | B41: =Гонки!$D$2 -> Трейл 50 | C41: Зима минус 100 Трейл 50 | D41: 54.3 | E41: М | F41: =IF(E41="Ж",VLOOKUP(C41,Гонки!$E$2:$P$16,11,FALSE),VLOOKUP(C41,Гонки!$E$2:$P$16,12,FALSE)) -> 34 | G41: Печёнов Георгий | H41: 1975 | I41: Pechjonov Georgij | J41: Печёнов Георгий / Pechjonov Georgij / 1975 | K41: М | L41: 29 | M41: 17.64705882 | N41: 130.04
A42: =Гонки!$C$2 -> Зима минус 100 | B42: =Гонки!$D$2 -> Трейл 50 | C42: Зима минус 100 Трейл 50 | D42: 54.3 | E42: М | F42: =IF(E42="Ж",VLOOKUP(C42,Гонки!$E$2:$P$16,11,FALSE),VLOOKUP(C42,Гонки!$E$2:$P$16,12,FALSE)) -> 34 | G42: Ананич Александр | H42: 1979 | I42: Ananich Aleksandr | J42: Ананич Александр / Ananich Aleksandr / 1979 | K42: М | L42: 30 | M42: 14.70588235 | N42: 108.37
A43: =Гонки!$C$2 -> Зима минус 100 | B43: =Гонки!$D$2 -> Трейл 50 | C43: Зима минус 100 Трейл 50 | D43: 54.3 | E43: М | F43: =IF(E43="Ж",VLOOKUP(C43,Гонки!$E$2:$P$16,11,FALSE),VLOOKUP(C43,Гонки!$E$2:$P$16,12,FALSE)) -> 34 | G43: Катонов Василий | H43: 1985 | I43: Katonov Vasilij | J43: Катонов Василий / Katonov Vasilij / 1985 | K43: М | L43: 31 | M43: 11.76470588 | N43: 86.69
A44: =Гонки!$C$2 -> Зима минус 100 | B44: =Гонки!$D$2 -> Трейл 50 | C44: Зима минус 100 Трейл 50 | D44: 54.3 | E44: М | F44: =IF(E44="Ж",VLOOKUP(C44,Гонки!$E$2:$P$16,11,FALSE),VLOOKUP(C44,Гонки!$E$2:$P$16,12,FALSE)) -> 34 | G44: Медвецкий Денис | H44: 1986 | I44: Medvetskij Denis | J44: Медвецкий Денис / Medvetskij Denis / 1986 | K44: М | L44: 32 | M44: 8.823529412 | N44: 65.02
A45: =Гонки!$C$2 -> Зима минус 100 | B45: =Гонки!$D$2 -> Трейл 50 | C45: Зима минус 100 Трейл 50 | D45: 54.3 | E45: М | F45: =IF(E45="Ж",VLOOKUP(C45,Гонки!$E$2:$P$16,11,FALSE),VLOOKUP(C45,Гонки!$E$2:$P$16,12,FALSE)) -> 34 | G45: Малаховский Александр | H45: 1985 | I45: Malahovskij Aleksandr | J45: Малаховский Александр / Malahovskij Aleksandr / 1985 | K45: М | L45: 33 | M45: 5.882352941 | N45: 43.35
A46: =Гонки!$C$2 -> Зима минус 100 | B46: =Гонки!$D$3 -> Трейл 100 | C46: Зима минус 100 Трейл 100 | D46: 113.8 | E46: Ж | F46: =IF(E46="Ж",VLOOKUP(C46,Гонки!$E$2:$P$16,11,FALSE),VLOOKUP(C46,Гонки!$E$2:$P$16,12,FALSE)) -> 5 | G46: Суховерхая Татьяна | H46: 1986 | I46: Suhoverhaya Tatyana | J46: Суховерхая Татьяна / Suhoverhaya Tatyana / 1986 | K46: Ж | L46: 1 | M46: 100 | N46: 1066.77
A47: =Гонки!$C$2 -> Зима минус 100 | B47: =Гонки!$D$3 -> Трейл 100 | C47: Зима минус 100 Трейл 100 | D47: 113.8 | E47: М | F47: =IF(E47="Ж",VLOOKUP(C47,Гонки!$E$2:$P$16,11,FALSE),VLOOKUP(C47,Гонки!$E$2:$P$16,12,FALSE)) -> 25 | G47: Пивень Андрей | H47: 1992 | I47: Piven Andrej | J47: Пивень Андрей / Piven Andrej / 1992 | K47: М | L47: 1 | M47: 100 | N47: 1066.77
A48: =Гонки!$C$2 -> Зима минус 100 | B48: =Гонки!$D$3 -> Трейл 100 | C48: Зима минус 100 Трейл 100 | D48: 113.8 | E48: М | F48: =IF(E48="Ж",VLOOKUP(C48,Гонки!$E$2:$P$16,11,FALSE),VLOOKUP(C48,Гонки!$E$2:$P$16,12,FALSE)) -> 25 | G48: Исаев Антон | H48: 1979 | I48: Isaev Anton | J48: Исаев Антон / Isaev Anton / 1979 | K48: М | L48: 2 | M48: 96 | N48: 1024.1
A49: =Гонки!$C$2 -> Зима минус 100 | B49: =Гонки!$D$3 -> Трейл 100 | C49: Зима минус 100 Трейл 100 | D49: 113.8 | E49: М | F49: =IF(E49="Ж",VLOOKUP(C49,Гонки!$E$2:$P$16,11,FALSE),VLOOKUP(C49,Гонки!$E$2:$P$16,12,FALSE)) -> 25 | G49: Синица Кирилл | H49: 1981 | I49: Sinitsa Kirill | J49: Синица Кирилл / Sinitsa Kirill / 1981 | K49: М | L49: 3 | M49: 92 | N49: 981.43
A50: =Гонки!$C$2 -> Зима минус 100 | B50: =Гонки!$D$3 -> Трейл 100 | C50: Зима минус 100 Трейл 100 | D50: 113.8 | E50: М | F50: =IF(E50="Ж",VLOOKUP(C50,Гонки!$E$2:$P$16,11,FALSE),VLOOKUP(C50,Гонки!$E$2:$P$16,12,FALSE)) -> 25 | G50: Лысенко Павел | H50: 1966 | I50: Lysenko Pavel | J50: Лысенко Павел / Lysenko Pavel / 1966 | K50: М | L50: 4 | M50: 88 | N50: 938.76
A51: =Гонки!$C$2 -> Зима минус 100 | B51: =Гонки!$D$3 -> Трейл 100 | C51: Зима минус 100 Трейл 100 | D51: 113.8 | E51: М | F51: =IF(E51="Ж",VLOOKUP(C51,Гонки!$E$2:$P$16,11,FALSE),VLOOKUP(C51,Гонки!$E$2:$P$16,12,FALSE)) -> 25 | G51: Борисевич Леонид | H51: 1969 | I51: Borisevich Leonid | J51: Борисевич Леонид / Borisevich Leonid / 1969 | K51: М | L51: 5 | M51: 84 | N51: 896.09
A52: =Гонки!$C$2 -> Зима минус 100 | B52: =Гонки!$D$3 -> Трейл 100 | C52: Зима минус 100 Трейл 100 | D52: 113.8 | E52: М | F52: =IF(E52="Ж",VLOOKUP(C52,Гонки!$E$2:$P$16,11,FALSE),VLOOKUP(C52,Гонки!$E$2:$P$16,12,FALSE)) -> 25 | G52: Подрез Ярослав | H52: 1996 | I52: Podrez Yaroslav | J52: Подрез Ярослав / Podrez Yaroslav / 1996 | K52: М | L52: 6 | M52: 80 | N52: 853.42
A53: =Гонки!$C$2 -> Зима минус 100 | B53: =Гонки!$D$3 -> Трейл 100 | C53: Зима минус 100 Трейл 100 | D53: 113.8 | E53: М | F53: =IF(E53="Ж",VLOOKUP(C53,Гонки!$E$2:$P$16,11,FALSE),VLOOKUP(C53,Гонки!$E$2:$P$16,12,FALSE)) -> 25 | G53: Селютин Владимир | H53: 1990 | I53: Selyutin Vladimir | J53: Селютин Владимир / Selyutin Vladimir / 1990 | K53: М | L53: 7 | M53: 76 | N53: 810.75
A54: =Гонки!$C$2 -> Зима минус 100 | B54: =Гонки!$D$3 -> Трейл 100 | C54: Зима минус 100 Трейл 100 | D54: 113.8 | E54: М | F54: =IF(E54="Ж",VLOOKUP(C54,Гонки!$E$2:$P$16,11,FALSE),VLOOKUP(C54,Гонки!$E$2:$P$16,12,FALSE)) -> 25 | G54: Фенченко Алексей | H54: 1989 | I54: Fenchenko Aleksej | J54: Фенченко Алексей / Fenchenko Aleksej / 1989 | K54: М | L54: 8 | M54: 72 | N54: 768.07
A55: =Гонки!$C$2 -> Зима минус 100 | B55: =Гонки!$D$3 -> Трейл 100 | C55: Зима минус 100 Трейл 100 | D55: 113.8 | E55: М | F55: =IF(E55="Ж",VLOOKUP(C55,Гонки!$E$2:$P$16,11,FALSE),VLOOKUP(C55,Гонки!$E$2:$P$16,12,FALSE)) -> 25 | G55: Харитонов Иван | H55: 1973 | I55: Haritonov Ivan | J55: Харитонов Иван / Haritonov Ivan / 1973 | K55: М | L55: 9 | M55: 68 | N55: 725.4
A56: =Гонки!$C$2 -> Зима минус 100 | B56: =Гонки!$D$3 -> Трейл 100 | C56: Зима минус 100 Трейл 100 | D56: 113.8 | E56: М | F56: =IF(E56="Ж",VLOOKUP(C56,Гонки!$E$2:$P$16,11,FALSE),VLOOKUP(C56,Гонки!$E$2:$P$16,12,FALSE)) -> 25 | G56: Лесковец Александр | H56: 1990 | I56: Leskovets Aleksandr | J56: Лесковец Александр / Leskovets Aleksandr / 1990 | K56: М | L56: 10 | M56: 64 | N56: 682.73
A57: =Гонки!$C$2 -> Зима минус 100 | B57: =Гонки!$D$3 -> Трейл 100 | C57: Зима минус 100 Трейл 100 | D57: 113.8 | E57: М | F57: =IF(E57="Ж",VLOOKUP(C57,Гонки!$E$2:$P$16,11,FALSE),VLOOKUP(C57,Гонки!$E$2:$P$16,12,FALSE)) -> 25 | G57: Нестерович Сергей | H57: 1994 | I57: Nesterovich Sergej | J57: Нестерович Сергей / Nesterovich Sergej / 1994 | K57: М | L57: 11 | M57: 60 | N57: 640.06
A58: =Гонки!$C$2 -> Зима минус 100 | B58: =Гонки!$D$3 -> Трейл 100 | C58: Зима минус 100 Трейл 100 | D58: 113.8 | E58: М | F58: =IF(E58="Ж",VLOOKUP(C58,Гонки!$E$2:$P$16,11,FALSE),VLOOKUP(C58,Гонки!$E$2:$P$16,12,FALSE)) -> 25 | G58: Сорокин Денис | H58: 1998 | I58: Sorokin Denis | J58: Сорокин Денис / Sorokin Denis / 1998 | K58: М | L58: 12 | M58: 56 | N58: 597.39
A59: =Гонки!$C$2 -> Зима минус 100 | B59: =Гонки!$D$3 -> Трейл 100 | C59: Зима минус 100 Трейл 100 | D59: 113.8 | E59: М | F59: =IF(E59="Ж",VLOOKUP(C59,Гонки!$E$2:$P$16,11,FALSE),VLOOKUP(C59,Гонки!$E$2:$P$16,12,FALSE)) -> 25 | G59: Маркевич Денис | H59: 1981 | I59: Markevich Denis | J59: Маркевич Денис / Markevich Denis / 1981 | K59: М | L59: 13 | M59: 52 | N59: 554.72
A60: =Гонки!$C$2 -> Зима минус 100 | B60: =Гонки!$D$3 -> Трейл 100 | C60: Зима минус 100 Трейл 100 | D60: 113.8 | E60: М | F60: =IF(E60="Ж",VLOOKUP(C60,Гонки!$E$2:$P$16,11,FALSE),VLOOKUP(C60,Гонки!$E$2:$P$16,12,FALSE)) -> 25 | G60: Олин Денис | H60: 1976 | I60: Olin Denis | J60: Олин Денис / Olin Denis / 1976 | K60: М | L60: 14 | M60: 48 | N60: 512.05
A61: =Гонки!$C$4 -> Жук-трейл # 4 Минское Море | B61: =Гонки!$D$4 -> Трейл 25 | C61: Жук-трейл # 4 Минское Море Трейл 25 | D61: 26.71 | E61: Ж | F61: =IF(E61="Ж",VLOOKUP(C61,Гонки!$E$2:$P$16,11,FALSE),VLOOKUP(C61,Гонки!$E$2:$P$16,12,FALSE)) -> 11 | G61: Гилевич Диана | H61: 1993 | I61: Gilevich Diana | J61: Гилевич Диана / Gilevich Diana / 1993 | K61: Ж | L61: 1 | M61: 100 | N61: 516.82
A62: =Гонки!$C$4 -> Жук-трейл # 4 Минское Море | B62: =Гонки!$D$4 -> Трейл 25 | C62: Жук-трейл # 4 Минское Море Трейл 25 | D62: 26.71 | E62: Ж | F62: =IF(E62="Ж",VLOOKUP(C62,Гонки!$E$2:$P$16,11,FALSE),VLOOKUP(C62,Гонки!$E$2:$P$16,12,FALSE)) -> 11 | G62: Гилевич Кристина | H62: 1994 | I62: Gilevich Kristina | J62: Гилевич Кристина / Gilevich Kristina / 1994 | K62: Ж | L62: 2 | M62: 90.90909091 | N62: 469.83
A63: =Гонки!$C$4 -> Жук-трейл # 4 Минское Море | B63: =Гонки!$D$4 -> Трейл 25 | C63: Жук-трейл # 4 Минское Море Трейл 25 | D63: 26.71 | E63: Ж | F63: =IF(E63="Ж",VLOOKUP(C63,Гонки!$E$2:$P$16,11,FALSE),VLOOKUP(C63,Гонки!$E$2:$P$16,12,FALSE)) -> 11 | G63: Скирук Юлия | H63: 1988 | I63: Skiruk Yuliya | J63: Скирук Юлия / Skiruk Yuliya / 1988 | K63: Ж | L63: 3 | M63: 81.81818182 | N63: 422.85
A64: =Гонки!$C$4 -> Жук-трейл # 4 Минское Море | B64: =Гонки!$D$4 -> Трейл 25 | C64: Жук-трейл # 4 Минское Море Трейл 25 | D64: 26.71 | E64: Ж | F64: =IF(E64="Ж",VLOOKUP(C64,Гонки!$E$2:$P$16,11,FALSE),VLOOKUP(C64,Гонки!$E$2:$P$16,12,FALSE)) -> 11 | G64: Белая Юлия | H64: 1988 | I64: Belaya Yuliya | J64: Белая Юлия / Belaya Yuliya / 1988 | K64: Ж | L64: 4 | M64: 72.72727273 | N64: 375.87
A65: =Гонки!$C$4 -> Жук-трейл # 4 Минское Море | B65: =Гонки!$D$4 -> Трейл 25 | C65: Жук-трейл # 4 Минское Море Трейл 25 | D65: 26.71 | E65: Ж | F65: =IF(E65="Ж",VLOOKUP(C65,Гонки!$E$2:$P$16,11,FALSE),VLOOKUP(C65,Гонки!$E$2:$P$16,12,FALSE)) -> 11 | G65: Голубева Елена | H65: 1987 | I65: Golubeva Elena | J65: Голубева Елена / Golubeva Elena / 1987 | K65: Ж | L65: 5 | M65: 63.63636364 | N65: 328.88
A66: =Гонки!$C$4 -> Жук-трейл # 4 Минское Море | B66: =Гонки!$D$4 -> Трейл 25 | C66: Жук-трейл # 4 Минское Море Трейл 25 | D66: =VLOOKUP(C66,Список_гонок,10,FALSE) -> 26.71 | E66: Ж | F66: =IF(E66="Ж",VLOOKUP(C66,Гонки!$E$2:$P$16,11,FALSE),VLOOKUP(C66,Гонки!$E$2:$P$16,12,FALSE)) -> 11 | G66: Литвинская Людмила | H66: 1977 | I66: Litvinskaya Lyudmila | J66: Литвинская Людмила / Litvinskaya Lyudmila / 1977 | K66: Ж | L66: 6 | M66: 54.54545455 | N66: 281.9
A67: =Гонки!$C$4 -> Жук-трейл # 4 Минское Море | B67: =Гонки!$D$4 -> Трейл 25 | C67: =CONCATENATE(A67," ",B67) -> Жук-трейл # 4 Минское Море Трейл 25 | D67: 26.71 | E67: Ж | F67: =IF(E67="Ж",VLOOKUP(C67,Гонки!$E$2:$P$16,11,FALSE),VLOOKUP(C67,Гонки!$E$2:$P$16,12,FALSE)) -> 11 | G67: Суховерхая Татьяна | H67: 1986 | I67: =Translit(G67) -> Suhoverhaya Tatyana | J67: =CONCATENATE(G67," / ",I67," / ",H67) -> Суховерхая Татьяна / Suhoverhaya Tatyana / 1986 | K67: =E67 -> Ж | L67: 7 | M67: =100-((L67-1)/F67)*100 -> 45.45454545 | N67: =ROUND(SQRT(D67)*M67,2) -> 234.92
A68: =Гонки!$C$4 -> Жук-трейл # 4 Минское Море | B68: =Гонки!$D$4 -> Трейл 25 | C68: Жук-трейл # 4 Минское Море Трейл 25 | D68: 26.71 | E68: Ж | F68: =IF(E68="Ж",VLOOKUP(C68,Гонки!$E$2:$P$16,11,FALSE),VLOOKUP(C68,Гонки!$E$2:$P$16,12,FALSE)) -> 11 | G68: Василевич Валентина | H68: 1998 | I68: Vasilevich Valentina | J68: Василевич Валентина / Vasilevich Valentina / 1998 | K68: Ж | L68: 8 | M68: 36.36363636 | N68: 187.93
A69: =Гонки!$C$4 -> Жук-трейл # 4 Минское Море | B69: =Гонки!$D$4 -> Трейл 25 | C69: Жук-трейл # 4 Минское Море Трейл 25 | D69: 26.71 | E69: Ж | F69: =IF(E69="Ж",VLOOKUP(C69,Гонки!$E$2:$P$16,11,FALSE),VLOOKUP(C69,Гонки!$E$2:$P$16,12,FALSE)) -> 11 | G69: Михно Алла | H69: 1979 | I69: Mihno Alla | J69: Михно Алла / Mihno Alla / 1979 | K69: Ж | L69: 9 | M69: 27.27272727 | N69: 140.95
A70: =Гонки!$C$4 -> Жук-трейл # 4 Минское Море | B70: =Гонки!$D$4 -> Трейл 25 | C70: Жук-трейл # 4 Минское Море Трейл 25 | D70: 26.71 | E70: Ж | F70: =IF(E70="Ж",VLOOKUP(C70,Гонки!$E$2:$P$16,11,FALSE),VLOOKUP(C70,Гонки!$E$2:$P$16,12,FALSE)) -> 11 | G70: Михалкин Сергей | H70: 1989 | I70: Mihalkin Sergej | J70: Михалкин Сергей / Mihalkin Sergej / 1989 | K70: Ж | L70: 1 | M70: 100 | N70: 516.82
A71: =Гонки!$C$4 -> Жук-трейл # 4 Минское Море | B71: =Гонки!$D$4 -> Трейл 25 | C71: Жук-трейл # 4 Минское Море Трейл 25 | D71: 26.71 | E71: М | F71: =IF(E71="Ж",VLOOKUP(C71,Гонки!$E$2:$P$16,11,FALSE),VLOOKUP(C71,Гонки!$E$2:$P$16,12,FALSE)) -> 81 | G71: Сердитов Вадим | H71: 1993 | I71: Serditov Vadim | J71: Сердитов Вадим / Serditov Vadim / 1993 | K71: М | L71: 2 | M71: 98.7654321 | N71: 510.44
A72: =Гонки!$C$4 -> Жук-трейл # 4 Минское Море | B72: =Гонки!$D$4 -> Трейл 25 | C72: Жук-трейл # 4 Минское Море Трейл 25 | D72: 26.71 | E72: М | F72: =IF(E72="Ж",VLOOKUP(C72,Гонки!$E$2:$P$16,11,FALSE),VLOOKUP(C72,Гонки!$E$2:$P$16,12,FALSE)) -> 81 | G72: Ходан Александр | H72: 1988 | I72: Hodan Aleksandr | J72: Ходан Александр / Hodan Aleksandr / 1988 | K72: М | L72: 3 | M72: 97.5308642 | N72: 504.06
A73: =Гонки!$C$4 -> Жук-трейл # 4 Минское Море | B73: =Гонки!$D$4 -> Трейл 25 | C73: Жук-трейл # 4 Минское Море Трейл 25 | D73: 26.71 | E73: М | F73: =IF(E73="Ж",VLOOKUP(C73,Гонки!$E$2:$P$16,11,FALSE),VLOOKUP(C73,Гонки!$E$2:$P$16,12,FALSE)) -> 81 | G73: Леонов Иван | H73: 1986 | I73: Leonov Ivan | J73: Леонов Иван / Leonov Ivan / 1986 | K73: М | L73: 4 | M73: 96.2962963 | N73: 497.68
A74: =Гонки!$C$4 -> Жук-трейл # 4 Минское Море | B74: =Гонки!$D$4 -> Трейл 25 | C74: Жук-трейл # 4 Минское Море Трейл 25 | D74: 26.71 | E74: М | F74: =IF(E74="Ж",VLOOKUP(C74,Гонки!$E$2:$P$16,11,FALSE),VLOOKUP(C74,Гонки!$E$2:$P$16,12,FALSE)) -> 81 | G74: Вагин Андрей | H74: 1989 | I74: Vagin Andrej | J74: Вагин Андрей / Vagin Andrej / 1989 | K74: М | L74: 5 | M74: 95.0617284 | N74: 491.3
A75: =Гонки!$C$4 -> Жук-трейл # 4 Минское Море | B75: =Гонки!$D$4 -> Трейл 25 | C75: Жук-трейл # 4 Минское Море Трейл 25 | D75: 26.71 | E75: М | F75: =IF(E75="Ж",VLOOKUP(C75,Гонки!$E$2:$P$16,11,FALSE),VLOOKUP(C75,Гонки!$E$2:$P$16,12,FALSE)) -> 81 | G75: Журавлёв Андрей | H75: 1978 | I75: Zhuravljov Andrej | J75: Журавлёв Андрей / Zhuravljov Andrej / 1978 | K75: М | L75: 6 | M75: 93.82716049 | N75: 484.91
A76: =Гонки!$C$4 -> Жук-трейл # 4 Минское Море | B76: =Гонки!$D$4 -> Трейл 25 | C76: Жук-трейл # 4 Минское Море Трейл 25 | D76: 26.71 | E76: М | F76: =IF(E76="Ж",VLOOKUP(C76,Гонки!$E$2:$P$16,11,FALSE),VLOOKUP(C76,Гонки!$E$2:$P$16,12,FALSE)) -> 81 | G76: Ласюк Юрий | H76: 1987 | I76: Lasyuk Yurij | J76: Ласюк Юрий / Lasyuk Yurij / 1987 | K76: М | L76: 7 | M76: 92.59259259 | N76: 478.53
A77: =Гонки!$C$4 -> Жук-трейл # 4 Минское Море | B77: =Гонки!$D$4 -> Трейл 25 | C77: Жук-трейл # 4 Минское Море Трейл 25 | D77: 26.71 | E77: М | F77: =IF(E77="Ж",VLOOKUP(C77,Гонки!$E$2:$P$16,11,FALSE),VLOOKUP(C77,Гонки!$E$2:$P$16,12,FALSE)) -> 81 | G77: Овсиюк Богдан | H77: 1993 | I77: Ovsiyuk Bogdan | J77: Овсиюк Богдан / Ovsiyuk Bogdan / 1993 | K77: М | L77: 8 | M77: 91.35802469 | N77: 472.15
A78: =Гонки!$C$4 -> Жук-трейл # 4 Минское Море | B78: =Гонки!$D$4 -> Трейл 25 | C78: Жук-трейл # 4 Минское Море Трейл 25 | D78: 26.71 | E78: М | F78: =IF(E78="Ж",VLOOKUP(C78,Гонки!$E$2:$P$16,11,FALSE),VLOOKUP(C78,Гонки!$E$2:$P$16,12,FALSE)) -> 81 | G78: Березовский Андрей | H78: 1973 | I78: Berezovskij Andrej | J78: Березовский Андрей / Berezovskij Andrej / 1973 | K78: М | L78: 9 | M78: 90.12345679 | N78: 465.77
A79: =Гонки!$C$4 -> Жук-трейл # 4 Минское Море | B79: =Гонки!$D$4 -> Трейл 25 | C79: Жук-трейл # 4 Минское Море Трейл 25 | D79: 26.71 | E79: М | F79: =IF(E79="Ж",VLOOKUP(C79,Гонки!$E$2:$P$16,11,FALSE),VLOOKUP(C79,Гонки!$E$2:$P$16,12,FALSE)) -> 81 | G79: Скуратович Антон | H79: 1985 | I79: Skuratovich Anton | J79: Скуратович Антон / Skuratovich Anton / 1985 | K79: М | L79: 10 | M79: 88.88888889 | N79: 459.39
A80: =Гонки!$C$4 -> Жук-трейл # 4 Минское Море | B80: =Гонки!$D$4 -> Трейл 25 | C80: Жук-трейл # 4 Минское Море Трейл 25 | D80: 26.71 | E80: М | F80: =IF(E80="Ж",VLOOKUP(C80,Гонки!$E$2:$P$16,11,FALSE),VLOOKUP(C80,Гонки!$E$2:$P$16,12,FALSE)) -> 81 | G80: Солодкин Сергей | H80: 1984 | I80: Solodkin Sergej | J80: Солодкин Сергей / Solodkin Sergej / 1984 | K80: М | L80: 11 | M80: 87.65432099 | N80: 453.01
A81: =Гонки!$C$4 -> Жук-трейл # 4 Минское Море | B81: =Гонки!$D$4 -> Трейл 25 | C81: Жук-трейл # 4 Минское Море Трейл 25 | D81: 26.71 | E81: М | F81: =IF(E81="Ж",VLOOKUP(C81,Гонки!$E$2:$P$16,11,FALSE),VLOOKUP(C81,Гонки!$E$2:$P$16,12,FALSE)) -> 81 | G81: Молочко Александр | H81: 1981 | I81: Molochko Aleksandr | J81: Молочко Александр / Molochko Aleksandr / 1981 | K81: М | L81: 12 | M81: 86.41975309 | N81: 446.63
A82: =Гонки!$C$4 -> Жук-трейл # 4 Минское Море | B82: =Гонки!$D$4 -> Трейл 25 | C82: Жук-трейл # 4 Минское Море Трейл 25 | D82: 26.71 | E82: М | F82: =IF(E82="Ж",VLOOKUP(C82,Гонки!$E$2:$P$16,11,FALSE),VLOOKUP(C82,Гонки!$E$2:$P$16,12,FALSE)) -> 81 | G82: Лукашенок Алексей | H82: 1978 | I82: Lukashenok Aleksej | J82: Лукашенок Алексей / Lukashenok Aleksej / 1978 | K82: М | L82: 13 | M82: 85.18518519 | N82: 440.25
A83: =Гонки!$C$4 -> Жук-трейл # 4 Минское Море | B83: =Гонки!$D$4 -> Трейл 25 | C83: Жук-трейл # 4 Минское Море Трейл 25 | D83: 26.71 | E83: М | F83: =IF(E83="Ж",VLOOKUP(C83,Гонки!$E$2:$P$16,11,FALSE),VLOOKUP(C83,Гонки!$E$2:$P$16,12,FALSE)) -> 81 | G83: Ермохин Максим | H83: 1975 | I83: Ermohin Maksim | J83: Ермохин Максим / Ermohin Maksim / 1975 | K83: М | L83: 14 | M83: 83.95061728 | N83: 433.87
A84: =Гонки!$C$4 -> Жук-трейл # 4 Минское Море | B84: =Гонки!$D$4 -> Трейл 25 | C84: Жук-трейл # 4 Минское Море Трейл 25 | D84: 26.71 | E84: М | F84: =IF(E84="Ж",VLOOKUP(C84,Гонки!$E$2:$P$16,11,FALSE),VLOOKUP(C84,Гонки!$E$2:$P$16,12,FALSE)) -> 81 | G84: Камышкайло Анатолий | H84: 1981 | I84: Kamyshkajlo Anatolij | J84: Камышкайло Анатолий / Kamyshkajlo Anatolij / 1981 | K84: М | L84: 15 | M84: 82.71604938 | N84: 427.49
A85: =Гонки!$C$4 -> Жук-трейл # 4 Минское Море | B85: =Гонки!$D$4 -> Трейл 25 | C85: Жук-трейл # 4 Минское Море Трейл 25 | D85: 26.71 | E85: М | F85: =IF(E85="Ж",VLOOKUP(C85,Гонки!$E$2:$P$16,11,FALSE),VLOOKUP(C85,Гонки!$E$2:$P$16,12,FALSE)) -> 81 | G85: Филитарин Дмитрий | H85: 1987 | I85: Filitarin Dmitrij | J85: Филитарин Дмитрий / Filitarin Dmitrij / 1987 | K85: М | L85: 16 | M85: 81.48148148 | N85: 421.11
A86: =Гонки!$C$4 -> Жук-трейл # 4 Минское Море | B86: =Гонки!$D$4 -> Трейл 25 | C86: Жук-трейл # 4 Минское Море Трейл 25 | D86: 26.71 | E86: М | F86: =IF(E86="Ж",VLOOKUP(C86,Гонки!$E$2:$P$16,11,FALSE),VLOOKUP(C86,Гонки!$E$2:$P$16,12,FALSE)) -> 81 | G86: Храмов Антон | H86: 1991 | I86: Hramov Anton | J86: Храмов Антон / Hramov Anton / 1991 | K86: М | L86: 17 | M86: 80.24691358 | N86: 414.73
A87: =Гонки!$C$4 -> Жук-трейл # 4 Минское Море | B87: =Гонки!$D$4 -> Трейл 25 | C87: Жук-трейл # 4 Минское Море Трейл 25 | D87: 26.71 | E87: М | F87: =IF(E87="Ж",VLOOKUP(C87,Гонки!$E$2:$P$16,11,FALSE),VLOOKUP(C87,Гонки!$E$2:$P$16,12,FALSE)) -> 81 | G87: Тихонов Василий | H87: 1993 | I87: Tihonov Vasilij | J87: Тихонов Василий / Tihonov Vasilij / 1993 | K87: М | L87: 18 | M87: 79.01234568 | N87: 408.35
A88: =Гонки!$C$4 -> Жук-трейл # 4 Минское Море | B88: =Гонки!$D$4 -> Трейл 25 | C88: Жук-трейл # 4 Минское Море Трейл 25 | D88: 26.71 | E88: М | F88: =IF(E88="Ж",VLOOKUP(C88,Гонки!$E$2:$P$16,11,FALSE),VLOOKUP(C88,Гонки!$E$2:$P$16,12,FALSE)) -> 81 | G88: Борисевич Леонид | H88: 1969 | I88: Borisevich Leonid | J88: Борисевич Леонид / Borisevich Leonid / 1969 | K88: М | L88: 19 | M88: 77.77777778 | N88: 401.97
A89: =Гонки!$C$4 -> Жук-трейл # 4 Минское Море | B89: =Гонки!$D$4 -> Трейл 25 | C89: Жук-трейл # 4 Минское Море Трейл 25 | D89: 26.71 | E89: М | F89: =IF(E89="Ж",VLOOKUP(C89,Гонки!$E$2:$P$16,11,FALSE),VLOOKUP(C89,Гонки!$E$2:$P$16,12,FALSE)) -> 81 | G89: Остаповец Евгений | H89: 1990 | I89: Ostapovets Evgenij | J89: Остаповец Евгений / Ostapovets Evgenij / 1990 | K89: М | L89: 20 | M89: 76.54320988 | N89: 395.59
A90: =Гонки!$C$4 -> Жук-трейл # 4 Минское Море | B90: =Гонки!$D$4 -> Трейл 25 | C90: Жук-трейл # 4 Минское Море Трейл 25 | D90: 26.71 | E90: М | F90: =IF(E90="Ж",VLOOKUP(C90,Гонки!$E$2:$P$16,11,FALSE),VLOOKUP(C90,Гонки!$E$2:$P$16,12,FALSE)) -> 81 | G90: Лесковец Александр | H90: 1990 | I90: Leskovets Aleksandr | J90: Лесковец Александр / Leskovets Aleksandr / 1990 | K90: М | L90: 21 | M90: 75.30864198 | N90: 389.21
A91: =Гонки!$C$4 -> Жук-трейл # 4 Минское Море | B91: =Гонки!$D$4 -> Трейл 25 | C91: Жук-трейл # 4 Минское Море Трейл 25 | D91: 26.71 | E91: М | F91: =IF(E91="Ж",VLOOKUP(C91,Гонки!$E$2:$P$16,11,FALSE),VLOOKUP(C91,Гонки!$E$2:$P$16,12,FALSE)) -> 81 | G91: Тривашкевич Евгений | H91: 1996 | I91: Trivashkevich Evgenij | J91: Тривашкевич Евгений / Trivashkevich Evgenij / 1996 | K91: М | L91: 22 | M91: 74.07407407 | N91: 382.83
A92: =Гонки!$C$4 -> Жук-трейл # 4 Минское Море | B92: =Гонки!$D$4 -> Трейл 25 | C92: Жук-трейл # 4 Минское Море Трейл 25 | D92: 26.71 | E92: М | F92: =IF(E92="Ж",VLOOKUP(C92,Гонки!$E$2:$P$16,11,FALSE),VLOOKUP(C92,Гонки!$E$2:$P$16,12,FALSE)) -> 81 | G92: Селютин Владимир | H92: 1990 | I92: Selyutin Vladimir | J92: Селютин Владимир / Selyutin Vladimir / 1990 | K92: М | L92: 23 | M92: 72.83950617 | N92: 376.45
A93: =Гонки!$C$4 -> Жук-трейл # 4 Минское Море | B93: =Гонки!$D$4 -> Трейл 25 | C93: Жук-трейл # 4 Минское Море Трейл 25 | D93: 26.71 | E93: М | F93: =IF(E93="Ж",VLOOKUP(C93,Гонки!$E$2:$P$16,11,FALSE),VLOOKUP(C93,Гонки!$E$2:$P$16,12,FALSE)) -> 81 | G93: Остапов Владимир | H93: 1977 | I93: Ostapov Vladimir | J93: Остапов Владимир / Ostapov Vladimir / 1977 | K93: М | L93: 24 | M93: 71.60493827 | N93: 370.07
A94: =Гонки!$C$4 -> Жук-трейл # 4 Минское Море | B94: =Гонки!$D$4 -> Трейл 25 | C94: Жук-трейл # 4 Минское Море Трейл 25 | D94: 26.71 | E94: М | F94: =IF(E94="Ж",VLOOKUP(C94,Гонки!$E$2:$P$16,11,FALSE),VLOOKUP(C94,Гонки!$E$2:$P$16,12,FALSE)) -> 81 | G94: Маркевич Денис | H94: 1981 | I94: Markevich Denis | J94: Маркевич Денис / Markevich Denis / 1981 | K94: М | L94: 25 | M94: 70.37037037 | N94: 363.69
A95: =Гонки!$C$4 -> Жук-трейл # 4 Минское Море | B95: =Гонки!$D$4 -> Трейл 25 | C95: Жук-трейл # 4 Минское Море Трейл 25 | D95: 26.71 | E95: М | F95: =IF(E95="Ж",VLOOKUP(C95,Гонки!$E$2:$P$16,11,FALSE),VLOOKUP(C95,Гонки!$E$2:$P$16,12,FALSE)) -> 81 | G95: Дельянов Одиссей | H95: 1979 | I95: Delyanov Odissej | J95: Дельянов Одиссей / Delyanov Odissej / 1979 | K95: М | L95: 26 | M95: 69.13580247 | N95: 357.31
A96: =Гонки!$C$4 -> Жук-трейл # 4 Минское Море | B96: =Гонки!$D$4 -> Трейл 25 | C96: Жук-трейл # 4 Минское Море Трейл 25 | D96: 26.71 | E96: М | F96: =IF(E96="Ж",VLOOKUP(C96,Гонки!$E$2:$P$16,11,FALSE),VLOOKUP(C96,Гонки!$E$2:$P$16,12,FALSE)) -> 81 | G96: Орловский Павел | H96: 1989 | I96: Orlovskij Pavel | J96: Орловский Павел / Orlovskij Pavel / 1989 | K96: М | L96: 27 | M96: 67.90123457 | N96: 350.93
A97: =Гонки!$C$4 -> Жук-трейл # 4 Минское Море | B97: =Гонки!$D$4 -> Трейл 25 | C97: Жук-трейл # 4 Минское Море Трейл 25 | D97: 26.71 | E97: М | F97: =IF(E97="Ж",VLOOKUP(C97,Гонки!$E$2:$P$16,11,FALSE),VLOOKUP(C97,Гонки!$E$2:$P$16,12,FALSE)) -> 81 | G97: Попадюк Игорь | H97: 1982 | I97: Popadyuk Igor | J97: Попадюк Игорь / Popadyuk Igor / 1982 | K97: М | L97: 28 | M97: 66.66666667 | N97: 344.54
A98: =Гонки!$C$4 -> Жук-трейл # 4 Минское Море | B98: =Гонки!$D$4 -> Трейл 25 | C98: Жук-трейл # 4 Минское Море Трейл 25 | D98: 26.71 | E98: М | F98: =IF(E98="Ж",VLOOKUP(C98,Гонки!$E$2:$P$16,11,FALSE),VLOOKUP(C98,Гонки!$E$2:$P$16,12,FALSE)) -> 81 | G98: Таран Виталий | H98: 1983 | I98: Taran Vitalij | J98: Таран Виталий / Taran Vitalij / 1983 | K98: М | L98: 29 | M98: 65.43209877 | N98: 338.16
A99: =Гонки!$C$4 -> Жук-трейл # 4 Минское Море | B99: =Гонки!$D$4 -> Трейл 25 | C99: Жук-трейл # 4 Минское Море Трейл 25 | D99: 26.71 | E99: М | F99: =IF(E99="Ж",VLOOKUP(C99,Гонки!$E$2:$P$16,11,FALSE),VLOOKUP(C99,Гонки!$E$2:$P$16,12,FALSE)) -> 81 | G99: Алексеев Алексей | H99: 1980 | I99: Alekseev Aleksej | J99: Алексеев Алексей / Alekseev Aleksej / 1980 | K99: М | L99: 30 | M99: 64.19753086 | N99: 331.78
A100: =Гонки!$C$4 -> Жук-трейл # 4 Минское Море | B100: =Гонки!$D$4 -> Трейл 25 | C100: Жук-трейл # 4 Минское Море Трейл 25 | D100: 26.71 | E100: М | F100: =IF(E100="Ж",VLOOKUP(C100,Гонки!$E$2:$P$16,11,FALSE),VLOOKUP(C100,Гонки!$E$2:$P$16,12,FALSE)) -> 81 | G100: Шклярик Олег | H100: 1970 | I100: Shklyarik Oleg | J100: Шклярик Олег / Shklyarik Oleg / 1970 | K100: М | L100: 31 | M100: 62.96296296 | N100: 325.4
A101: =Гонки!$C$4 -> Жук-трейл # 4 Минское Море | B101: =Гонки!$D$4 -> Трейл 25 | C101: Жук-трейл # 4 Минское Море Трейл 25 | D101: 26.71 | E101: М | F101: =IF(E101="Ж",VLOOKUP(C101,Гонки!$E$2:$P$16,11,FALSE),VLOOKUP(C101,Гонки!$E$2:$P$16,12,FALSE)) -> 81 | G101: Бокша Сергей | H101: 1988 | I101: Boksha Sergej | J101: Бокша Сергей / Boksha Sergej / 1988 | K101: М | L101: 32 | M101: 61.72839506 | N101: 319.02
A102: =Гонки!$C$4 -> Жук-трейл # 4 Минское Море | B102: =Гонки!$D$4 -> Трейл 25 | C102: Жук-трейл # 4 Минское Море Трейл 25 | D102: 26.71 | E102: М | F102: =IF(E102="Ж",VLOOKUP(C102,Гонки!$E$2:$P$16,11,FALSE),VLOOKUP(C102,Гонки!$E$2:$P$16,12,FALSE)) -> 81 | G102: Свечников Антон | H102: 1991 | I102: Svechnikov Anton | J102: Свечников Антон / Svechnikov Anton / 1991 | K102: М | L102: 33 | M102: 60.49382716 | N102: 312.64
A103: =Гонки!$C$4 -> Жук-трейл # 4 Минское Море | B103: =Гонки!$D$4 -> Трейл 25 | C103: Жук-трейл # 4 Минское Море Трейл 25 | D103: 26.71 | E103: М | F103: =IF(E103="Ж",VLOOKUP(C103,Гонки!$E$2:$P$16,11,FALSE),VLOOKUP(C103,Гонки!$E$2:$P$16,12,FALSE)) -> 81 | G103: Львовский Андрей | H103: 1991 | I103: Lvovskij Andrej | J103: Львовский Андрей / Lvovskij Andrej / 1991 | K103: М | L103: 34 | M103: 59.25925926 | N103: 306.26
A104: =Гонки!$C$4 -> Жук-трейл # 4 Минское Море | B104: =Гонки!$D$4 -> Трейл 25 | C104: Жук-трейл # 4 Минское Море Трейл 25 | D104: 26.71 | E104: М | F104: =IF(E104="Ж",VLOOKUP(C104,Гонки!$E$2:$P$16,11,FALSE),VLOOKUP(C104,Гонки!$E$2:$P$16,12,FALSE)) -> 81 | G104: Марчук Александр | H104: 1986 | I104: Marchuk Aleksandr | J104: Марчук Александр / Marchuk Aleksandr / 1986 | K104: М | L104: 35 | M104: 58.02469136 | N104: 299.88
A105: =Гонки!$C$4 -> Жук-трейл # 4 Минское Море | B105: =Гонки!$D$4 -> Трейл 25 | C105: Жук-трейл # 4 Минское Море Трейл 25 | D105: 26.71 | E105: М | F105: =IF(E105="Ж",VLOOKUP(C105,Гонки!$E$2:$P$16,11,FALSE),VLOOKUP(C105,Гонки!$E$2:$P$16,12,FALSE)) -> 81 | G105: Веремейчик Юрий | H105: 1979 | I105: Veremejchik Yurij | J105: Веремейчик Юрий / Veremejchik Yurij / 1979 | K105: М | L105: 36 | M105: 56.79012346 | N105: 293.5
A106: =Гонки!$C$4 -> Жук-трейл # 4 Минское Море | B106: =Гонки!$D$4 -> Трейл 25 | C106: Жук-трейл # 4 Минское Море Трейл 25 | D106: 26.71 | E106: М | F106: =IF(E106="Ж",VLOOKUP(C106,Гонки!$E$2:$P$16,11,FALSE),VLOOKUP(C106,Гонки!$E$2:$P$16,12,FALSE)) -> 81 | G106: Жданович Андрей | H106: 1973 | I106: Zhdanovich Andrej | J106: Жданович Андрей / Zhdanovich Andrej / 1973 | K106: М | L106: 37 | M106: 55.55555556 | N106: 287.12
A107: =Гонки!$C$4 -> Жук-трейл # 4 Минское Море | B107: =Гонки!$D$4 -> Трейл 25 | C107: Жук-трейл # 4 Минское Море Трейл 25 | D107: 26.71 | E107: М | F107: =IF(E107="Ж",VLOOKUP(C107,Гонки!$E$2:$P$16,11,FALSE),VLOOKUP(C107,Гонки!$E$2:$P$16,12,FALSE)) -> 81 | G107: Федорович Николай | H107: 1959 | I107: Fedorovich Nikolaj | J107: Федорович Николай / Fedorovich Nikolaj / 1959 | K107: М | L107: 38 | M107: 54.32098765 | N107: 280.74
A108: =Гонки!$C$4 -> Жук-трейл # 4 Минское Море | B108: =Гонки!$D$4 -> Трейл 25 | C108: Жук-трейл # 4 Минское Море Трейл 25 | D108: 26.71 | E108: М | F108: =IF(E108="Ж",VLOOKUP(C108,Гонки!$E$2:$P$16,11,FALSE),VLOOKUP(C108,Гонки!$E$2:$P$16,12,FALSE)) -> 81 | G108: Коровец Богдан | H108: 1976 | I108: Korovets Bogdan | J108: Коровец Богдан / Korovets Bogdan / 1976 | K108: М | L108: 39 | M108: 53.08641975 | N108: 274.36
A109: =Гонки!$C$4 -> Жук-трейл # 4 Минское Море | B109: =Гонки!$D$4 -> Трейл 25 | C109: Жук-трейл # 4 Минское Море Трейл 25 | D109: 26.71 | E109: М | F109: =IF(E109="Ж",VLOOKUP(C109,Гонки!$E$2:$P$16,11,FALSE),VLOOKUP(C109,Гонки!$E$2:$P$16,12,FALSE)) -> 81 | G109: Заяц Александр | H109: 1978 | I109: Zayats Aleksandr | J109: Заяц Александр / Zayats Aleksandr / 1978 | K109: М | L109: 40 | M109: 51.85185185 | N109: 267.98
A110: =Гонки!$C$4 -> Жук-трейл # 4 Минское Море | B110: =Гонки!$D$4 -> Трейл 25 | C110: Жук-трейл # 4 Минское Море Трейл 25 | D110: 26.71 | E110: М | F110: =IF(E110="Ж",VLOOKUP(C110,Гонки!$E$2:$P$16,11,FALSE),VLOOKUP(C110,Гонки!$E$2:$P$16,12,FALSE)) -> 81 | G110: Славинский Дмитрий | H110: 1986 | I110: Slavinskij Dmitrij | J110: Славинский Дмитрий / Slavinskij Dmitrij / 1986 | K110: М | L110: 41 | M110: 50.61728395 | N110: 261.6
A111: =Гонки!$C$4 -> Жук-трейл # 4 Минское Море | B111: =Гонки!$D$4 -> Трейл 25 | C111: Жук-трейл # 4 Минское Море Трейл 25 | D111: 26.71 | E111: М | F111: =IF(E111="Ж",VLOOKUP(C111,Гонки!$E$2:$P$16,11,FALSE),VLOOKUP(C111,Гонки!$E$2:$P$16,12,FALSE)) -> 81 | G111: Симонов Вадим | H111: 1985 | I111: Simonov Vadim | J111: Симонов Вадим / Simonov Vadim / 1985 | K111: М | L111: 42 | M111: 49.38271605 | N111: 255.22
A112: =Гонки!$C$4 -> Жук-трейл # 4 Минское Море | B112: =Гонки!$D$4 -> Трейл 25 | C112: Жук-трейл # 4 Минское Море Трейл 25 | D112: 26.71 | E112: М | F112: =IF(E112="Ж",VLOOKUP(C112,Гонки!$E$2:$P$16,11,FALSE),VLOOKUP(C112,Гонки!$E$2:$P$16,12,FALSE)) -> 81 | G112: Драгун Борис | H112: 1970 | I112: Dragun Boris | J112: Драгун Борис / Dragun Boris / 1970 | K112: М | L112: 43 | M112: 48.14814815 | N112: 248.84
A113: =Гонки!$C$4 -> Жук-трейл # 4 Минское Море | B113: =Гонки!$D$4 -> Трейл 25 | C113: Жук-трейл # 4 Минское Море Трейл 25 | D113: 26.71 | E113: М | F113: =IF(E113="Ж",VLOOKUP(C113,Гонки!$E$2:$P$16,11,FALSE),VLOOKUP(C113,Гонки!$E$2:$P$16,12,FALSE)) -> 81 | G113: Подрез Ярослав | H113: 1996 | I113: Podrez Yaroslav | J113: Подрез Ярослав / Podrez Yaroslav / 1996 | K113: М | L113: 44 | M113: 46.91358025 | N113: 242.46
A114: =Гонки!$C$4 -> Жук-трейл # 4 Минское Море | B114: =Гонки!$D$4 -> Трейл 25 | C114: Жук-трейл # 4 Минское Море Трейл 25 | D114: 26.71 | E114: М | F114: =IF(E114="Ж",VLOOKUP(C114,Гонки!$E$2:$P$16,11,FALSE),VLOOKUP(C114,Гонки!$E$2:$P$16,12,FALSE)) -> 81 | G114: Кожемякин Владимир | H114: 1970 | I114: Kozhemyakin Vladimir | J114: Кожемякин Владимир / Kozhemyakin Vladimir / 1970 | K114: М | L114: 45 | M114: 45.67901235 | N114: 236.08
A115: =Гонки!$C$4 -> Жук-трейл # 4 Минское Море | B115: =Гонки!$D$4 -> Трейл 25 | C115: Жук-трейл # 4 Минское Море Трейл 25 | D115: 26.71 | E115: М | F115: =IF(E115="Ж",VLOOKUP(C115,Гонки!$E$2:$P$16,11,FALSE),VLOOKUP(C115,Гонки!$E$2:$P$16,12,FALSE)) -> 81 | G115: Лавник Игорь | H115: 1983 | I115: Lavnik Igor | J115: Лавник Игорь / Lavnik Igor / 1983 | K115: М | L115: 46 | M115: 44.44444444 | N115: 229.7
A116: =Гонки!$C$4 -> Жук-трейл # 4 Минское Море | B116: =Гонки!$D$4 -> Трейл 25 | C116: Жук-трейл # 4 Минское Море Трейл 25 | D116: 26.71 | E116: М | F116: =IF(E116="Ж",VLOOKUP(C116,Гонки!$E$2:$P$16,11,FALSE),VLOOKUP(C116,Гонки!$E$2:$P$16,12,FALSE)) -> 81 | G116: Селиванов Алексавндр | H116: 1970 | I116: Selivanov Aleksavndr | J116: Селиванов Алексавндр / Selivanov Aleksavndr / 1970 | K116: М | L116: 47 | M116: 43.20987654 | N116: 223.32
A117: =Гонки!$C$4 -> Жук-трейл # 4 Минское Море | B117: =Гонки!$D$4 -> Трейл 25 | C117: Жук-трейл # 4 Минское Море Трейл 25 | D117: 26.71 | E117: М | F117: =IF(E117="Ж",VLOOKUP(C117,Гонки!$E$2:$P$16,11,FALSE),VLOOKUP(C117,Гонки!$E$2:$P$16,12,FALSE)) -> 81 | G117: Писаренко Андрей | H117: 1957 | I117: Pisarenko Andrej | J117: Писаренко Андрей / Pisarenko Andrej / 1957 | K117: М | L117: 48 | M117: 41.97530864 | N117: 216.94
A118: =Гонки!$C$4 -> Жук-трейл # 4 Минское Море | B118: =Гонки!$D$4 -> Трейл 25 | C118: Жук-трейл # 4 Минское Море Трейл 25 | D118: 26.71 | E118: М | F118: =IF(E118="Ж",VLOOKUP(C118,Гонки!$E$2:$P$16,11,FALSE),VLOOKUP(C118,Гонки!$E$2:$P$16,12,FALSE)) -> 81 | G118: Глушаков Сергей | H118: 1958 | I118: Glushakov Sergej | J118: Глушаков Сергей / Glushakov Sergej / 1958 | K118: М | L118: 49 | M118: 40.74074074 | N118: 210.56
A119: =Гонки!$C$4 -> Жук-трейл # 4 Минское Море | B119: =Гонки!$D$4 -> Трейл 25 | C119: Жук-трейл # 4 Минское Море Трейл 25 | D119: 26.71 | E119: М | F119: =IF(E119="Ж",VLOOKUP(C119,Гонки!$E$2:$P$16,11,FALSE),VLOOKUP(C119,Гонки!$E$2:$P$16,12,FALSE)) -> 81 | G119: Кожан Михаил | H119: 1946 | I119: Kozhan Mihail | J119: Кожан Михаил / Kozhan Mihail / 1946 | K119: М | L119: 50 | M119: 39.50617284 | N119: 204.17
A120: =Гонки!$C$4 -> Жук-трейл # 4 Минское Море | B120: =Гонки!$D$4 -> Трейл 25 | C120: Жук-трейл # 4 Минское Море Трейл 25 | D120: 26.71 | E120: М | F120: =IF(E120="Ж",VLOOKUP(C120,Гонки!$E$2:$P$16,11,FALSE),VLOOKUP(C120,Гонки!$E$2:$P$16,12,FALSE)) -> 81 | G120: Илатовский Дмитрий | H120: 1974 | I120: Ilatovskij Dmitrij | J120: Илатовский Дмитрий / Ilatovskij Dmitrij / 1974 | K120: М | L120: 51 | M120: 38.27160494 | N120: 197.79
A121: =Гонки!$C$4 -> Жук-трейл # 4 Минское Море | B121: =Гонки!$D$4 -> Трейл 25 | C121: Жук-трейл # 4 Минское Море Трейл 25 | D121: 26.71 | E121: М | F121: =IF(E121="Ж",VLOOKUP(C121,Гонки!$E$2:$P$16,11,FALSE),VLOOKUP(C121,Гонки!$E$2:$P$16,12,FALSE)) -> 81 | G121: Дегтярев Сергей | H121: 1983 | I121: Degtyarev Sergej | J121: Дегтярев Сергей / Degtyarev Sergej / 1983 | K121: М | L121: 52 | M121: 37.03703704 | N121: 191.41
A122: =Гонки!$C$4 -> Жук-трейл # 4 Минское Море | B122: =Гонки!$D$4 -> Трейл 25 | C122: Жук-трейл # 4 Минское Море Трейл 25 | D122: 26.71 | E122: М | F122: =IF(E122="Ж",VLOOKUP(C122,Гонки!$E$2:$P$16,11,FALSE),VLOOKUP(C122,Гонки!$E$2:$P$16,12,FALSE)) -> 81 | G122: Брытько Роман | H122: 1995 | I122: Brytko Roman | J122: Брытько Роман / Brytko Roman / 1995 | K122: М | L122: 53 | M122: 35.80246914 | N122: 185.03
A123: =Гонки!$C$4 -> Жук-трейл # 4 Минское Море | B123: =Гонки!$D$4 -> Трейл 25 | C123: Жук-трейл # 4 Минское Море Трейл 25 | D123: 26.71 | E123: М | F123: =IF(E123="Ж",VLOOKUP(C123,Гонки!$E$2:$P$16,11,FALSE),VLOOKUP(C123,Гонки!$E$2:$P$16,12,FALSE)) -> 81 | G123: Кохан Виталий | H123: 1982 | I123: Kohan Vitalij | J123: Кохан Виталий / Kohan Vitalij / 1982 | K123: М | L123: 54 | M123: 34.56790123 | N123: 178.65
A124: =Гонки!$C$4 -> Жук-трейл # 4 Минское Море | B124: =Гонки!$D$4 -> Трейл 25 | C124: Жук-трейл # 4 Минское Море Трейл 25 | D124: 26.71 | E124: М | F124: =IF(E124="Ж",VLOOKUP(C124,Гонки!$E$2:$P$16,11,FALSE),VLOOKUP(C124,Гонки!$E$2:$P$16,12,FALSE)) -> 81 | G124: Шепетько Сергей | H124: 1987 | I124: Shepetko Sergej | J124: Шепетько Сергей / Shepetko Sergej / 1987 | K124: М | L124: 55 | M124: 33.33333333 | N124: 172.27
A125: =Гонки!$C$4 -> Жук-трейл # 4 Минское Море | B125: =Гонки!$D$4 -> Трейл 25 | C125: Жук-трейл # 4 Минское Море Трейл 25 | D125: 26.71 | E125: М | F125: =IF(E125="Ж",VLOOKUP(C125,Гонки!$E$2:$P$16,11,FALSE),VLOOKUP(C125,Гонки!$E$2:$P$16,12,FALSE)) -> 81 | G125: Ермак Алексей | H125: 1984 | I125: Ermak Aleksej | J125: Ермак Алексей / Ermak Aleksej / 1984 | K125: М | L125: 56 | M125: 32.09876543 | N125: 165.89
A126: =Гонки!$C$4 -> Жук-трейл # 4 Минское Море | B126: =Гонки!$D$4 -> Трейл 25 | C126: Жук-трейл # 4 Минское Море Трейл 25 | D126: 26.71 | E126: М | F126: =IF(E126="Ж",VLOOKUP(C126,Гонки!$E$2:$P$16,11,FALSE),VLOOKUP(C126,Гонки!$E$2:$P$16,12,FALSE)) -> 81 | G126: Шило Руслан | H126: 1993 | I126: Shilo Ruslan | J126: Шило Руслан / Shilo Ruslan / 1993 | K126: М | L126: 57 | M126: 30.86419753 | N126: 159.51
A127: =Гонки!$C$4 -> Жук-трейл # 4 Минское Море | B127: =Гонки!$D$4 -> Трейл 25 | C127: Жук-трейл # 4 Минское Море Трейл 25 | D127: 26.71 | E127: М | F127: =IF(E127="Ж",VLOOKUP(C127,Гонки!$E$2:$P$16,11,FALSE),VLOOKUP(C127,Гонки!$E$2:$P$16,12,FALSE)) -> 81 | G127: Шапелевич Максим | H127: 1987 | I127: Shapelevich Maksim | J127: Шапелевич Максим / Shapelevich Maksim / 1987 | K127: М | L127: 58 | M127: 29.62962963 | N127: 153.13
A128: =Гонки!$C$4 -> Жук-трейл # 4 Минское Море | B128: =Гонки!$D$4 -> Трейл 25 | C128: Жук-трейл # 4 Минское Море Трейл 25 | D128: 26.71 | E128: М | F128: =IF(E128="Ж",VLOOKUP(C128,Гонки!$E$2:$P$16,11,FALSE),VLOOKUP(C128,Гонки!$E$2:$P$16,12,FALSE)) -> 81 | G128: Якубовский Игорь | H128: 1984 | I128: Yakubovskij Igor | J128: Якубовский Игорь / Yakubovskij Igor / 1984 | K128: М | L128: 59 | M128: 28.39506173 | N128: 146.75
A129: =Гонки!$C$4 -> Жук-трейл # 4 Минское Море | B129: =Гонки!$D$4 -> Трейл 25 | C129: Жук-трейл # 4 Минское Море Трейл 25 | D129: 26.71 | E129: М | F129: =IF(E129="Ж",VLOOKUP(C129,Гонки!$E$2:$P$16,11,FALSE),VLOOKUP(C129,Гонки!$E$2:$P$16,12,FALSE)) -> 81 | G129: Жучков Алексей | H129: 1985 | I129: Zhuchkov Aleksej | J129: Жучков Алексей / Zhuchkov Aleksej / 1985 | K129: М | L129: 60 | M129: 27.16049383 | N129: 140.37
A130: =Гонки!$C$4 -> Жук-трейл # 4 Минское Море | B130: =Гонки!$D$4 -> Трейл 25 | C130: Жук-трейл # 4 Минское Море Трейл 25 | D130: =VLOOKUP(C130,Список_гонок,10,FALSE) -> 26.71 | E130: М | F130: =IF(E130="Ж",VLOOKUP(C130,Гонки!$E$2:$P$16,11,FALSE),VLOOKUP(C130,Гонки!$E$2:$P$16,12,FALSE)) -> 81 | G130: Харитонов Иван | H130: 1973 | I130: Haritonov Ivan | J130: Харитонов Иван / Haritonov Ivan / 1973 | K130: М | L130: 61 | M130: 25.92592593 | N130: 133.99
A131: =Гонки!$C$4 -> Жук-трейл # 4 Минское Море | B131: =Гонки!$D$4 -> Трейл 25 | C131: =CONCATENATE(A131," ",B131) -> Жук-трейл # 4 Минское Море Трейл 25 | D131: 26.71 | E131: М | F131: =IF(E131="Ж",VLOOKUP(C131,Гонки!$E$2:$P$16,11,FALSE),VLOOKUP(C131,Гонки!$E$2:$P$16,12,FALSE)) -> 81 | G131: Тюев Даниил | H131: 1977 | I131: =Translit(G131) -> Tyuev Daniil | J131: =CONCATENATE(G131," / ",I131," / ",H131) -> Тюев Даниил / Tyuev Daniil / 1977 | K131: =E131 -> М | L131: 62 | M131: =100-((L131-1)/F131)*100 -> 24.69135802 | N131: =ROUND(SQRT(D131)*M131,2) -> 127.61
A132: =Гонки!$C$4 -> Жук-трейл # 4 Минское Море | B132: =Гонки!$D$4 -> Трейл 25 | C132: Жук-трейл # 4 Минское Море Трейл 25 | D132: 26.71 | E132: М | F132: =IF(E132="Ж",VLOOKUP(C132,Гонки!$E$2:$P$16,11,FALSE),VLOOKUP(C132,Гонки!$E$2:$P$16,12,FALSE)) -> 81 | G132: Иолтуховский Владислав | H132: 1971 | I132: Ioltuhovskij Vladislav | J132: Иолтуховский Владислав / Ioltuhovskij Vladislav / 1971 | K132: М | L132: 63 | M132: 23.45679012 | N132: 121.23
A133: =Гонки!$C$4 -> Жук-трейл # 4 Минское Море | B133: =Гонки!$D$4 -> Трейл 25 | C133: Жук-трейл # 4 Минское Море Трейл 25 | D133: 26.71 | E133: М | F133: =IF(E133="Ж",VLOOKUP(C133,Гонки!$E$2:$P$16,11,FALSE),VLOOKUP(C133,Гонки!$E$2:$P$16,12,FALSE)) -> 81 | G133: Херзен Андрей | H133: 1984 | I133: Herzen Andrej | J133: Херзен Андрей / Herzen Andrej / 1984 | K133: М | L133: 64 | M133: 22.22222222 | N133: 114.85
A134: =Гонки!$C$4 -> Жук-трейл # 4 Минское Море | B134: =Гонки!$D$4 -> Трейл 25 | C134: Жук-трейл # 4 Минское Море Трейл 25 | D134: 26.71 | E134: М | F134: =IF(E134="Ж",VLOOKUP(C134,Гонки!$E$2:$P$16,11,FALSE),VLOOKUP(C134,Гонки!$E$2:$P$16,12,FALSE)) -> 81 | G134: Мурашов Владимир | H134: 1983 | I134: Murashov Vladimir | J134: Мурашов Владимир / Murashov Vladimir / 1983 | K134: М | L134: 65 | M134: 20.98765432 | N134: 108.47
A135: =Гонки!$C$4 -> Жук-трейл # 4 Минское Море | B135: =Гонки!$D$4 -> Трейл 25 | C135: Жук-трейл # 4 Минское Море Трейл 25 | D135: 26.71 | E135: М | F135: =IF(E135="Ж",VLOOKUP(C135,Гонки!$E$2:$P$16,11,FALSE),VLOOKUP(C135,Гонки!$E$2:$P$16,12,FALSE)) -> 81 | G135: Михно Борис | H135: 1982 | I135: Mihno Boris | J135: Михно Борис / Mihno Boris / 1982 | K135: М | L135: 66 | M135: 19.75308642 | N135: 102.09
A136: =Гонки!$C$4 -> Жук-трейл # 4 Минское Море | B136: =Гонки!$D$5 -> Трейл 16 | C136: Жук-трейл # 4 Минское Море Трейл 16 | D136: 19.14 | E136: Ж | F136: =IF(E136="Ж",VLOOKUP(C136,Гонки!$E$2:$P$16,11,FALSE),VLOOKUP(C136,Гонки!$E$2:$P$16,12,FALSE)) -> 27 | G136: Милинкевич Елена | H136: 1977 | I136: Milinkevich Elena | J136: Милинкевич Елена / Milinkevich Elena / 1977 | K136: Ж | L136: 1 | M136: 100 | N136: 437.49
A137: =Гонки!$C$4 -> Жук-трейл # 4 Минское Море | B137: =Гонки!$D$5 -> Трейл 16 | C137: Жук-трейл # 4 Минское Море Трейл 16 | D137: 19.14 | E137: Ж | F137: =IF(E137="Ж",VLOOKUP(C137,Гонки!$E$2:$P$16,11,FALSE),VLOOKUP(C137,Гонки!$E$2:$P$16,12,FALSE)) -> 27 | G137: Казакевич Ирина | H137: 1969 | I137: Kazakevich Irina | J137: Казакевич Ирина / Kazakevich Irina / 1969 | K137: Ж | L137: 2 | M137: 96.2962963 | N137: 421.29
A138: =Гонки!$C$4 -> Жук-трейл # 4 Минское Море | B138: =Гонки!$D$5 -> Трейл 16 | C138: Жук-трейл # 4 Минское Море Трейл 16 | D138: 19.14 | E138: Ж | F138: =IF(E138="Ж",VLOOKUP(C138,Гонки!$E$2:$P$16,11,FALSE),VLOOKUP(C138,Гонки!$E$2:$P$16,12,FALSE)) -> 27 | G138: Журавлёва Оксана | H138: 1980 | I138: Zhuravljova Oksana | J138: Журавлёва Оксана / Zhuravljova Oksana / 1980 | K138: Ж | L138: 3 | M138: 92.59259259 | N138: 405.09
A139: =Гонки!$C$4 -> Жук-трейл # 4 Минское Море | B139: =Гонки!$D$5 -> Трейл 16 | C139: Жук-трейл # 4 Минское Море Трейл 16 | D139: 19.14 | E139: Ж | F139: =IF(E139="Ж",VLOOKUP(C139,Гонки!$E$2:$P$16,11,FALSE),VLOOKUP(C139,Гонки!$E$2:$P$16,12,FALSE)) -> 27 | G139: Танасейчук Анна | H139: 1983 | I139: Tanasejchuk Anna | J139: Танасейчук Анна / Tanasejchuk Anna / 1983 | K139: Ж | L139: 4 | M139: 88.88888889 | N139: 388.88
A140: =Гонки!$C$4 -> Жук-трейл # 4 Минское Море | B140: =Гонки!$D$5 -> Трейл 16 | C140: Жук-трейл # 4 Минское Море Трейл 16 | D140: 19.14 | E140: Ж | F140: =IF(E140="Ж",VLOOKUP(C140,Гонки!$E$2:$P$16,11,FALSE),VLOOKUP(C140,Гонки!$E$2:$P$16,12,FALSE)) -> 27 | G140: Пухаева Светлана | H140: 1980 | I140: Puhaeva Svetlana | J140: Пухаева Светлана / Puhaeva Svetlana / 1980 | K140: Ж | L140: 5 | M140: 85.18518519 | N140: 372.68
A141: =Гонки!$C$4 -> Жук-трейл # 4 Минское Море | B141: =Гонки!$D$5 -> Трейл 16 | C141: Жук-трейл # 4 Минское Море Трейл 16 | D141: 19.14 | E141: Ж | F141: =IF(E141="Ж",VLOOKUP(C141,Гонки!$E$2:$P$16,11,FALSE),VLOOKUP(C141,Гонки!$E$2:$P$16,12,FALSE)) -> 27 | G141: Ямбушева Катерина | H141: 1987 | I141: Yambusheva Katerina | J141: Ямбушева Катерина / Yambusheva Katerina / 1987 | K141: Ж | L141: 6 | M141: 81.48148148 | N141: 356.48
A142: =Гонки!$C$4 -> Жук-трейл # 4 Минское Море | B142: =Гонки!$D$5 -> Трейл 16 | C142: Жук-трейл # 4 Минское Море Трейл 16 | D142: 19.14 | E142: Ж | F142: =IF(E142="Ж",VLOOKUP(C142,Гонки!$E$2:$P$16,11,FALSE),VLOOKUP(C142,Гонки!$E$2:$P$16,12,FALSE)) -> 27 | G142: Едомская Вольга | H142: 1987 | I142: Edomskaya Volga | J142: Едомская Вольга / Edomskaya Volga / 1987 | K142: Ж | L142: 7 | M142: 77.77777778 | N142: 340.27
A143: =Гонки!$C$4 -> Жук-трейл # 4 Минское Море | B143: =Гонки!$D$5 -> Трейл 16 | C143: Жук-трейл # 4 Минское Море Трейл 16 | D143: 19.14 | E143: Ж | F143: =IF(E143="Ж",VLOOKUP(C143,Гонки!$E$2:$P$16,11,FALSE),VLOOKUP(C143,Гонки!$E$2:$P$16,12,FALSE)) -> 27 | G143: Сикорская Настя | H143: 1983 | I143: Sikorskaya Nastya | J143: Сикорская Настя / Sikorskaya Nastya / 1983 | K143: Ж | L143: 8 | M143: 74.07407407 | N143: 324.07
A144: =Гонки!$C$4 -> Жук-трейл # 4 Минское Море | B144: =Гонки!$D$5 -> Трейл 16 | C144: Жук-трейл # 4 Минское Море Трейл 16 | D144: 19.14 | E144: Ж | F144: =IF(E144="Ж",VLOOKUP(C144,Гонки!$E$2:$P$16,11,FALSE),VLOOKUP(C144,Гонки!$E$2:$P$16,12,FALSE)) -> 27 | G144: Невмержицкая Анна | H144: 1997 | I144: Nevmerzhitskaya Anna | J144: Невмержицкая Анна / Nevmerzhitskaya Anna / 1997 | K144: Ж | L144: 9 | M144: 70.37037037 | N144: 307.87
A145: =Гонки!$C$4 -> Жук-трейл # 4 Минское Море | B145: =Гонки!$D$5 -> Трейл 16 | C145: Жук-трейл # 4 Минское Море Трейл 16 | D145: 19.14 | E145: Ж | F145: =IF(E145="Ж",VLOOKUP(C145,Гонки!$E$2:$P$16,11,FALSE),VLOOKUP(C145,Гонки!$E$2:$P$16,12,FALSE)) -> 27 | G145: Таранко Марта | H145: 1990 | I145: Taranko Marta | J145: Таранко Марта / Taranko Marta / 1990 | K145: Ж | L145: 10 | M145: 66.66666667 | N145: 291.66
A146: =Гонки!$C$4 -> Жук-трейл # 4 Минское Море | B146: =Гонки!$D$5 -> Трейл 16 | C146: Жук-трейл # 4 Минское Море Трейл 16 | D146: 19.14 | E146: Ж | F146: =IF(E146="Ж",VLOOKUP(C146,Гонки!$E$2:$P$16,11,FALSE),VLOOKUP(C146,Гонки!$E$2:$P$16,12,FALSE)) -> 27 | G146: Григорьева Светлана | H146: 1984 | I146: Grigoreva Svetlana | J146: Григорьева Светлана / Grigoreva Svetlana / 1984 | K146: Ж | L146: 11 | M146: 62.96296296 | N146: 275.46
A147: =Гонки!$C$4 -> Жук-трейл # 4 Минское Море | B147: =Гонки!$D$5 -> Трейл 16 | C147: Жук-трейл # 4 Минское Море Трейл 16 | D147: 19.14 | E147: Ж | F147: =IF(E147="Ж",VLOOKUP(C147,Гонки!$E$2:$P$16,11,FALSE),VLOOKUP(C147,Гонки!$E$2:$P$16,12,FALSE)) -> 27 | G147: Чеботаева Валерия | H147: 1993 | I147: Chebotaeva Valeriya | J147: Чеботаева Валерия / Chebotaeva Valeriya / 1993 | K147: Ж | L147: 12 | M147: 59.25925926 | N147: 259.26
A148: =Гонки!$C$4 -> Жук-трейл # 4 Минское Море | B148: =Гонки!$D$5 -> Трейл 16 | C148: Жук-трейл # 4 Минское Море Трейл 16 | D148: 19.14 | E148: Ж | F148: =IF(E148="Ж",VLOOKUP(C148,Гонки!$E$2:$P$16,11,FALSE),VLOOKUP(C148,Гонки!$E$2:$P$16,12,FALSE)) -> 27 | G148: Малаховская Татьяна | H148: 1989 | I148: Malahovskaya Tatyana | J148: Малаховская Татьяна / Malahovskaya Tatyana / 1989 | K148: Ж | L148: 13 | M148: 55.55555556 | N148: 243.05
A149: =Гонки!$C$4 -> Жук-трейл # 4 Минское Море | B149: =Гонки!$D$5 -> Трейл 16 | C149: Жук-трейл # 4 Минское Море Трейл 16 | D149: 19.14 | E149: Ж | F149: =IF(E149="Ж",VLOOKUP(C149,Гонки!$E$2:$P$16,11,FALSE),VLOOKUP(C149,Гонки!$E$2:$P$16,12,FALSE)) -> 27 | G149: Булеева Наталья | H149: 1969 | I149: Buleeva Natalya | J149: Булеева Наталья / Buleeva Natalya / 1969 | K149: Ж | L149: 14 | M149: 51.85185185 | N149: 226.85
A150: =Гонки!$C$4 -> Жук-трейл # 4 Минское Море | B150: =Гонки!$D$5 -> Трейл 16 | C150: Жук-трейл # 4 Минское Море Трейл 16 | D150: 19.14 | E150: Ж | F150: =IF(E150="Ж",VLOOKUP(C150,Гонки!$E$2:$P$16,11,FALSE),VLOOKUP(C150,Гонки!$E$2:$P$16,12,FALSE)) -> 27 | G150: Липницкая Виктория | H150: 1987 | I150: Lipnitskaya Viktoriya | J150: Липницкая Виктория / Lipnitskaya Viktoriya / 1987 | K150: Ж | L150: 15 | M150: 48.14814815 | N150: 210.64
A151: =Гонки!$C$4 -> Жук-трейл # 4 Минское Море | B151: =Гонки!$D$5 -> Трейл 16 | C151: Жук-трейл # 4 Минское Море Трейл 16 | D151: 19.14 | E151: Ж | F151: =IF(E151="Ж",VLOOKUP(C151,Гонки!$E$2:$P$16,11,FALSE),VLOOKUP(C151,Гонки!$E$2:$P$16,12,FALSE)) -> 27 | G151: Грейд Юлия | H151: 1986 | I151: Grejd Yuliya | J151: Грейд Юлия / Grejd Yuliya / 1986 | K151: Ж | L151: 16 | M151: 44.44444444 | N151: 194.44
A152: =Гонки!$C$4 -> Жук-трейл # 4 Минское Море | B152: =Гонки!$D$5 -> Трейл 16 | C152: Жук-трейл # 4 Минское Море Трейл 16 | D152: 19.14 | E152: Ж | F152: =IF(E152="Ж",VLOOKUP(C152,Гонки!$E$2:$P$16,11,FALSE),VLOOKUP(C152,Гонки!$E$2:$P$16,12,FALSE)) -> 27 | G152: Гринько Анастасия | H152: 1993 | I152: Grinko Anastasiya | J152: Гринько Анастасия / Grinko Anastasiya / 1993 | K152: Ж | L152: 17 | M152: 40.74074074 | N152: 178.24
A153: =Гонки!$C$4 -> Жук-трейл # 4 Минское Море | B153: =Гонки!$D$5 -> Трейл 16 | C153: Жук-трейл # 4 Минское Море Трейл 16 | D153: 19.14 | E153: Ж | F153: =IF(E153="Ж",VLOOKUP(C153,Гонки!$E$2:$P$16,11,FALSE),VLOOKUP(C153,Гонки!$E$2:$P$16,12,FALSE)) -> 27 | G153: Трубкина Инна | H153: 1972 | I153: Trubkina Inna | J153: Трубкина Инна / Trubkina Inna / 1972 | K153: Ж | L153: 18 | M153: 37.03703704 | N153: 162.03
A154: =Гонки!$C$4 -> Жук-трейл # 4 Минское Море | B154: =Гонки!$D$5 -> Трейл 16 | C154: Жук-трейл # 4 Минское Море Трейл 16 | D154: 19.14 | E154: Ж | F154: =IF(E154="Ж",VLOOKUP(C154,Гонки!$E$2:$P$16,11,FALSE),VLOOKUP(C154,Гонки!$E$2:$P$16,12,FALSE)) -> 27 | G154: Сильченко Наталья | I154: Silchenko Natalya | J154: Сильченко Наталья / Silchenko Natalya / | K154: Ж | L154: 19 | M154: 33.33333333 | N154: 145.83
A155: =Гонки!$C$4 -> Жук-трейл # 4 Минское Море | B155: =Гонки!$D$5 -> Трейл 16 | C155: Жук-трейл # 4 Минское Море Трейл 16 | D155: 19.14 | E155: Ж | F155: =IF(E155="Ж",VLOOKUP(C155,Гонки!$E$2:$P$16,11,FALSE),VLOOKUP(C155,Гонки!$E$2:$P$16,12,FALSE)) -> 27 | G155: Мурашкина Галина | H155: 1988 | I155: Murashkina Galina | J155: Мурашкина Галина / Murashkina Galina / 1988 | K155: Ж | L155: 20 | M155: 29.62962963 | N155: 129.63
A156: =Гонки!$C$4 -> Жук-трейл # 4 Минское Море | B156: =Гонки!$D$5 -> Трейл 16 | C156: Жук-трейл # 4 Минское Море Трейл 16 | D156: 19.14 | E156: Ж | F156: =IF(E156="Ж",VLOOKUP(C156,Гонки!$E$2:$P$16,11,FALSE),VLOOKUP(C156,Гонки!$E$2:$P$16,12,FALSE)) -> 27 | G156: Туровец Ольга | H156: 1979 | I156: Turovets Olga | J156: Туровец Ольга / Turovets Olga / 1979 | K156: Ж | L156: 21 | M156: 25.92592593 | N156: 113.42
A157: =Гонки!$C$4 -> Жук-трейл # 4 Минское Море | B157: =Гонки!$D$5 -> Трейл 16 | C157: Жук-трейл # 4 Минское Море Трейл 16 | D157: 19.14 | E157: Ж | F157: =IF(E157="Ж",VLOOKUP(C157,Гонки!$E$2:$P$16,11,FALSE),VLOOKUP(C157,Гонки!$E$2:$P$16,12,FALSE)) -> 27 | G157: Вдовиченко Ирина | H157: 1989 | I157: Vdovichenko Irina | J157: Вдовиченко Ирина / Vdovichenko Irina / 1989 | K157: Ж | L157: 22 | M157: 22.22222222 | N157: 97.22
A158: =Гонки!$C$4 -> Жук-трейл # 4 Минское Море | B158: =Гонки!$D$5 -> Трейл 16 | C158: Жук-трейл # 4 Минское Море Трейл 16 | D158: 19.14 | E158: Ж | F158: =IF(E158="Ж",VLOOKUP(C158,Гонки!$E$2:$P$16,11,FALSE),VLOOKUP(C158,Гонки!$E$2:$P$16,12,FALSE)) -> 27 | G158: Петкевич Лилия | H158: 1990 | I158: Petkevich Liliya | J158: Петкевич Лилия / Petkevich Liliya / 1990 | K158: Ж | L158: 23 | M158: 18.51851852 | N158: 81.02
A159: =Гонки!$C$4 -> Жук-трейл # 4 Минское Море | B159: =Гонки!$D$5 -> Трейл 16 | C159: Жук-трейл # 4 Минское Море Трейл 16 | D159: 19.14 | E159: М | F159: =IF(E159="Ж",VLOOKUP(C159,Гонки!$E$2:$P$16,11,FALSE),VLOOKUP(C159,Гонки!$E$2:$P$16,12,FALSE)) -> 51 | G159: Стасевич Александр | H159: 1987 | I159: Stasevich Aleksandr | J159: Стасевич Александр / Stasevich Aleksandr / 1987 | K159: М | L159: 1 | M159: 100 | N159: 437.49
A160: =Гонки!$C$4 -> Жук-трейл # 4 Минское Море | B160: =Гонки!$D$5 -> Трейл 16 | C160: Жук-трейл # 4 Минское Море Трейл 16 | D160: 19.14 | E160: М | F160: =IF(E160="Ж",VLOOKUP(C160,Гонки!$E$2:$P$16,11,FALSE),VLOOKUP(C160,Гонки!$E$2:$P$16,12,FALSE)) -> 51 | G160: Волков Николай | H160: 1989 | I160: Volkov Nikolaj | J160: Волков Николай / Volkov Nikolaj / 1989 | K160: М | L160: 2 | M160: 98.03921569 | N160: 428.91
A161: =Гонки!$C$4 -> Жук-трейл # 4 Минское Море | B161: =Гонки!$D$5 -> Трейл 16 | C161: Жук-трейл # 4 Минское Море Трейл 16 | D161: 19.14 | E161: М | F161: =IF(E161="Ж",VLOOKUP(C161,Гонки!$E$2:$P$16,11,FALSE),VLOOKUP(C161,Гонки!$E$2:$P$16,12,FALSE)) -> 51 | G161: Захаркин Сергей | H161: 1976 | I161: Zaharkin Sergej | J161: Захаркин Сергей / Zaharkin Sergej / 1976 | K161: М | L161: 3 | M161: 96.07843137 | N161: 420.34
A162: =Гонки!$C$4 -> Жук-трейл # 4 Минское Море | B162: =Гонки!$D$5 -> Трейл 16 | C162: Жук-трейл # 4 Минское Море Трейл 16 | D162: 19.14 | E162: М | F162: =IF(E162="Ж",VLOOKUP(C162,Гонки!$E$2:$P$16,11,FALSE),VLOOKUP(C162,Гонки!$E$2:$P$16,12,FALSE)) -> 51 | G162: Чеботаев Сергей | H162: 1989 | I162: Chebotaev Sergej | J162: Чеботаев Сергей / Chebotaev Sergej / 1989 | K162: М | L162: 4 | M162: 94.11764706 | N162: 411.76
A163: =Гонки!$C$4 -> Жук-трейл # 4 Минское Море | B163: =Гонки!$D$5 -> Трейл 16 | C163: Жук-трейл # 4 Минское Море Трейл 16 | D163: 19.14 | E163: М | F163: =IF(E163="Ж",VLOOKUP(C163,Гонки!$E$2:$P$16,11,FALSE),VLOOKUP(C163,Гонки!$E$2:$P$16,12,FALSE)) -> 51 | G163: Бузо Александр | H163: 1982 | I163: Buzo Aleksandr | J163: Бузо Александр / Buzo Aleksandr / 1982 | K163: М | L163: 5 | M163: 92.15686275 | N163: 403.18
A164: =Гонки!$C$4 -> Жук-трейл # 4 Минское Море | B164: =Гонки!$D$5 -> Трейл 16 | C164: Жук-трейл # 4 Минское Море Трейл 16 | D164: 19.14 | E164: М | F164: =IF(E164="Ж",VLOOKUP(C164,Гонки!$E$2:$P$16,11,FALSE),VLOOKUP(C164,Гонки!$E$2:$P$16,12,FALSE)) -> 51 | G164: Сидоревич Александр | H164: 1985 | I164: Sidorevich Aleksandr | J164: Сидоревич Александр / Sidorevich Aleksandr / 1985 | K164: М | L164: 6 | M164: 90.19607843 | N164: 394.6
A165: =Гонки!$C$4 -> Жук-трейл # 4 Минское Море | B165: =Гонки!$D$5 -> Трейл 16 | C165: Жук-трейл # 4 Минское Море Трейл 16 | D165: 19.14 | E165: М | F165: =IF(E165="Ж",VLOOKUP(C165,Гонки!$E$2:$P$16,11,FALSE),VLOOKUP(C165,Гонки!$E$2:$P$16,12,FALSE)) -> 51 | G165: Михнюк Виктор | H165: 1990 | I165: Mihnyuk Viktor | J165: Михнюк Виктор / Mihnyuk Viktor / 1990 | K165: М | L165: 7 | M165: 88.23529412 | N165: 386.02
A166: =Гонки!$C$4 -> Жук-трейл # 4 Минское Море | B166: =Гонки!$D$5 -> Трейл 16 | C166: Жук-трейл # 4 Минское Море Трейл 16 | D166: 19.14 | E166: М | F166: =IF(E166="Ж",VLOOKUP(C166,Гонки!$E$2:$P$16,11,FALSE),VLOOKUP(C166,Гонки!$E$2:$P$16,12,FALSE)) -> 51 | G166: Крисенков Алексей | H166: 1983 | I166: Krisenkov Aleksej | J166: Крисенков Алексей / Krisenkov Aleksej / 1983 | K166: М | L166: 8 | M166: 86.2745098 | N166: 377.44
A167: =Гонки!$C$4 -> Жук-трейл # 4 Минское Море | B167: =Гонки!$D$5 -> Трейл 16 | C167: Жук-трейл # 4 Минское Море Трейл 16 | D167: 19.14 | E167: М | F167: =IF(E167="Ж",VLOOKUP(C167,Гонки!$E$2:$P$16,11,FALSE),VLOOKUP(C167,Гонки!$E$2:$P$16,12,FALSE)) -> 51 | G167: Нечаев Владимир | H167: 1995 | I167: Nechaev Vladimir | J167: Нечаев Владимир / Nechaev Vladimir / 1995 | K167: М | L167: 9 | M167: 84.31372549 | N167: 368.87
A168: =Гонки!$C$4 -> Жук-трейл # 4 Минское Море | B168: =Гонки!$D$5 -> Трейл 16 | C168: Жук-трейл # 4 Минское Море Трейл 16 | D168: 19.14 | E168: М | F168: =IF(E168="Ж",VLOOKUP(C168,Гонки!$E$2:$P$16,11,FALSE),VLOOKUP(C168,Гонки!$E$2:$P$16,12,FALSE)) -> 51 | G168: Пузаревский Роман | H168: 1994 | I168: Puzarevskij Roman | J168: Пузаревский Роман / Puzarevskij Roman / 1994 | K168: М | L168: 10 | M168: 82.35294118 | N168: 360.29
A169: =Гонки!$C$4 -> Жук-трейл # 4 Минское Море | B169: =Гонки!$D$5 -> Трейл 16 | C169: Жук-трейл # 4 Минское Море Трейл 16 | D169: 19.14 | E169: М | F169: =IF(E169="Ж",VLOOKUP(C169,Гонки!$E$2:$P$16,11,FALSE),VLOOKUP(C169,Гонки!$E$2:$P$16,12,FALSE)) -> 51 | G169: Лойко Сергей | H169: 1985 | I169: Lojko Sergej | J169: Лойко Сергей / Lojko Sergej / 1985 | K169: М | L169: 11 | M169: 80.39215686 | N169: 351.71
A170: =Гонки!$C$4 -> Жук-трейл # 4 Минское Море | B170: =Гонки!$D$5 -> Трейл 16 | C170: Жук-трейл # 4 Минское Море Трейл 16 | D170: 19.14 | E170: М | F170: =IF(E170="Ж",VLOOKUP(C170,Гонки!$E$2:$P$16,11,FALSE),VLOOKUP(C170,Гонки!$E$2:$P$16,12,FALSE)) -> 51 | G170: Зеленко Дмитрий | H170: 1987 | I170: Zelenko Dmitrij | J170: Зеленко Дмитрий / Zelenko Dmitrij / 1987 | K170: М | L170: 12 | M170: 78.43137255 | N170: 343.13
A171: =Гонки!$C$4 -> Жук-трейл # 4 Минское Море | B171: =Гонки!$D$5 -> Трейл 16 | C171: Жук-трейл # 4 Минское Море Трейл 16 | D171: 19.14 | E171: М | F171: =IF(E171="Ж",VLOOKUP(C171,Гонки!$E$2:$P$16,11,FALSE),VLOOKUP(C171,Гонки!$E$2:$P$16,12,FALSE)) -> 51 | G171: Юкевич Александр | H171: 1983 | I171: Yukevich Aleksandr | J171: Юкевич Александр / Yukevich Aleksandr / 1983 | K171: М | L171: 13 | M171: 76.47058824 | N171: 334.55
A172: =Гонки!$C$4 -> Жук-трейл # 4 Минское Море | B172: =Гонки!$D$5 -> Трейл 16 | C172: Жук-трейл # 4 Минское Море Трейл 16 | D172: 19.14 | E172: М | F172: =IF(E172="Ж",VLOOKUP(C172,Гонки!$E$2:$P$16,11,FALSE),VLOOKUP(C172,Гонки!$E$2:$P$16,12,FALSE)) -> 51 | G172: Павленко Юрий | H172: 1983 | I172: Pavlenko Yurij | J172: Павленко Юрий / Pavlenko Yurij / 1983 | K172: М | L172: 14 | M172: 74.50980392 | N172: 325.98
A173: =Гонки!$C$4 -> Жук-трейл # 4 Минское Море | B173: =Гонки!$D$5 -> Трейл 16 | C173: Жук-трейл # 4 Минское Море Трейл 16 | D173: 19.14 | E173: М | F173: =IF(E173="Ж",VLOOKUP(C173,Гонки!$E$2:$P$16,11,FALSE),VLOOKUP(C173,Гонки!$E$2:$P$16,12,FALSE)) -> 51 | G173: Слободько Дмитрий | H173: 1984 | I173: Slobodko Dmitrij | J173: Слободько Дмитрий / Slobodko Dmitrij / 1984 | K173: М | L173: 15 | M173: 72.54901961 | N173: 317.4
A174: =Гонки!$C$4 -> Жук-трейл # 4 Минское Море | B174: =Гонки!$D$5 -> Трейл 16 | C174: Жук-трейл # 4 Минское Море Трейл 16 | D174: 19.14 | E174: М | F174: =IF(E174="Ж",VLOOKUP(C174,Гонки!$E$2:$P$16,11,FALSE),VLOOKUP(C174,Гонки!$E$2:$P$16,12,FALSE)) -> 51 | G174: Бунос Анатолий | H174: 1956 | I174: Bunos Anatolij | J174: Бунос Анатолий / Bunos Anatolij / 1956 | K174: М | L174: 16 | M174: 70.58823529 | N174: 308.82
A175: =Гонки!$C$4 -> Жук-трейл # 4 Минское Море | B175: =Гонки!$D$5 -> Трейл 16 | C175: Жук-трейл # 4 Минское Море Трейл 16 | D175: 19.14 | E175: М | F175: =IF(E175="Ж",VLOOKUP(C175,Гонки!$E$2:$P$16,11,FALSE),VLOOKUP(C175,Гонки!$E$2:$P$16,12,FALSE)) -> 51 | G175: Савич Евгений | H175: 1980 | I175: Savich Evgenij | J175: Савич Евгений / Savich Evgenij / 1980 | K175: М | L175: 17 | M175: 68.62745098 | N175: 300.24
A176: =Гонки!$C$4 -> Жук-трейл # 4 Минское Море | B176: =Гонки!$D$5 -> Трейл 16 | C176: Жук-трейл # 4 Минское Море Трейл 16 | D176: 19.14 | E176: М | F176: =IF(E176="Ж",VLOOKUP(C176,Гонки!$E$2:$P$16,11,FALSE),VLOOKUP(C176,Гонки!$E$2:$P$16,12,FALSE)) -> 51 | G176: Печёнов Георгий | H176: 1975 | I176: Pechjonov Georgij | J176: Печёнов Георгий / Pechjonov Georgij / 1975 | K176: М | L176: 18 | M176: 66.66666667 | N176: 291.66
A177: =Гонки!$C$4 -> Жук-трейл # 4 Минское Море | B177: =Гонки!$D$5 -> Трейл 16 | C177: Жук-трейл # 4 Минское Море Трейл 16 | D177: 19.14 | E177: М | F177: =IF(E177="Ж",VLOOKUP(C177,Гонки!$E$2:$P$16,11,FALSE),VLOOKUP(C177,Гонки!$E$2:$P$16,12,FALSE)) -> 51 | G177: Верещако Павел | H177: 1988 | I177: Vereschako Pavel | J177: Верещако Павел / Vereschako Pavel / 1988 | K177: М | L177: 19 | M177: 64.70588235 | N177: 283.08
A178: =Гонки!$C$4 -> Жук-трейл # 4 Минское Море | B178: =Гонки!$D$5 -> Трейл 16 | C178: Жук-трейл # 4 Минское Море Трейл 16 | D178: 19.14 | E178: М | F178: =IF(E178="Ж",VLOOKUP(C178,Гонки!$E$2:$P$16,11,FALSE),VLOOKUP(C178,Гонки!$E$2:$P$16,12,FALSE)) -> 51 | G178: Искорцев Алексей | H178: 1980 | I178: Iskortsev Aleksej | J178: Искорцев Алексей / Iskortsev Aleksej / 1980 | K178: М | L178: 20 | M178: 62.74509804 | N178: 274.51
A179: =Гонки!$C$4 -> Жук-трейл # 4 Минское Море | B179: =Гонки!$D$5 -> Трейл 16 | C179: Жук-трейл # 4 Минское Море Трейл 16 | D179: 19.14 | E179: М | F179: =IF(E179="Ж",VLOOKUP(C179,Гонки!$E$2:$P$16,11,FALSE),VLOOKUP(C179,Гонки!$E$2:$P$16,12,FALSE)) -> 51 | G179: Игнатович Александр | H179: 1992 | I179: Ignatovich Aleksandr | J179: Игнатович Александр / Ignatovich Aleksandr / 1992 | K179: М | L179: 21 | M179: 60.78431373 | N179: 265.93
A180: =Гонки!$C$4 -> Жук-трейл # 4 Минское Море | B180: =Гонки!$D$5 -> Трейл 16 | C180: Жук-трейл # 4 Минское Море Трейл 16 | D180: 19.14 | E180: М | F180: =IF(E180="Ж",VLOOKUP(C180,Гонки!$E$2:$P$16,11,FALSE),VLOOKUP(C180,Гонки!$E$2:$P$16,12,FALSE)) -> 51 | G180: Ролдугин Михаил | H180: 1987 | I180: Roldugin Mihail | J180: Ролдугин Михаил / Roldugin Mihail / 1987 | K180: М | L180: 22 | M180: 58.82352941 | N180: 257.35
A181: =Гонки!$C$4 -> Жук-трейл # 4 Минское Море | B181: =Гонки!$D$5 -> Трейл 16 | C181: Жук-трейл # 4 Минское Море Трейл 16 | D181: 19.14 | E181: М | F181: =IF(E181="Ж",VLOOKUP(C181,Гонки!$E$2:$P$16,11,FALSE),VLOOKUP(C181,Гонки!$E$2:$P$16,12,FALSE)) -> 51 | G181: Ладеев Дмитрий | H181: 1981 | I181: Ladeev Dmitrij | J181: Ладеев Дмитрий / Ladeev Dmitrij / 1981 | K181: М | L181: 23 | M181: 56.8627451 | N181: 248.77
A182: =Гонки!$C$4 -> Жук-трейл # 4 Минское Море | B182: =Гонки!$D$5 -> Трейл 16 | C182: Жук-трейл # 4 Минское Море Трейл 16 | D182: 19.14 | E182: М | F182: =IF(E182="Ж",VLOOKUP(C182,Гонки!$E$2:$P$16,11,FALSE),VLOOKUP(C182,Гонки!$E$2:$P$16,12,FALSE)) -> 51 | G182: Лукьянов Александр | H182: 1979 | I182: Lukyanov Aleksandr | J182: Лукьянов Александр / Lukyanov Aleksandr / 1979 | K182: М | L182: 24 | M182: 54.90196078 | N182: 240.19
A183: =Гонки!$C$4 -> Жук-трейл # 4 Минское Море | B183: =Гонки!$D$5 -> Трейл 16 | C183: Жук-трейл # 4 Минское Море Трейл 16 | D183: 19.14 | E183: М | F183: =IF(E183="Ж",VLOOKUP(C183,Гонки!$E$2:$P$16,11,FALSE),VLOOKUP(C183,Гонки!$E$2:$P$16,12,FALSE)) -> 51 | G183: Жидович Вадим | H183: 1984 | I183: Zhidovich Vadim | J183: Жидович Вадим / Zhidovich Vadim / 1984 | K183: М | L183: 25 | M183: 52.94117647 | N183: 231.61
A184: =Гонки!$C$4 -> Жук-трейл # 4 Минское Море | B184: =Гонки!$D$5 -> Трейл 16 | C184: Жук-трейл # 4 Минское Море Трейл 16 | D184: 19.14 | E184: М | F184: =IF(E184="Ж",VLOOKUP(C184,Гонки!$E$2:$P$16,11,FALSE),VLOOKUP(C184,Гонки!$E$2:$P$16,12,FALSE)) -> 51 | G184: Ярмончик Игорь | H184: 1985 | I184: Yarmonchik Igor | J184: Ярмончик Игорь / Yarmonchik Igor / 1985 | K184: М | L184: 26 | M184: 50.98039216 | N184: 223.04
A185: =Гонки!$C$4 -> Жук-трейл # 4 Минское Море | B185: =Гонки!$D$5 -> Трейл 16 | C185: Жук-трейл # 4 Минское Море Трейл 16 | D185: 19.14 | E185: М | F185: =IF(E185="Ж",VLOOKUP(C185,Гонки!$E$2:$P$16,11,FALSE),VLOOKUP(C185,Гонки!$E$2:$P$16,12,FALSE)) -> 51 | G185: Скляр Антон | H185: 1983 | I185: Sklyar Anton | J185: Скляр Антон / Sklyar Anton / 1983 | K185: М | L185: 27 | M185: 49.01960784 | N185: 214.46
A186: =Гонки!$C$4 -> Жук-трейл # 4 Минское Море | B186: =Гонки!$D$5 -> Трейл 16 | C186: Жук-трейл # 4 Минское Море Трейл 16 | D186: 19.14 | E186: М | F186: =IF(E186="Ж",VLOOKUP(C186,Гонки!$E$2:$P$16,11,FALSE),VLOOKUP(C186,Гонки!$E$2:$P$16,12,FALSE)) -> 51 | G186: Пугач Вадим | H186: 1985 | I186: Pugach Vadim | J186: Пугач Вадим / Pugach Vadim / 1985 | K186: М | L186: 28 | M186: 47.05882353 | N186: 205.88
A187: =Гонки!$C$4 -> Жук-трейл # 4 Минское Море | B187: =Гонки!$D$5 -> Трейл 16 | C187: Жук-трейл # 4 Минское Море Трейл 16 | D187: 19.14 | E187: М | F187: =IF(E187="Ж",VLOOKUP(C187,Гонки!$E$2:$P$16,11,FALSE),VLOOKUP(C187,Гонки!$E$2:$P$16,12,FALSE)) -> 51 | G187: Зайчук Кирилл | H187: 1990 | I187: Zajchuk Kirill | J187: Зайчук Кирилл / Zajchuk Kirill / 1990 | K187: М | L187: 29 | M187: 45.09803922 | N187: 197.3
A188: =Гонки!$C$4 -> Жук-трейл # 4 Минское Море | B188: =Гонки!$D$5 -> Трейл 16 | C188: Жук-трейл # 4 Минское Море Трейл 16 | D188: 19.14 | E188: М | F188: =IF(E188="Ж",VLOOKUP(C188,Гонки!$E$2:$P$16,11,FALSE),VLOOKUP(C188,Гонки!$E$2:$P$16,12,FALSE)) -> 51 | G188: Хацкевич Дмитрий | H188: 1985 | I188: Hatskevich Dmitrij | J188: Хацкевич Дмитрий / Hatskevich Dmitrij / 1985 | K188: М | L188: 30 | M188: 43.1372549 | N188: 188.72
A189: =Гонки!$C$4 -> Жук-трейл # 4 Минское Море | B189: =Гонки!$D$5 -> Трейл 16 | C189: Жук-трейл # 4 Минское Море Трейл 16 | D189: 19.14 | E189: М | F189: =IF(E189="Ж",VLOOKUP(C189,Гонки!$E$2:$P$16,11,FALSE),VLOOKUP(C189,Гонки!$E$2:$P$16,12,FALSE)) -> 51 | G189: Мертенс Андрей | H189: 1992 | I189: Mertens Andrej | J189: Мертенс Андрей / Mertens Andrej / 1992 | K189: М | L189: 31 | M189: 41.17647059 | N189: 180.14
A190: =Гонки!$C$4 -> Жук-трейл # 4 Минское Море | B190: =Гонки!$D$5 -> Трейл 16 | C190: Жук-трейл # 4 Минское Море Трейл 16 | D190: 19.14 | E190: М | F190: =IF(E190="Ж",VLOOKUP(C190,Гонки!$E$2:$P$16,11,FALSE),VLOOKUP(C190,Гонки!$E$2:$P$16,12,FALSE)) -> 51 | G190: Миканович Антон | H190: 1990 | I190: Mikanovich Anton | J190: Миканович Антон / Mikanovich Anton / 1990 | K190: М | L190: 32 | M190: 39.21568627 | N190: 171.57
A191: =Гонки!$C$4 -> Жук-трейл # 4 Минское Море | B191: =Гонки!$D$5 -> Трейл 16 | C191: Жук-трейл # 4 Минское Море Трейл 16 | D191: 19.14 | E191: М | F191: =IF(E191="Ж",VLOOKUP(C191,Гонки!$E$2:$P$16,11,FALSE),VLOOKUP(C191,Гонки!$E$2:$P$16,12,FALSE)) -> 51 | G191: Панковец Николай | H191: 1979 | I191: Pankovets Nikolaj | J191: Панковец Николай / Pankovets Nikolaj / 1979 | K191: М | L191: 33 | M191: 37.25490196 | N191: 162.99
A192: =Гонки!$C$4 -> Жук-трейл # 4 Минское Море | B192: =Гонки!$D$5 -> Трейл 16 | C192: Жук-трейл # 4 Минское Море Трейл 16 | D192: 19.14 | E192: М | F192: =IF(E192="Ж",VLOOKUP(C192,Гонки!$E$2:$P$16,11,FALSE),VLOOKUP(C192,Гонки!$E$2:$P$16,12,FALSE)) -> 51 | G192: Лопатик Юрий | H192: 1984 | I192: Lopatik Yurij | J192: Лопатик Юрий / Lopatik Yurij / 1984 | K192: М | L192: 34 | M192: 35.29411765 | N192: 154.41
A193: =Гонки!$C$4 -> Жук-трейл # 4 Минское Море | B193: =Гонки!$D$5 -> Трейл 16 | C193: Жук-трейл # 4 Минское Море Трейл 16 | D193: 19.14 | E193: М | F193: =IF(E193="Ж",VLOOKUP(C193,Гонки!$E$2:$P$16,11,FALSE),VLOOKUP(C193,Гонки!$E$2:$P$16,12,FALSE)) -> 51 | G193: Олин Денис | H193: 1976 | I193: Olin Denis | J193: Олин Денис / Olin Denis / 1976 | K193: М | L193: 35 | M193: 33.33333333 | N193: 145.83
A194: =Гонки!$C$4 -> Жук-трейл # 4 Минское Море | B194: =Гонки!$D$5 -> Трейл 16 | C194: Жук-трейл # 4 Минское Море Трейл 16 | D194: =VLOOKUP(C194,Список_гонок,10,FALSE) -> 19.14 | E194: М | F194: =IF(E194="Ж",VLOOKUP(C194,Гонки!$E$2:$P$16,11,FALSE),VLOOKUP(C194,Гонки!$E$2:$P$16,12,FALSE)) -> 51 | G194: Стельмах Юрий | H194: 1982 | I194: Stelmah Yurij | J194: Стельмах Юрий / Stelmah Yurij / 1982 | K194: М | L194: 36 | M194: 31.37254902 | N194: 137.25
A195: =Гонки!$C$4 -> Жук-трейл # 4 Минское Море | B195: =Гонки!$D$5 -> Трейл 16 | C195: =CONCATENATE(A195," ",B195) -> Жук-трейл # 4 Минское Море Трейл 16 | D195: 19.14 | E195: М | F195: =IF(E195="Ж",VLOOKUP(C195,Гонки!$E$2:$P$16,11,FALSE),VLOOKUP(C195,Гонки!$E$2:$P$16,12,FALSE)) -> 51 | G195: Никрашевич Сергей | H195: 1985 | I195: =Translit(G195) -> Nikrashevich Sergej | J195: =CONCATENATE(G195," / ",I195," / ",H195) -> Никрашевич Сергей / Nikrashevich Sergej / 1985 | K195: =E195 -> М | L195: 37 | M195: =100-((L195-1)/F195)*100 -> 29.41176471 | N195: =ROUND(SQRT(D195)*M195,2) -> 128.67
A196: =Гонки!$C$4 -> Жук-трейл # 4 Минское Море | B196: =Гонки!$D$5 -> Трейл 16 | C196: Жук-трейл # 4 Минское Море Трейл 16 | D196: 19.14 | E196: М | F196: =IF(E196="Ж",VLOOKUP(C196,Гонки!$E$2:$P$16,11,FALSE),VLOOKUP(C196,Гонки!$E$2:$P$16,12,FALSE)) -> 51 | G196: Казарин Дмитрий | H196: 1994 | I196: Kazarin Dmitrij | J196: Казарин Дмитрий / Kazarin Dmitrij / 1994 | K196: М | L196: 38 | M196: 27.45098039 | N196: 120.1
A197: =Гонки!$C$4 -> Жук-трейл # 4 Минское Море | B197: =Гонки!$D$5 -> Трейл 16 | C197: Жук-трейл # 4 Минское Море Трейл 16 | D197: 19.14 | E197: М | F197: =IF(E197="Ж",VLOOKUP(C197,Гонки!$E$2:$P$16,11,FALSE),VLOOKUP(C197,Гонки!$E$2:$P$16,12,FALSE)) -> 51 | G197: Коляда Юрий | H197: 1980 | I197: Kolyada Yurij | J197: Коляда Юрий / Kolyada Yurij / 1980 | K197: М | L197: 39 | M197: 25.49019608 | N197: 111.52
A198: =Гонки!$C$4 -> Жук-трейл # 4 Минское Море | B198: =Гонки!$D$5 -> Трейл 16 | C198: Жук-трейл # 4 Минское Море Трейл 16 | D198: 19.14 | E198: М | F198: =IF(E198="Ж",VLOOKUP(C198,Гонки!$E$2:$P$16,11,FALSE),VLOOKUP(C198,Гонки!$E$2:$P$16,12,FALSE)) -> 51 | G198: Горшков Игорь | H198: 1977 | I198: Gorshkov Igor | J198: Горшков Игорь / Gorshkov Igor / 1977 | K198: М | L198: 40 | M198: 23.52941176 | N198: 102.94
A199: =Гонки!$C$4 -> Жук-трейл # 4 Минское Море | B199: =Гонки!$D$5 -> Трейл 16 | C199: Жук-трейл # 4 Минское Море Трейл 16 | D199: 19.14 | E199: М | F199: =IF(E199="Ж",VLOOKUP(C199,Гонки!$E$2:$P$16,11,FALSE),VLOOKUP(C199,Гонки!$E$2:$P$16,12,FALSE)) -> 51 | G199: Герасевич Максим | I199: Gerasevich Maksim | J199: Герасевич Максим / Gerasevich Maksim / | K199: М | L199: 41 | M199: 21.56862745 | N199: 94.36
A200: =Гонки!$C$4 -> Жук-трейл # 4 Минское Море | B200: =Гонки!$D$5 -> Трейл 16 | C200: Жук-трейл # 4 Минское Море Трейл 16 | D200: 19.14 | E200: М | F200: =IF(E200="Ж",VLOOKUP(C200,Гонки!$E$2:$P$16,11,FALSE),VLOOKUP(C200,Гонки!$E$2:$P$16,12,FALSE)) -> 51 | G200: Аржаников Евгений | H200: 1976 | I200: Arzhanikov Evgenij | J200: Аржаников Евгений / Arzhanikov Evgenij / 1976 | K200: М | L200: 42 | M200: 19.60784314 | N200: 85.78
... 651 more rows

Sheet Сводная_алфавит
A1: Пол | B1: (Все)
A3: Сумма по полю личный рез-т соревнований | B3: Названия столбцов
A4: Названия строк | B4: "Налибоки 2018" Трейл 100 | C4: "Налибоки 2018" Трейл 21 | D4: "Налибоки 2018" Трейл 42 | E4: Жук-трейл # 4 Минское Море Трейл 16 | F4: Жук-трейл # 4 Минское Море Трейл 25 | G4: Жук-трейл # 4 Минское Море Трейл 8 | H4: Жук-трейл # 5 Крево Трейл 10 | I4: Жук-трейл # 5 Крево Трейл 21 | J4: Жук-трейл # 5 Крево Трейл 45 | K4: Жук-трейл # 5 Крево Трейл 70 | L4: Жук-трейл #6 Купалье Трейл 10 | M4: Жук-трейл #6 Купалье Трейл 21 | N4: Жук-трейл #6 Купалье Трейл 5 | O4: Зима минус 100 Трейл 100 | P4: Зима минус 100 Трейл 50 | Q4: Общий итог
A5: Ben Bilel / Ben Bilel / 1981 | J5: 71.43 | Q5: 71.43
A6: Абаркина Елена / Abarkina Elena / 1983 | N6: 105.92 | Q6: 105.92
A7: Агаев Руслан / Agaev Ruslan / 1995 | L7: 128.82 | Q7: 128.82
A8: Адаменко Виталий / Adamenko Vitalij / 1985 | H8: 26.61 | Q8: 26.61
A9: Адамович Ирина / Adamovich Irina / 1973 | C9: 425.25 | Q9: 425.25
A10: Алексеев Алексей / Alekseev Aleksej / 1980 | F10: 331.78 | J10: 500 | M10: 221.35 | Q10: 1053.13
A11: Ананич Александр / Ananich Aleksandr / 1979 | P11: 108.37 | Q11: 108.37
A12: Анацко Леонид / Anatsko Leonid / 1961 | K12: 298.16 | M12: 4.92 | Q12: 303.08
A13: Андуро Сергей / Anduro Sergej / 1986 | I13: 307.23 | Q13: 307.23
A14: Аноничев Александр / Anonichev Aleksandr / 1982 | M14: 368.91 | Q14: 368.91
A15: Арабиенко Татьяна / Arabienko Tatyana / 1986 | D15: 609 | Q15: 609
A16: Аржаников Евгений / Arzhanikov Evgenij / 1976 | C16: 263.79 | E16: 85.78 | I16: 153.61 | Q16: 503.18
A17: Арловская Кристина / Arlovskaya Kristina / 1989 | I17: 230.42 | P17: 263.17 | Q17: 493.59
A18: Артихович Александр / Artihovich Aleksandr / 1972 | L18: 59.04 | Q18: 59.04
A19: Асаевич Роман / Asaevich Roman / 1964 | D19: 351.08 | Q19: 351.08
A20: Астапов Владимир / Astapov Vladimir / 1977 | B20: 375.97 | Q20: 375.97
A21: Афанасьев Иван / Afanasev Ivan / 1979 | L21: 305.94 | Q21: 305.94
A22: Бабицкий Кирилл / Babitskij Kirill / 1998 | P22: 628.52 | Q22: 628.52
A23: Бабич Виталий / Babich Vitalij / 1981 | C23: 345.66 | Q23: 345.66
A24: Бажанский Виталий / Bazhanskij Vitalij / 1982 | M24: 177.08 | Q24: 177.08
A25: Балашов Никита / Balashov Nikita / 1983 | C25: 409.34 | Q25: 409.34
A26: Барановский Алексей / Baranovskij Aleksej / 1981 | M26: 152.48 | Q26: 152.48
A27: Баронов Роман / Baronov Roman / 1993 | H27: 306.03 | L27: 220.06 | Q27: 526.09
A28: Барсумян Артур / Barsumyan Artur / 1992 | G28: 189.05 | Q28: 189.05
A29: Бачища Николай / Bachischa Nikolaj / 1988 | P29: 238.4 | Q29: 238.4
A30: Бегун Егор / Begun Egor / 1988 | H30: 232.85 | Q30: 232.85
A31: Белая Юлия / Belaya Yuliya / 1988 | D31: 664.36 | F31: 375.87 | M31: 274.05 | Q31: 1314.28
A32: Белинская Галина / Belinskaya Galina / 1980 | P32: 684.25 | Q32: 684.25
A33: Белицкий Денис / Belitskij Denis / 1990 | C33: 90.96 | M33: 34.43 | Q33: 125.39
A34: Белоусов Александр / Belousov Aleksandr / 1981 | L34: 123.45 | Q34: 123.45
A35: Белоцкая Елена / Belotskaya Elena / 1987 | G35: 116.01 | Q35: 116.01
A36: Бердников Дмитрий / Berdnikov Dmitrij / | L36: 53.67 | Q36: 53.67
A37: Березин Артём / Berezin Artjom / 1986 | M37: 142.65 | Q37: 142.65
A38: Березовский Андрей / Berezovskij Andrej / 1973 | F38: 465.77 | M38: 295.13 | P38: 693.54 | Q38: 1454.44
A39: Бизюк Игорь / Bizyuk Igor / 1956 | D39: 157.99 | Q39: 157.99
A40: Богдевич Анатолий / Bogdevich Anatolij / 1999 | L40: 230.8 | Q40: 230.8
A41: Бойко Евгений / Bojko Evgenij / 1985 | N41: 165.79 | Q41: 165.79
A42: Бокша Сергей / Boksha Sergej / 1988 | F42: 319.02 | Q42: 319.02
A43: Бондарь Юлия / Bondar Yuliya / 1993 | C43: 275.16 | Q43: 275.16
A44: Борисевич Александр / Borisevich Aleksandr / 1989 | C44: 218.31 | M44: 118.05 | Q44: 336.36
A45: Борисевич Анастасия / Borisevich Anastasiya / 1985 | C45: 137.58 | J45: 714.28 | Q45: 851.86
A46: Борисевич Леонид / Borisevich Leonid / 1969 | F46: 401.97 | M46: 290.21 | O46: 896.09 | Q46: 1588.27
A47: Бортник Александр / Bortnik Aleksandr / 1994 | H47: 139.71 | Q47: 139.71
A48: Брагин Иван / Bragin Ivan / 1986 | J48: 714.28 | Q48: 714.28
A49: Брытько Роман / Brytko Roman / 1995 | F49: 185.03 | H49: 292.72 | L49: 284.47 | Q49: 762.22
A50: Будник Владимир / Budnik Vladimir / 1987 | C50: 172.83 | Q50: 172.83
A51: Будрик Юлия / Budrik Yuliya / 1995 | L51: 231.77 | Q51: 231.77
A52: Будыхина Татьяна / Budyhina Tatyana / 1985 | C52: 37.52 | Q52: 37.52
A53: Бузо Александр / Buzo Aleksandr / 1982 | E53: 403.18 | I53: 449.87 | M53: 231.18 | Q53: 1084.23
A54: Булеева Наталья / Buleeva Natalya / 1969 | E54: 226.85 | Q54: 226.85
A55: Бунос Анатолий / Bunos Anatolij / 1956 | E55: 308.82 | Q55: 308.82
A56: Бурак Анжелика / Burak Anzhelika / 1994 | N56: 141.23 | Q56: 141.23
A57: Бутурля Александр / Buturlya Aleksandr / 1981 | N57: 113.98 | Q57: 113.98
A58: Буховецкий Андрей / Buhovetskij Andrej / 1987 | C58: 300.18 | Q58: 300.18
A59: Бушковский Максим / Bushkovskij Maksim / 1989 | M59: 88.54 | Q59: 88.54
A60: Быков Владимир / Bykov Vladimir / 1977 | P60: 346.77 | Q60: 346.77
A61: Бычинский Владислав / Bychinskij Vladislav / 1992 | H61: 206.24 | Q61: 206.24
A62: Бычков Александр / Bychkov Aleksandr / 1990 | C62: 81.87 | Q62: 81.87
A63: Вагин Андрей / Vagin Andrej / 1989 | D63: 719.72 | F63: 491.3 | I63: 460.84 | Q63: 1671.86
A64: Вайтешонок Сергей / Vajteshonok Sergej / 1981 | G64: 120.3 | Q64: 120.3
A65: Варданян Кристина / Vardanyan Kristina / 1981 | C65: 350.21 | Q65: 350.21
A66: Василевич Валентина / Vasilevich Valentina / 1998 | F66: 187.93 | M66: 27.4 | Q66: 215.33
A67: Вдовиченко Ирина / Vdovichenko Irina / 1989 | E67: 97.22 | I67: 98.75 | Q67: 195.97
A68: Величко Павел / Velichko Pavel / 1982 | B68: 520.58 | M68: 255.78 | Q68: 776.36
A69: Верамейчик Елена / Veramejchik Elena / | L69: 241.04 | Q69: 241.04
A70: Веремейчик Юрий / Veremejchik Yurij / 1979 | F70: 293.5 | I70: 274.31 | Q70: 567.81
A71: Верещако Павел / Vereschako Pavel / 1988 | E71: 283.08 | Q71: 283.08
A72: Ветохин Иван / Vetohin Ivan / 1987 | N72: 41.45 | Q72: 41.45
A73: Ветохина София / Vetohina Sofiya / 2010 | N73: 26.48 | Q73: 26.48
A74: Винтергрин Андрей / Vintergrin Andrej / 1981 | C74: 236.51 | Q74: 236.51
A75: Вирский Константин / Virskij Konstantin / 1977 | H75: 199.59 | Q75: 199.59
A76: Вирт Олег / Virt Oleg / 1980 | C76: 63.67 | Q76: 63.67
A77: Войтович Татьяна / Vojtovich Tatyana / 1986 | H77: 143.29 | Q77: 143.29
A78: Волков Николай / Volkov Nikolaj / 1989 | E78: 428.91 | Q78: 428.91
A79: Володько Андрей / Volodko Andrej / 1986 | D79: 526.63 | G79: 206.24 | I79: 296.26 | M79: 226.26 | Q79: 1255.39
A80: Володько Владимир / Volodko Vladimir / 2001 | N80: 186.52 | Q80: 186.52
A81: Волостных Сергей / Volostnyh Sergej / 1989 | D81: 210.65 | Q81: 210.65
A82: Воробьёв Дмитрий / Vorobjov Dmitrij / 1988 | H82: 153.02 | N82: 176.16 | Q82: 329.18
A83: Выборный Александр / Vybornyj Aleksandr / 1985 | I83: 351.12 | M83: 304.97 | Q83: 656.09
A84: Выробов Дмитрий / Vyrobov Dmitrij / 1988 | G84: 34.37 | Q84: 34.37
A85: Гайдуков Александр / Gajdukov Aleksandr / 1989 | H85: 299.38 | Q85: 299.38
A86: Галка Дмитрий / Galka Dmitrij / 1988 | C86: 281.99 | Q86: 281.99
A87: Гамидов Нариман / Gamidov Nariman / 1972 | H87: 179.63 | Q87: 179.63
A88: Гамидов Тимур / Gamidov Timur / 1996 | H88: 345.95 | Q88: 345.95
A89: Гарбар Екатерина / Garbar Ekaterina / 1989 | L89: 120.52 | Q89: 120.52
A90: Гарбуз Алла / Garbuz Alla / 1969 | H90: 28.66 | N90: 17.65 | Q90: 46.31
A91: Генсировский Павел / Gensirovskij Pavel / 1979 | B91: 1041.15 | Q91: 1041.15
A92: Геранин Дмитрий / Geranin Dmitrij / | N92: 207.24 | Q92: 207.24
A93: Герасевич Максим / Gerasevich Maksim / | E93: 94.36 | N93: 103.62 | Q93: 197.98
A94: Герасимов Юрий / Gerasimov Yurij / 1992 | I94: 142.64 | Q94: 142.64
A95: Герасимук Юрий / Gerasimuk Yurij / 1992 | C95: 309.28 | Q95: 309.28
A96: Гидлевский Дмитрий / Gidlevskij Dmitrij / 1986 | G96: 309.35 | H96: 359.25 | Q96: 668.6
A97: Гилевич Диана / Gilevich Diana / 1993 | F97: 516.82 | L97: 305.94 | Q97: 822.76
A98: Гилевич Кристина / Gilevich Kristina / 1994 | F98: 469.83 | Q98: 469.83
A99: Гладкова Анна / Gladkova Anna / 1985 | G99: 103.12 | N99: 44.13 | Q99: 147.25
A100: Гладковский Владислав / Gladkovskij Vladislav / 1990 | C100: 354.76 | Q100: 354.76
A101: Глушаков Сергей / Glushakov Sergej / 1958 | F101: 210.56 | Q101: 210.56
A102: Глушков Александр / Glushkov Aleksandr / 1980 | B102: 780.86 | K102: 417.43 | M102: 186.91 | Q102: 1385.2
A103: Голубева Елена / Golubeva Elena / 1987 | F103: 328.88 | M103: 164.43 | Q103: 493.31
A104: Гомон Сергей / Gomon Sergej / 1990 | B104: 202.45 | Q104: 202.45
A105: Гончарик Наталья / Goncharik Natalya / 1991 | H105: 71.65 | Q105: 71.65
A106: Городко Игорь / Gorodko Igor / 1970 | C106: 72.77 | Q106: 72.77
A107: Горшков Игорь / Gorshkov Igor / 1977 | E107: 102.94 | Q107: 102.94
A108: Грабовец Павел / Grabovets Pavel / 1981 | B108: 954.39 | Q108: 954.39
A109: Гракович Ольга / Grakovich Olga / 1994 | L109: 64.9 | Q109: 64.9
A110: Грейд Юлия / Grejd Yuliya / 1986 | E110: 194.44 | I110: 164.59 | Q110: 359.03
A111: Грек Илья / Grek Ilya / 1992 | I111: 230.42 | P111: 455.14 | Q111: 685.56
A112: Греков Игорь / Grekov Igor / 1970 | D112: 263.31 | Q112: 263.31
A113: Гречишкин Алексей / Grechishkin Aleksej / 1983 | L113: 5.37 | Q113: 5.37
A114: Гриб Екатерина / Grib Ekaterina / 1981 | G114: 219.13 | H114: 243.6 | Q114: 462.73
A115: Григорович Руслан / Grigorovich Ruslan / 1987 | G115: 232.02 | Q115: 232.02
A116: Григорьева Светлана / Grigoreva Svetlana / 1984 | E116: 275.46 | L116: 139.06 | Q116: 414.52
A117: Гринько Анастасия / Grinko Anastasiya / 1993 | E117: 178.24 | H117: 257.93 | Q117: 436.17
A118: Грицевич Виталий / Gritsevich Vitalij / 1987 | H118: 146.36 | Q118: 146.36
A119: Грицук Татьяна / Gritsuk Tatyana / 1973 | D119: 276.82 | Q119: 276.82
A120: Гумбар Илья / Gumbar Ilya / 1989 | M120: 260.7 | Q120: 260.7
A121: Гурская Татьяна / Gurskaya Tatyana / 1980 | B121: 1041.15 | Q121: 1041.15
A122: Гусаревич Денис / Gusarevich Denis / 1983 | B122: 578.42 | Q122: 578.42
A123: Даник Даниил / Danik Daniil / 1982 | L123: 80.51 | Q123: 80.51
A124: Данченко Глеб / Danchenko Gleb / 1986 | H124: 286.07 | Q124: 286.07
A125: Дашин Михаил / Dashin Mihail / | N125: 217.6 | Q125: 217.6
A126: Дашкевич Павел / Dashkevich Pavel / 1999 | H126: 86.49 | L126: 101.98 | Q126: 188.47
A127: Дашкевич Сергей / Dashkevich Sergej / 1996 | H127: 39.92 | Q127: 39.92
A128: Дегтярев Сергей / Degtyarev Sergej / 1983 | D128: 649.51 | F128: 191.41 | Q128: 840.92
A129: Дедков Никита / Dedkov Nikita / 1998 | L129: 193.23 | Q129: 193.23
A130: Делендик Максим / Delendik Maksim / 1992 | L130: 144.92 | Q130: 144.92
A131: Делендик Надежда / Delendik Nadezhda / 1987 | C131: 437.76 | M131: 328.86 | Q131: 766.62
A132: Дельянов Одиссей / Delyanov Odissej / 1979 | F132: 357.31 | Q132: 357.31
A133: Домбровский Евгений / Dombrovskij Evgenij / 1987 | H133: 279.42 | Q133: 279.42
A134: Драгун Алина / Dragun Alina / 1993 | C134: 412.75 | Q134: 412.75
A135: Драгун Борис / Dragun Boris / 1970 | F135: 248.84 | K135: 298.16 | Q135: 547
A136: Дубровский Виктор / Dubrovskij Viktor / 1961 | D136: 105.33 | Q136: 105.33
A137: Дубровский Евгений / Dubrovskij Evgenij / 1984 | D137: 87.77 | Q137: 87.77
A138: Дунаева Мария / Dunaeva Mariya / 1983 | H138: 171.95 | Q138: 171.95
A139: Дундуков Андрей / Dundukov Andrej / 1985 | G139: 128.9 | L139: 85.88 | Q139: 214.78
A140: Дурейко Анна / Durejko Anna / 1987 | C140: 12.51 | Q140: 12.51
A141: Дышлевич Сергей / Dyshlevich Sergej / 1982 | L141: 182.49 | Q141: 182.49
A142: Евсюченя Александр / Evsyuchenya Aleksandr / 1991 | I142: 329.17 | P142: 736.89 | Q142: 1066.06
A143: Едомская Вольга / Edomskaya Volga / 1987 | E143: 340.27 | H143: 329.57 | N143: 211.85 | Q143: 881.69
A144: Ермак Алексей / Ermak Aleksej / 1984 | F144: 165.89 | Q144: 165.89
A145: Ермохин Максим / Ermohin Maksim / 1975 | F145: 433.87 | I145: 384.04 | Q145: 817.91
A146: Жданович Александра / Zhdanovich Aleksandra / 1985 | G146: 232.02 | L146: 194.69 | Q146: 426.71
A147: Жданович Андрей / Zhdanovich Andrej / 1973 | F147: 287.12 | Q147: 287.12
A148: Жданович Максим / Zhdanovich Maksim / 1987 | D148: 561.73 | Q148: 561.73
A149: Жевняк Андрей / Zhevnyak Andrej / 1986 | L149: 187.86 | Q149: 187.86
A150: Жидович Вадим / Zhidovich Vadim / 1984 | D150: 491.52 | E150: 231.61 | I150: 208.48 | M150: 68.86 | Q150: 1000.47
A151: Жила Анастасия / Zhila Anastasiya / 1994 | K151: 298.16 | L151: 213.23 | Q151: 511.39
A152: Жук Лия / Zhuk Liya / 1980 | C152: 75.04 | Q152: 75.04
A153: Жукович Артем / Zhukovich Artem / 1988 | H153: 93.14 | Q153: 93.14
A154: Журавлёв Андрей / Zhuravljov Andrej / 1978 | F154: 484.91 | M154: 359.07 | Q154: 843.98
A155: Журавлёва Оксана / Zhuravljova Oksana / 1980 | E155: 405.09 | L155: 259.59 | Q155: 664.68
A156: Жучин Алексей / Zhuchin Aleksej / 1983 | G156: 283.57 | H156: 332.64 | Q156: 616.21
A157: Жучина Катерина / Zhuchina Katerina / 1986 | G157: 154.68 | H157: 128.96 | Q157: 283.64
A158: Жучков Алексей / Zhuchkov Aleksej / 1985 | D158: 193.1 | F158: 140.37 | J158: 178.57 | M158: 29.51 | Q158: 541.55
A159: Забабуро Сергей / Zababuro Sergej / 1978 | M159: 270.53 | Q159: 270.53
A160: Забелова Юлия / Zabelova Yuliya / 1978 | C160: 87.55 | Q160: 87.55
A161: Завалова Анастасия / Zavalova Anastasiya / 1994 | L161: 55.63 | Q161: 55.63
A162: Загорнов Александр / Zagornov Aleksandr / 1966 | D162: 140.43 | Q162: 140.43
A163: Зайчук Кирилл / Zajchuk Kirill / 1990 | E163: 197.3 | Q163: 197.3
A164: Занько Юрий / Zanko Yurij / 1982 | P164: 151.71 | Q164: 151.71
A165: Заречанский Юрий / Zarechanskij Yurij / 1980 | C165: 200.12 | Q165: 200.12
A166: Захаркин Сергей / Zaharkin Sergej / 1976 | E166: 420.34 | Q166: 420.34
A167: Захаров Иван / Zaharov Ivan / 1979 | G167: 77.34 | Q167: 77.34
A168: Захарьев Алексей / Zaharev Aleksej / 1984 | M168: 265.62 | Q168: 265.62
A169: Заяц Александр / Zayats Aleksandr / 1978 | F169: 267.98 | Q169: 267.98
A170: Зеленкевич Валентина / Zelenkevich Valentina / 1999 | C170: 487.79 | Q170: 487.79
A171: Зеленко Алексей / Zelenko Aleksej / 1980 | I171: 131.67 | Q171: 131.67
A172: Зеленко Диана / Zelenko Diana / 1988 | G172: 128.9 | Q172: 128.9
A173: Зеленко Дмитрий / Zelenko Dmitrij / 1987 | E173: 343.13 | Q173: 343.13
A174: Зеленский Александр / Zelenskij Aleksandr / 1978 | M174: 162.32 | Q174: 162.32
A175: Зеленцова Галина / Zelentsova Galina / 1988 | N175: 220.67 | Q175: 220.67
A176: Зиновенко Павел / Zinovenko Pavel / 1997 | L176: 279.1 | Q176: 279.1
A177: Зуевский Роман / Zuevskij Roman / 1986 | H177: 186.28 | Q177: 186.28
A178: Зуй Александр / Zuj Aleksandr / 1980 | C178: 118.25 | I178: 65.83 | Q178: 184.08
A179: Зуй Марина / Zuj Marina / 1984 | H179: 57.32 | Q179: 57.32
A180: Зуйков Антон / Zujkov Anton / 1995 | M180: 339.4 | Q180: 339.4
A181: Зументс Роберт / Zuments Robert / 1979 | D181: 35.11 | Q181: 35.11
A182: Зятиков Евгений / Zyatikov Evgenij / 1982 | J182: 142.86 | M182: 9.84 | Q182: 152.7
A183: Зятикова Наталья / Zyatikova Natalya / 1983 | J183: 238.09 | L183: 18.54 | Q183: 256.63
A184: Иванов Денис / Ivanov Denis / 1990 | C184: 154.64 | Q184: 154.64
A185: Иванова Екатерина / Ivanova Ekaterina / 1989 | C185: 62.54 | Q185: 62.54
A186: Иванцов Вячеслав / Ivantsov Vyacheslav / 1986 | L186: 209.33 | Q186: 209.33
A187: Иванчик Александр / Ivanchik Aleksandr / 1990 | P187: 303.42 | Q187: 303.42
A188: Иванчик Константин / Ivanchik Konstantin / 1983 | J188: 392.86 | Q188: 392.86
A189: Игнатович Александр / Ignatovich Aleksandr / 1992 | E189: 265.93 | Q189: 265.93
A190: Илатовский Дмитрий / Ilatovskij Dmitrij / 1974 | F190: 197.79 | Q190: 197.79
A191: Иолтуховский Владислав / Ioltuhovskij Vladislav / 1971 | F191: 121.23 | I191: 263.34 | Q191: 384.57
A192: Исаев Антон / Isaev Anton / 1979 | B192: 838.71 | O192: 1024.1 | Q192: 1862.81
A193: Искорцев Алексей / Iskortsev Aleksej / 1980 | E193: 274.51 | M193: 122.97 | Q193: 397.48
A194: Йоцюс Виталий / Jotsyus Vitalij / | L194: 37.57 | Q194: 37.57
A195: Казак Дмитрий / Kazak Dmitrij / 1979 | D195: 614.4 | M195: 216.43 | Q195: 830.83
A196: Казак Константин / Kazak Konstantin / 2004 | N196: 134.71 | Q196: 134.71
A197: Казак Наталья / Kazak Natalya / 1979 | H197: 100.3 | N197: 17.65 | Q197: 117.95
A198: Казакевич Ирина / Kazakevich Irina / 1969 | E198: 421.29 | Q198: 421.29
A199: Казарин Дмитрий / Kazarin Dmitrij / 1994 | C199: 227.41 | E199: 120.1 | I199: 197.5 | Q199: 545.01
A200: Калвинковская Ольга / Kalvinkovskaya Olga / 1994 | C200: 450.27 | Q200: 450.27
A201: Кальвинковская Екатерина / Kalvinkovskaya Ekaterina / 1993 | C201: 337.7 | Q201: 337.7
... 398 more rows

Sheet 4 лучших
R1: Лучшие результаты
A2: Названия строк | B2: "Налибоки 2018" Трейл 100 | C2: "Налибоки 2018" Трейл 21 | D2: "Налибоки 2018" Трейл 42 | E2: Жук-трейл # 4 Минское Море Трейл 16 | F2: Жук-трейл # 4 Минское Море Трейл 25 | G2: Жук-трейл # 4 Минское Море Трейл 8 | H2: Жук-трейл # 5 Крево Трейл 10 | I2: Жук-трейл # 5 Крево Трейл 21 | J2: Жук-трейл # 5 Крево Трейл 45 | K2: Жук-трейл # 5 Крево Трейл 70 | L2: Жук-трейл #6 Купалье Трейл 10 | M2: Жук-трейл #6 Купалье Трейл 21 | N2: Жук-трейл #6 Купалье Трейл 5 | O2: Зима минус 100 Трейл 100 | P2: Зима минус 100 Трейл 50 | Q2: Общий итог | V2: Сумма баллов (принятая к зачёту) | X2: Пол
A3: Ben Bilel / Ben Bilel / 1981 | J3: 71.43 | Q3: 71.43 | R3: =LARGE(B3:P3,1) -> 71.43 | S3: =IF(COUNT(B3:P3)=1,0,LARGE(B3:P3,2)) -> 0 | T3: =IF(COUNT(B3:P3)<3,0,LARGE(B3:P3,3)) -> 0 | U3: =IF(COUNT(B3:P3)<4,0,LARGE(B3:P3,4)) -> 0 | V3: =SUM(R3:U3) -> 71.43 | W3: =V3-Q3 -> 0 | X3: =VLOOKUP(A3,'личные рез-ты по гонкам списком'!$J$1:$N$851,2,FALSE) -> М
A4: Абаркина Елена / Abarkina Elena / 1983 | N4: 105.92 | Q4: 105.92 | R4: =LARGE(B4:P4,1) -> 105.92 | S4: =IF(COUNT(B4:P4)=1,0,LARGE(B4:P4,2)) -> 0 | T4: =IF(COUNT(B4:P4)<3,0,LARGE(B4:P4,3)) -> 0 | U4: =IF(COUNT(B4:P4)<4,0,LARGE(B4:P4,4)) -> 0 | V4: =SUM(R4:U4) -> 105.92 | W4: =V4-Q4 -> 0 | X4: =VLOOKUP(A4,'личные рез-ты по гонкам списком'!$J$1:$N$851,2,FALSE) -> Ж
A5: Агаев Руслан / Agaev Ruslan / 1995 | L5: 128.82 | Q5: 128.82 | R5: 128.82 | S5: 0 | T5: 0 | U5: 0 | V5: 128.82 | W5: 0 | X5: =VLOOKUP(A5,'личные рез-ты по гонкам списком'!$J$1:$N$851,2,FALSE) -> М
A6: Адаменко Виталий / Adamenko Vitalij / 1985 | H6: 26.61 | Q6: 26.61 | R6: 26.61 | S6: 0 | T6: 0 | U6: 0 | V6: 26.61 | W6: 0 | X6: =VLOOKUP(A6,'личные рез-ты по гонкам списком'!$J$1:$N$851,2,FALSE) -> М
A7: Адамович Ирина / Adamovich Irina / 1973 | C7: 425.25 | Q7: 425.25 | R7: 425.25 | S7: 0 | T7: 0 | U7: 0 | V7: 425.25 | W7: 0 | X7: =VLOOKUP(A7,'личные рез-ты по гонкам списком'!$J$1:$N$851,2,FALSE) -> Ж
A8: Алексеев Алексей / Alekseev Aleksej / 1980 | F8: 331.78 | J8: 500 | M8: 221.35 | Q8: 1053.13 | R8: 500 | S8: 331.78 | T8: 221.35 | U8: 0 | V8: 1053.13 | W8: 0 | X8: =VLOOKUP(A8,'личные рез-ты по гонкам списком'!$J$1:$N$851,2,FALSE) -> М
A9: Ананич Александр / Ananich Aleksandr / 1979 | P9: 108.37 | Q9: 108.37 | R9: 108.37 | S9: 0 | T9: 0 | U9: 0 | V9: 108.37 | W9: 0 | X9: =VLOOKUP(A9,'личные рез-ты по гонкам списком'!$J$1:$N$851,2,FALSE) -> М
A10: Анацко Леонид / Anatsko Leonid / 1961 | K10: 298.16 | M10: 4.92 | Q10: 303.08 | R10: 298.16 | S10: 4.92 | T10: 0 | U10: 0 | V10: 303.08 | W10: 0 | X10: =VLOOKUP(A10,'личные рез-ты по гонкам списком'!$J$1:$N$851,2,FALSE) -> М
A11: Андуро Сергей / Anduro Sergej / 1986 | I11: 307.23 | Q11: 307.23 | R11: 307.23 | S11: 0 | T11: 0 | U11: 0 | V11: 307.23 | W11: 0 | X11: =VLOOKUP(A11,'личные рез-ты по гонкам списком'!$J$1:$N$851,2,FALSE) -> М
A12: Аноничев Александр / Anonichev Aleksandr / 1982 | M12: 368.91 | Q12: 368.91 | R12: 368.91 | S12: 0 | T12: 0 | U12: 0 | V12: 368.91 | W12: 0 | X12: =VLOOKUP(A12,'личные рез-ты по гонкам списком'!$J$1:$N$851,2,FALSE) -> М
A13: Арабиенко Татьяна / Arabienko Tatyana / 1986 | D13: 609 | Q13: 609 | R13: 609 | S13: 0 | T13: 0 | U13: 0 | V13: 609 | W13: 0 | X13: =VLOOKUP(A13,'личные рез-ты по гонкам списком'!$J$1:$N$851,2,FALSE) -> Ж
A14: Аржаников Евгений / Arzhanikov Evgenij / 1976 | C14: 263.79 | E14: 85.78 | I14: 153.61 | Q14: 503.18 | R14: 263.79 | S14: 153.61 | T14: 85.78 | U14: 0 | V14: 503.18 | W14: 0 | X14: =VLOOKUP(A14,'личные рез-ты по гонкам списком'!$J$1:$N$851,2,FALSE) -> М
A15: Арловская Кристина / Arlovskaya Kristina / 1989 | I15: 230.42 | P15: 263.17 | Q15: 493.59 | R15: 263.17 | S15: 230.42 | T15: 0 | U15: 0 | V15: 493.59 | W15: 0 | X15: =VLOOKUP(A15,'личные рез-ты по гонкам списком'!$J$1:$N$851,2,FALSE) -> Ж
A16: Артихович Александр / Artihovich Aleksandr / 1972 | L16: 59.04 | Q16: 59.04 | R16: 59.04 | S16: 0 | T16: 0 | U16: 0 | V16: 59.04 | W16: 0 | X16: =VLOOKUP(A16,'личные рез-ты по гонкам списком'!$J$1:$N$851,2,FALSE) -> М
A17: Асаевич Роман / Asaevich Roman / 1964 | D17: 351.08 | Q17: 351.08 | R17: 351.08 | S17: 0 | T17: 0 | U17: 0 | V17: 351.08 | W17: 0 | X17: =VLOOKUP(A17,'личные рез-ты по гонкам списком'!$J$1:$N$851,2,FALSE) -> М
A18: Астапов Владимир / Astapov Vladimir / 1977 | B18: 375.97 | Q18: 375.97 | R18: 375.97 | S18: 0 | T18: 0 | U18: 0 | V18: 375.97 | W18: 0 | X18: =VLOOKUP(A18,'личные рез-ты по гонкам списком'!$J$1:$N$851,2,FALSE) -> М
A19: Афанасьев Иван / Afanasev Ivan / 1979 | L19: 305.94 | Q19: 305.94 | R19: 305.94 | S19: 0 | T19: 0 | U19: 0 | V19: 305.94 | W19: 0 | X19: =VLOOKUP(A19,'личные рез-ты по гонкам списком'!$J$1:$N$851,2,FALSE) -> М
A20: Бабицкий Кирилл / Babitskij Kirill / 1998 | P20: 628.52 | Q20: 628.52 | R20: 628.52 | S20: 0 | T20: 0 | U20: 0 | V20: 628.52 | W20: 0 | X20: =VLOOKUP(A20,'личные рез-ты по гонкам списком'!$J$1:$N$851,2,FALSE) -> М
A21: Бабич Виталий / Babich Vitalij / 1981 | C21: 345.66 | Q21: 345.66 | R21: 345.66 | S21: 0 | T21: 0 | U21: 0 | V21: 345.66 | W21: 0 | X21: =VLOOKUP(A21,'личные рез-ты по гонкам списком'!$J$1:$N$851,2,FALSE) -> М
A22: Бажанский Виталий / Bazhanskij Vitalij / 1982 | M22: 177.08 | Q22: 177.08 | R22: 177.08 | S22: 0 | T22: 0 | U22: 0 | V22: 177.08 | W22: 0 | X22: =VLOOKUP(A22,'личные рез-ты по гонкам списком'!$J$1:$N$851,2,FALSE) -> М
A23: Балашов Никита / Balashov Nikita / 1983 | C23: 409.34 | Q23: 409.34 | R23: 409.34 | S23: 0 | T23: 0 | U23: 0 | V23: 409.34 | W23: 0 | X23: =VLOOKUP(A23,'личные рез-ты по гонкам списком'!$J$1:$N$851,2,FALSE) -> М
A24: Барановский Алексей / Baranovskij Aleksej / 1981 | M24: 152.48 | Q24: 152.48 | R24: 152.48 | S24: 0 | T24: 0 | U24: 0 | V24: 152.48 | W24: 0 | X24: =VLOOKUP(A24,'личные рез-ты по гонкам списком'!$J$1:$N$851,2,FALSE) -> М
A25: Баронов Роман / Baronov Roman / 1993 | H25: 306.03 | L25: 220.06 | Q25: 526.09 | R25: 306.03 | S25: 220.06 | T25: 0 | U25: 0 | V25: 526.09 | W25: 0 | X25: =VLOOKUP(A25,'личные рез-ты по гонкам списком'!$J$1:$N$851,2,FALSE) -> М
A26: Барсумян Артур / Barsumyan Artur / 1992 | G26: 189.05 | Q26: 189.05 | R26: 189.05 | S26: 0 | T26: 0 | U26: 0 | V26: 189.05 | W26: 0 | X26: =VLOOKUP(A26,'личные рез-ты по гонкам списком'!$J$1:$N$851,2,FALSE) -> М
A27: Бачища Николай / Bachischa Nikolaj / 1988 | P27: 238.4 | Q27: 238.4 | R27: 238.4 | S27: 0 | T27: 0 | U27: 0 | V27: 238.4 | W27: 0 | X27: =VLOOKUP(A27,'личные рез-ты по гонкам списком'!$J$1:$N$851,2,FALSE) -> М
A28: Бегун Егор / Begun Egor / 1988 | H28: 232.85 | Q28: 232.85 | R28: 232.85 | S28: 0 | T28: 0 | U28: 0 | V28: 232.85 | W28: 0 | X28: =VLOOKUP(A28,'личные рез-ты по гонкам списком'!$J$1:$N$851,2,FALSE) -> М
A29: Белая Юлия / Belaya Yuliya / 1988 | D29: 664.36 | F29: 375.87 | M29: 274.05 | Q29: 1314.28 | R29: 664.36 | S29: 375.87 | T29: 274.05 | U29: 0 | V29: 1314.28 | W29: 0 | X29: =VLOOKUP(A29,'личные рез-ты по гонкам списком'!$J$1:$N$851,2,FALSE) -> Ж
A30: Белинская Галина / Belinskaya Galina / 1980 | P30: 684.25 | Q30: 684.25 | R30: 684.25 | S30: 0 | T30: 0 | U30: 0 | V30: 684.25 | W30: 0 | X30: =VLOOKUP(A30,'личные рез-ты по гонкам списком'!$J$1:$N$851,2,FALSE) -> Ж
A31: Белицкий Денис / Belitskij Denis / 1990 | C31: 90.96 | M31: 34.43 | Q31: 125.39 | R31: 90.96 | S31: 34.43 | T31: 0 | U31: 0 | V31: 125.39 | W31: 0 | X31: =VLOOKUP(A31,'личные рез-ты по гонкам списком'!$J$1:$N$851,2,FALSE) -> М
A32: Белоусов Александр / Belousov Aleksandr / 1981 | L32: 123.45 | Q32: 123.45 | R32: 123.45 | S32: 0 | T32: 0 | U32: 0 | V32: 123.45 | W32: 0 | X32: =VLOOKUP(A32,'личные рез-ты по гонкам списком'!$J$1:$N$851,2,FALSE) -> М
A33: Белоцкая Елена / Belotskaya Elena / 1987 | G33: 116.01 | Q33: 116.01 | R33: 116.01 | S33: 0 | T33: 0 | U33: 0 | V33: 116.01 | W33: 0 | X33: =VLOOKUP(A33,'личные рез-ты по гонкам списком'!$J$1:$N$851,2,FALSE) -> Ж
A34: Бердников Дмитрий / Berdnikov Dmitrij / | L34: 53.67 | Q34: 53.67 | R34: 53.67 | S34: 0 | T34: 0 | U34: 0 | V34: 53.67 | W34: 0 | X34: =VLOOKUP(A34,'личные рез-ты по гонкам списком'!$J$1:$N$851,2,FALSE) -> М
A35: Березин Артём / Berezin Artjom / 1986 | M35: 142.65 | Q35: 142.65 | R35: 142.65 | S35: 0 | T35: 0 | U35: 0 | V35: 142.65 | W35: 0 | X35: =VLOOKUP(A35,'личные рез-ты по гонкам списком'!$J$1:$N$851,2,FALSE) -> М
A36: Березовский Андрей / Berezovskij Andrej / 1973 | F36: 465.77 | M36: 295.13 | P36: 693.54 | Q36: 1454.44 | R36: 693.54 | S36: 465.77 | T36: 295.13 | U36: 0 | V36: 1454.44 | W36: 0 | X36: =VLOOKUP(A36,'личные рез-ты по гонкам списком'!$J$1:$N$851,2,FALSE) -> М
A37: Бизюк Игорь / Bizyuk Igor / 1956 | D37: 157.99 | Q37: 157.99 | R37: 157.99 | S37: 0 | T37: 0 | U37: 0 | V37: 157.99 | W37: 0 | X37: =VLOOKUP(A37,'личные рез-ты по гонкам списком'!$J$1:$N$851,2,FALSE) -> М
A38: Богдевич Анатолий / Bogdevich Anatolij / 1999 | L38: 230.8 | Q38: 230.8 | R38: 230.8 | S38: 0 | T38: 0 | U38: 0 | V38: 230.8 | W38: 0 | X38: =VLOOKUP(A38,'личные рез-ты по гонкам списком'!$J$1:$N$851,2,FALSE) -> М
A39: Бойко Евгений / Bojko Evgenij / 1985 | N39: 165.79 | Q39: 165.79 | R39: 165.79 | S39: 0 | T39: 0 | U39: 0 | V39: 165.79 | W39: 0 | X39: =VLOOKUP(A39,'личные рез-ты по гонкам списком'!$J$1:$N$851,2,FALSE) -> М
A40: Бокша Сергей / Boksha Sergej / 1988 | F40: 319.02 | Q40: 319.02 | R40: 319.02 | S40: 0 | T40: 0 | U40: 0 | V40: 319.02 | W40: 0 | X40: =VLOOKUP(A40,'личные рез-ты по гонкам списком'!$J$1:$N$851,2,FALSE) -> М
A41: Бондарь Юлия / Bondar Yuliya / 1993 | C41: 275.16 | Q41: 275.16 | R41: 275.16 | S41: 0 | T41: 0 | U41: 0 | V41: 275.16 | W41: 0 | X41: =VLOOKUP(A41,'личные рез-ты по гонкам списком'!$J$1:$N$851,2,FALSE) -> Ж
A42: Борисевич Александр / Borisevich Aleksandr / 1989 | C42: 218.31 | M42: 118.05 | Q42: 336.36 | R42: 218.31 | S42: 118.05 | T42: 0 | U42: 0 | V42: 336.36 | W42: 0 | X42: =VLOOKUP(A42,'личные рез-ты по гонкам списком'!$J$1:$N$851,2,FALSE) -> М
A43: Борисевич Анастасия / Borisevich Anastasiya / 1985 | C43: 137.58 | J43: 714.28 | Q43: 851.86 | R43: 714.28 | S43: 137.58 | T43: 0 | U43: 0 | V43: 851.86 | W43: 0 | X43: =VLOOKUP(A43,'личные рез-ты по гонкам списком'!$J$1:$N$851,2,FALSE) -> Ж
A44: Борисевич Леонид / Borisevich Leonid / 1969 | F44: 401.97 | M44: 290.21 | O44: 896.09 | Q44: 1588.27 | R44: 896.09 | S44: 401.97 | T44: 290.21 | U44: 0 | V44: 1588.27 | W44: 0 | X44: =VLOOKUP(A44,'личные рез-ты по гонкам списком'!$J$1:$N$851,2,FALSE) -> М
A45: Бортник Александр / Bortnik Aleksandr / 1994 | H45: 139.71 | Q45: 139.71 | R45: 139.71 | S45: 0 | T45: 0 | U45: 0 | V45: 139.71 | W45: 0 | X45: =VLOOKUP(A45,'личные рез-ты по гонкам списком'!$J$1:$N$851,2,FALSE) -> М
A46: Брагин Иван / Bragin Ivan / 1986 | J46: 714.28 | Q46: 714.28 | R46: 714.28 | S46: 0 | T46: 0 | U46: 0 | V46: 714.28 | W46: 0 | X46: =VLOOKUP(A46,'личные рез-ты по гонкам списком'!$J$1:$N$851,2,FALSE) -> М
A47: Брытько Роман / Brytko Roman / 1995 | F47: 185.03 | H47: 292.72 | L47: 284.47 | Q47: 762.22 | R47: 292.72 | S47: 284.47 | T47: 185.03 | U47: 0 | V47: 762.22 | W47: 0 | X47: =VLOOKUP(A47,'личные рез-ты по гонкам списком'!$J$1:$N$851,2,FALSE) -> М
A48: Будник Владимир / Budnik Vladimir / 1987 | C48: 172.83 | Q48: 172.83 | R48: 172.83 | S48: 0 | T48: 0 | U48: 0 | V48: 172.83 | W48: 0 | X48: =VLOOKUP(A48,'личные рез-ты по гонкам списком'!$J$1:$N$851,2,FALSE) -> М
A49: Будрик Юлия / Budrik Yuliya / 1995 | L49: 231.77 | Q49: 231.77 | R49: 231.77 | S49: 0 | T49: 0 | U49: 0 | V49: 231.77 | W49: 0 | X49: =VLOOKUP(A49,'личные рез-ты по гонкам списком'!$J$1:$N$851,2,FALSE) -> Ж
A50: Будыхина Татьяна / Budyhina Tatyana / 1985 | C50: 37.52 | Q50: 37.52 | R50: 37.52 | S50: 0 | T50: 0 | U50: 0 | V50: 37.52 | W50: 0 | X50: =VLOOKUP(A50,'личные рез-ты по гонкам списком'!$J$1:$N$851,2,FALSE) -> Ж
A51: Бузо Александр / Buzo Aleksandr / 1982 | E51: 403.18 | I51: 449.87 | M51: 231.18 | Q51: 1084.23 | R51: 449.87 | S51: 403.18 | T51: 231.18 | U51: 0 | V51: 1084.23 | W51: 0 | X51: =VLOOKUP(A51,'личные рез-ты по гонкам списком'!$J$1:$N$851,2,FALSE) -> М
A52: Булеева Наталья / Buleeva Natalya / 1969 | E52: 226.85 | Q52: 226.85 | R52: 226.85 | S52: 0 | T52: 0 | U52: 0 | V52: 226.85 | W52: 0 | X52: =VLOOKUP(A52,'личные рез-ты по гонкам списком'!$J$1:$N$851,2,FALSE) -> Ж
A53: Бунос Анатолий / Bunos Anatolij / 1956 | E53: 308.82 | Q53: 308.82 | R53: 308.82 | S53: 0 | T53: 0 | U53: 0 | V53: 308.82 | W53: 0 | X53: =VLOOKUP(A53,'личные рез-ты по гонкам списком'!$J$1:$N$851,2,FALSE) -> М
A54: Бурак Анжелика / Burak Anzhelika / 1994 | N54: 141.23 | Q54: 141.23 | R54: 141.23 | S54: 0 | T54: 0 | U54: 0 | V54: 141.23 | W54: 0 | X54: =VLOOKUP(A54,'личные рез-ты по гонкам списком'!$J$1:$N$851,2,FALSE) -> Ж
A55: Бутурля Александр / Buturlya Aleksandr / 1981 | N55: 113.98 | Q55: 113.98 | R55: 113.98 | S55: 0 | T55: 0 | U55: 0 | V55: 113.98 | W55: 0 | X55: =VLOOKUP(A55,'личные рез-ты по гонкам списком'!$J$1:$N$851,2,FALSE) -> М
A56: Буховецкий Андрей / Buhovetskij Andrej / 1987 | C56: 300.18 | Q56: 300.18 | R56: 300.18 | S56: 0 | T56: 0 | U56: 0 | V56: 300.18 | W56: 0 | X56: =VLOOKUP(A56,'личные рез-ты по гонкам списком'!$J$1:$N$851,2,FALSE) -> М
A57: Бушковский Максим / Bushkovskij Maksim / 1989 | M57: 88.54 | Q57: 88.54 | R57: 88.54 | S57: 0 | T57: 0 | U57: 0 | V57: 88.54 | W57: 0 | X57: =VLOOKUP(A57,'личные рез-ты по гонкам списком'!$J$1:$N$851,2,FALSE) -> М
A58: Быков Владимир / Bykov Vladimir / 1977 | P58: 346.77 | Q58: 346.77 | R58: 346.77 | S58: 0 | T58: 0 | U58: 0 | V58: 346.77 | W58: 0 | X58: =VLOOKUP(A58,'личные рез-ты по гонкам списком'!$J$1:$N$851,2,FALSE) -> М
A59: Бычинский Владислав / Bychinskij Vladislav / 1992 | H59: 206.24 | Q59: 206.24 | R59: 206.24 | S59: 0 | T59: 0 | U59: 0 | V59: 206.24 | W59: 0 | X59: =VLOOKUP(A59,'личные рез-ты по гонкам списком'!$J$1:$N$851,2,FALSE) -> М
A60: Бычков Александр / Bychkov Aleksandr / 1990 | C60: 81.87 | Q60: 81.87 | R60: 81.87 | S60: 0 | T60: 0 | U60: 0 | V60: 81.87 | W60: 0 | X60: =VLOOKUP(A60,'личные рез-ты по гонкам списком'!$J$1:$N$851,2,FALSE) -> М
A61: Вагин Андрей / Vagin Andrej / 1989 | D61: 719.72 | F61: 491.3 | I61: 460.84 | Q61: 1671.86 | R61: 719.72 | S61: 491.3 | T61: 460.84 | U61: 0 | V61: 1671.86 | W61: 0 | X61: =VLOOKUP(A61,'личные рез-ты по гонкам списком'!$J$1:$N$851,2,FALSE) -> М
A62: Вайтешонок Сергей / Vajteshonok Sergej / 1981 | G62: 120.3 | Q62: 120.3 | R62: 120.3 | S62: 0 | T62: 0 | U62: 0 | V62: 120.3 | W62: 0 | X62: =VLOOKUP(A62,'личные рез-ты по гонкам списком'!$J$1:$N$851,2,FALSE) -> М
A63: Варданян Кристина / Vardanyan Kristina / 1981 | C63: 350.21 | Q63: 350.21 | R63: 350.21 | S63: 0 | T63: 0 | U63: 0 | V63: 350.21 | W63: 0 | X63: =VLOOKUP(A63,'личные рез-ты по гонкам списком'!$J$1:$N$851,2,FALSE) -> Ж
A64: Василевич Валентина / Vasilevich Valentina / 1998 | F64: 187.93 | M64: 27.4 | Q64: 215.33 | R64: 187.93 | S64: 27.4 | T64: 0 | U64: 0 | V64: 215.33 | W64: 0 | X64: =VLOOKUP(A64,'личные рез-ты по гонкам списком'!$J$1:$N$851,2,FALSE) -> Ж
A65: Вдовиченко Ирина / Vdovichenko Irina / 1989 | E65: 97.22 | I65: 98.75 | Q65: 195.97 | R65: 98.75 | S65: 97.22 | T65: 0 | U65: 0 | V65: 195.97 | W65: 0 | X65: =VLOOKUP(A65,'личные рез-ты по гонкам списком'!$J$1:$N$851,2,FALSE) -> Ж
A66: Величко Павел / Velichko Pavel / 1982 | B66: 520.58 | M66: 255.78 | Q66: 776.36 | R66: 520.58 | S66: 255.78 | T66: 0 | U66: 0 | V66: 776.36 | W66: 0 | X66: =VLOOKUP(A66,'личные рез-ты по гонкам списком'!$J$1:$N$851,2,FALSE) -> М
A67: Верамейчик Елена / Veramejchik Elena / | L67: 241.04 | Q67: 241.04 | R67: 241.04 | S67: 0 | T67: 0 | U67: 0 | V67: 241.04 | W67: 0 | X67: =VLOOKUP(A67,'личные рез-ты по гонкам списком'!$J$1:$N$851,2,FALSE) -> Ж
A68: Веремейчик Юрий / Veremejchik Yurij / 1979 | F68: 293.5 | I68: 274.31 | Q68: 567.81 | R68: =LARGE(B68:P68,1) -> 293.5 | S68: =IF(COUNT(B68:P68)=1,0,LARGE(B68:P68,2)) -> 274.31 | T68: =IF(COUNT(B68:P68)<3,0,LARGE(B68:P68,3)) -> 0 | U68: =IF(COUNT(B68:P68)<4,0,LARGE(B68:P68,4)) -> 0 | V68: =SUM(R68:U68) -> 567.81 | W68: =V68-Q68 -> 0 | X68: =VLOOKUP(A68,'личные рез-ты по гонкам списком'!$J$1:$N$851,2,FALSE) -> М
A69: Верещако Павел / Vereschako Pavel / 1988 | E69: 283.08 | Q69: 283.08 | R69: 283.08 | S69: 0 | T69: 0 | U69: 0 | V69: 283.08 | W69: 0 | X69: =VLOOKUP(A69,'личные рез-ты по гонкам списком'!$J$1:$N$851,2,FALSE) -> М
A70: Ветохин Иван / Vetohin Ivan / 1987 | N70: 41.45 | Q70: 41.45 | R70: 41.45 | S70: 0 | T70: 0 | U70: 0 | V70: 41.45 | W70: 0 | X70: =VLOOKUP(A70,'личные рез-ты по гонкам списком'!$J$1:$N$851,2,FALSE) -> М
A71: Ветохина София / Vetohina Sofiya / 2010 | N71: 26.48 | Q71: 26.48 | R71: 26.48 | S71: 0 | T71: 0 | U71: 0 | V71: 26.48 | W71: 0 | X71: =VLOOKUP(A71,'личные рез-ты по гонкам списком'!$J$1:$N$851,2,FALSE) -> Ж
A72: Винтергрин Андрей / Vintergrin Andrej / 1981 | C72: 236.51 | Q72: 236.51 | R72: 236.51 | S72: 0 | T72: 0 | U72: 0 | V72: 236.51 | W72: 0 | X72: =VLOOKUP(A72,'личные рез-ты по гонкам списком'!$J$1:$N$851,2,FALSE) -> М
A73: Вирский Константин / Virskij Konstantin / 1977 | H73: 199.59 | Q73: 199.59 | R73: 199.59 | S73: 0 | T73: 0 | U73: 0 | V73: 199.59 | W73: 0 | X73: =VLOOKUP(A73,'личные рез-ты по гонкам списком'!$J$1:$N$851,2,FALSE) -> М
A74: Вирт Олег / Virt Oleg / 1980 | C74: 63.67 | Q74: 63.67 | R74: 63.67 | S74: 0 | T74: 0 | U74: 0 | V74: 63.67 | W74: 0 | X74: =VLOOKUP(A74,'личные рез-ты по гонкам списком'!$J$1:$N$851,2,FALSE) -> М
A75: Войтович Татьяна / Vojtovich Tatyana / 1986 | H75: 143.29 | Q75: 143.29 | R75: 143.29 | S75: 0 | T75: 0 | U75: 0 | V75: 143.29 | W75: 0 | X75: =VLOOKUP(A75,'личные рез-ты по гонкам списком'!$J$1:$N$851,2,FALSE) -> Ж
A76: Волков Николай / Volkov Nikolaj / 1989 | E76: 428.91 | Q76: 428.91 | R76: 428.91 | S76: 0 | T76: 0 | U76: 0 | V76: 428.91 | W76: 0 | X76: =VLOOKUP(A76,'личные рез-ты по гонкам списком'!$J$1:$N$851,2,FALSE) -> М
A77: Володько Андрей / Volodko Andrej / 1986 | D77: 526.63 | G77: 206.24 | I77: 296.26 | M77: 226.26 | Q77: 1255.39 | R77: 526.63 | S77: 296.26 | T77: 226.26 | U77: 206.24 | V77: 1255.39 | W77: 0 | X77: =VLOOKUP(A77,'личные рез-ты по гонкам списком'!$J$1:$N$851,2,FALSE) -> М
A78: Володько Владимир / Volodko Vladimir / 2001 | N78: 186.52 | Q78: 186.52 | R78: 186.52 | S78: 0 | T78: 0 | U78: 0 | V78: 186.52 | W78: 0 | X78: =VLOOKUP(A78,'личные рез-ты по гонкам списком'!$J$1:$N$851,2,FALSE) -> М
A79: Волостных Сергей / Volostnyh Sergej / 1989 | D79: 210.65 | Q79: 210.65 | R79: 210.65 | S79: 0 | T79: 0 | U79: 0 | V79: 210.65 | W79: 0 | X79: =VLOOKUP(A79,'личные рез-ты по гонкам списком'!$J$1:$N$851,2,FALSE) -> М
A80: Воробьёв Дмитрий / Vorobjov Dmitrij / 1988 | H80: 153.02 | N80: 176.16 | Q80: 329.18 | R80: 176.16 | S80: 153.02 | T80: 0 | U80: 0 | V80: 329.18 | W80: 0 | X80: =VLOOKUP(A80,'личные рез-ты по гонкам списком'!$J$1:$N$851,2,FALSE) -> М
A81: Выборный Александр / Vybornyj Aleksandr / 1985 | I81: 351.12 | M81: 304.97 | Q81: 656.09 | R81: 351.12 | S81: 304.97 | T81: 0 | U81: 0 | V81: 656.09 | W81: 0 | X81: =VLOOKUP(A81,'личные рез-ты по гонкам списком'!$J$1:$N$851,2,FALSE) -> М
A82: Выробов Дмитрий / Vyrobov Dmitrij / 1988 | G82: 34.37 | Q82: 34.37 | R82: 34.37 | S82: 0 | T82: 0 | U82: 0 | V82: 34.37 | W82: 0 | X82: =VLOOKUP(A82,'личные рез-ты по гонкам списком'!$J$1:$N$851,2,FALSE) -> М
A83: Гайдуков Александр / Gajdukov Aleksandr / 1989 | H83: 299.38 | Q83: 299.38 | R83: 299.38 | S83: 0 | T83: 0 | U83: 0 | V83: 299.38 | W83: 0 | X83: =VLOOKUP(A83,'личные рез-ты по гонкам списком'!$J$1:$N$851,2,FALSE) -> М
A84: Галка Дмитрий / Galka Dmitrij / 1988 | C84: 281.99 | Q84: 281.99 | R84: 281.99 | S84: 0 | T84: 0 | U84: 0 | V84: 281.99 | W84: 0 | X84: =VLOOKUP(A84,'личные рез-ты по гонкам списком'!$J$1:$N$851,2,FALSE) -> М
A85: Гамидов Нариман / Gamidov Nariman / 1972 | H85: 179.63 | Q85: 179.63 | R85: 179.63 | S85: 0 | T85: 0 | U85: 0 | V85: 179.63 | W85: 0 | X85: =VLOOKUP(A85,'личные рез-ты по гонкам списком'!$J$1:$N$851,2,FALSE) -> М
A86: Гамидов Тимур / Gamidov Timur / 1996 | H86: 345.95 | Q86: 345.95 | R86: 345.95 | S86: 0 | T86: 0 | U86: 0 | V86: 345.95 | W86: 0 | X86: =VLOOKUP(A86,'личные рез-ты по гонкам списком'!$J$1:$N$851,2,FALSE) -> М
A87: Гарбар Екатерина / Garbar Ekaterina / 1989 | L87: 120.52 | Q87: 120.52 | R87: 120.52 | S87: 0 | T87: 0 | U87: 0 | V87: 120.52 | W87: 0 | X87: =VLOOKUP(A87,'личные рез-ты по гонкам списком'!$J$1:$N$851,2,FALSE) -> Ж
A88: Гарбуз Алла / Garbuz Alla / 1969 | H88: 28.66 | N88: 17.65 | Q88: 46.31 | R88: 28.66 | S88: 17.65 | T88: 0 | U88: 0 | V88: 46.31 | W88: 0 | X88: =VLOOKUP(A88,'личные рез-ты по гонкам списком'!$J$1:$N$851,2,FALSE) -> Ж
A89: Генсировский Павел / Gensirovskij Pavel / 1979 | B89: 1041.15 | Q89: 1041.15 | R89: 1041.15 | S89: 0 | T89: 0 | U89: 0 | V89: 1041.15 | W89: 0 | X89: =VLOOKUP(A89,'личные рез-ты по гонкам списком'!$J$1:$N$851,2,FALSE) -> М
A90: Геранин Дмитрий / Geranin Dmitrij / | N90: 207.24 | Q90: 207.24 | R90: 207.24 | S90: 0 | T90: 0 | U90: 0 | V90: 207.24 | W90: 0 | X90: =VLOOKUP(A90,'личные рез-ты по гонкам списком'!$J$1:$N$851,2,FALSE) -> М
A91: Герасевич Максим / Gerasevich Maksim / | E91: 94.36 | N91: 103.62 | Q91: 197.98 | R91: 103.62 | S91: 94.36 | T91: 0 | U91: 0 | V91: 197.98 | W91: 0 | X91: =VLOOKUP(A91,'личные рез-ты по гонкам списком'!$J$1:$N$851,2,FALSE) -> М
A92: Герасимов Юрий / Gerasimov Yurij / 1992 | I92: 142.64 | Q92: 142.64 | R92: 142.64 | S92: 0 | T92: 0 | U92: 0 | V92: 142.64 | W92: 0 | X92: =VLOOKUP(A92,'личные рез-ты по гонкам списком'!$J$1:$N$851,2,FALSE) -> М
A93: Герасимук Юрий / Gerasimuk Yurij / 1992 | C93: 309.28 | Q93: 309.28 | R93: 309.28 | S93: 0 | T93: 0 | U93: 0 | V93: 309.28 | W93: 0 | X93: =VLOOKUP(A93,'личные рез-ты по гонкам списком'!$J$1:$N$851,2,FALSE) -> М
A94: Гидлевский Дмитрий / Gidlevskij Dmitrij / 1986 | G94: 309.35 | H94: 359.25 | Q94: 668.6 | R94: 359.25 | S94: 309.35 | T94: 0 | U94: 0 | V94: 668.6 | W94: 0 | X94: =VLOOKUP(A94,'личные рез-ты по гонкам списком'!$J$1:$N$851,2,FALSE) -> М
A95: Гилевич Диана / Gilevich Diana / 1993 | F95: 516.82 | L95: 305.94 | Q95: 822.76 | R95: 516.82 | S95: 305.94 | T95: 0 | U95: 0 | V95: 822.76 | W95: 0 | X95: =VLOOKUP(A95,'личные рез-ты по гонкам списком'!$J$1:$N$851,2,FALSE) -> Ж
A96: Гилевич Кристина / Gilevich Kristina / 1994 | F96: 469.83 | Q96: 469.83 | R96: 469.83 | S96: 0 | T96: 0 | U96: 0 | V96: 469.83 | W96: 0 | X96: =VLOOKUP(A96,'личные рез-ты по гонкам списком'!$J$1:$N$851,2,FALSE) -> Ж
A97: Гладкова Анна / Gladkova Anna / 1985 | G97: 103.12 | N97: 44.13 | Q97: 147.25 | R97: 103.12 | S97: 44.13 | T97: 0 | U97: 0 | V97: 147.25 | W97: 0 | X97: =VLOOKUP(A97,'личные рез-ты по гонкам списком'!$J$1:$N$851,2,FALSE) -> Ж
A98: Гладковский Владислав / Gladkovskij Vladislav / 1990 | C98: 354.76 | Q98: 354.76 | R98: 354.76 | S98: 0 | T98: 0 | U98: 0 | V98: 354.76 | W98: 0 | X98: =VLOOKUP(A98,'личные рез-ты по гонкам списком'!$J$1:$N$851,2,FALSE) -> М
A99: Глушаков Сергей / Glushakov Sergej / 1958 | F99: 210.56 | Q99: 210.56 | R99: 210.56 | S99: 0 | T99: 0 | U99: 0 | V99: 210.56 | W99: 0 | X99: =VLOOKUP(A99,'личные рез-ты по гонкам списком'!$J$1:$N$851,2,FALSE) -> М
A100: Глушков Александр / Glushkov Aleksandr / 1980 | B100: 780.86 | K100: 417.43 | M100: 186.91 | Q100: 1385.2 | R100: 780.86 | S100: 417.43 | T100: 186.91 | U100: 0 | V100: 1385.2 | W100: 0 | X100: =VLOOKUP(A100,'личные рез-ты по гонкам списком'!$J$1:$N$851,2,FALSE) -> М
A101: Голубева Елена / Golubeva Elena / 1987 | F101: 328.88 | M101: 164.43 | Q101: 493.31 | R101: 328.88 | S101: 164.43 | T101: 0 | U101: 0 | V101: 493.31 | W101: 0 | X101: =VLOOKUP(A101,'личные рез-ты по гонкам списком'!$J$1:$N$851,2,FALSE) -> Ж
A102: Гомон Сергей / Gomon Sergej / 1990 | B102: 202.45 | Q102: 202.45 | R102: 202.45 | S102: 0 | T102: 0 | U102: 0 | V102: 202.45 | W102: 0 | X102: =VLOOKUP(A102,'личные рез-ты по гонкам списком'!$J$1:$N$851,2,FALSE) -> М
A103: Гончарик Наталья / Goncharik Natalya / 1991 | H103: 71.65 | Q103: 71.65 | R103: 71.65 | S103: 0 | T103: 0 | U103: 0 | V103: 71.65 | W103: 0 | X103: =VLOOKUP(A103,'личные рез-ты по гонкам списком'!$J$1:$N$851,2,FALSE) -> Ж
A104: Городко Игорь / Gorodko Igor / 1970 | C104: 72.77 | Q104: 72.77 | R104: 72.77 | S104: 0 | T104: 0 | U104: 0 | V104: 72.77 | W104: 0 | X104: =VLOOKUP(A104,'личные рез-ты по гонкам списком'!$J$1:$N$851,2,FALSE) -> М
A105: Горшков Игорь / Gorshkov Igor / 1977 | E105: 102.94 | Q105: 102.94 | R105: 102.94 | S105: 0 | T105: 0 | U105: 0 | V105: 102.94 | W105: 0 | X105: =VLOOKUP(A105,'личные рез-ты по гонкам списком'!$J$1:$N$851,2,FALSE) -> М
A106: Грабовец Павел / Grabovets Pavel / 1981 | B106: 954.39 | Q106: 954.39 | R106: 954.39 | S106: 0 | T106: 0 | U106: 0 | V106: 954.39 | W106: 0 | X106: =VLOOKUP(A106,'личные рез-ты по гонкам списком'!$J$1:$N$851,2,FALSE) -> М
A107: Гракович Ольга / Grakovich Olga / 1994 | L107: 64.9 | Q107: 64.9 | R107: 64.9 | S107: 0 | T107: 0 | U107: 0 | V107: 64.9 | W107: 0 | X107: =VLOOKUP(A107,'личные рез-ты по гонкам списком'!$J$1:$N$851,2,FALSE) -> Ж
A108: Грейд Юлия / Grejd Yuliya / 1986 | E108: 194.44 | I108: 164.59 | Q108: 359.03 | R108: 194.44 | S108: 164.59 | T108: 0 | U108: 0 | V108: 359.03 | W108: 0 | X108: =VLOOKUP(A108,'личные рез-ты по гонкам списком'!$J$1:$N$851,2,FALSE) -> Ж
A109: Грек Илья / Grek Ilya / 1992 | I109: 230.42 | P109: 455.14 | Q109: 685.56 | R109: 455.14 | S109: 230.42 | T109: 0 | U109: 0 | V109: 685.56 | W109: 0 | X109: =VLOOKUP(A109,'личные рез-ты по гонкам списком'!$J$1:$N$851,2,FALSE) -> М
A110: Греков Игорь / Grekov Igor / 1970 | D110: 263.31 | Q110: 263.31 | R110: 263.31 | S110: 0 | T110: 0 | U110: 0 | V110: 263.31 | W110: 0 | X110: =VLOOKUP(A110,'личные рез-ты по гонкам списком'!$J$1:$N$851,2,FALSE) -> М
A111: Гречишкин Алексей / Grechishkin Aleksej / 1983 | L111: 5.37 | Q111: 5.37 | R111: 5.37 | S111: 0 | T111: 0 | U111: 0 | V111: 5.37 | W111: 0 | X111: =VLOOKUP(A111,'личные рез-ты по гонкам списком'!$J$1:$N$851,2,FALSE) -> М
A112: Гриб Екатерина / Grib Ekaterina / 1981 | G112: 219.13 | H112: 243.6 | Q112: 462.73 | R112: 243.6 | S112: 219.13 | T112: 0 | U112: 0 | V112: 462.73 | W112: 0 | X112: =VLOOKUP(A112,'личные рез-ты по гонкам списком'!$J$1:$N$851,2,FALSE) -> Ж
A113: Григорович Руслан / Grigorovich Ruslan / 1987 | G113: 232.02 | Q113: 232.02 | R113: 232.02 | S113: 0 | T113: 0 | U113: 0 | V113: 232.02 | W113: 0 | X113: =VLOOKUP(A113,'личные рез-ты по гонкам списком'!$J$1:$N$851,2,FALSE) -> М
A114: Григорьева Светлана / Grigoreva Svetlana / 1984 | E114: 275.46 | L114: 139.06 | Q114: 414.52 | R114: 275.46 | S114: 139.06 | T114: 0 | U114: 0 | V114: 414.52 | W114: 0 | X114: =VLOOKUP(A114,'личные рез-ты по гонкам списком'!$J$1:$N$851,2,FALSE) -> Ж
A115: Гринько Анастасия / Grinko Anastasiya / 1993 | E115: 178.24 | H115: 257.93 | Q115: 436.17 | R115: 257.93 | S115: 178.24 | T115: 0 | U115: 0 | V115: 436.17 | W115: 0 | X115: =VLOOKUP(A115,'личные рез-ты по гонкам списком'!$J$1:$N$851,2,FALSE) -> Ж
A116: Грицевич Виталий / Gritsevich Vitalij / 1987 | H116: 146.36 | Q116: 146.36 | R116: 146.36 | S116: 0 | T116: 0 | U116: 0 | V116: 146.36 | W116: 0 | X116: =VLOOKUP(A116,'личные рез-ты по гонкам списком'!$J$1:$N$851,2,FALSE) -> М
A117: Грицук Татьяна / Gritsuk Tatyana / 1973 | D117: 276.82 | Q117: 276.82 | R117: 276.82 | S117: 0 | T117: 0 | U117: 0 | V117: 276.82 | W117: 0 | X117: =VLOOKUP(A117,'личные рез-ты по гонкам списком'!$J$1:$N$851,2,FALSE) -> Ж
A118: Гумбар Илья / Gumbar Ilya / 1989 | M118: 260.7 | Q118: 260.7 | R118: 260.7 | S118: 0 | T118: 0 | U118: 0 | V118: 260.7 | W118: 0 | X118: =VLOOKUP(A118,'личные рез-ты по гонкам списком'!$J$1:$N$851,2,FALSE) -> М
A119: Гурская Татьяна / Gurskaya Tatyana / 1980 | B119: 1041.15 | Q119: 1041.15 | R119: 1041.15 | S119: 0 | T119: 0 | U119: 0 | V119: 1041.15 | W119: 0 | X119: =VLOOKUP(A119,'личные рез-ты по гонкам списком'!$J$1:$N$851,2,FALSE) -> Ж
A120: Гусаревич Денис / Gusarevich Denis / 1983 | B120: 578.42 | Q120: 578.42 | R120: 578.42 | S120: 0 | T120: 0 | U120: 0 | V120: 578.42 | W120: 0 | X120: =VLOOKUP(A120,'личные рез-ты по гонкам списком'!$J$1:$N$851,2,FALSE) -> М
A121: Даник Даниил / Danik Daniil / 1982 | L121: 80.51 | Q121: 80.51 | R121: 80.51 | S121: 0 | T121: 0 | U121: 0 | V121: 80.51 | W121: 0 | X121: =VLOOKUP(A121,'личные рез-ты по гонкам списком'!$J$1:$N$851,2,FALSE) -> М
A122: Данченко Глеб / Danchenko Gleb / 1986 | H122: 286.07 | Q122: 286.07 | R122: 286.07 | S122: 0 | T122: 0 | U122: 0 | V122: 286.07 | W122: 0 | X122: =VLOOKUP(A122,'личные рез-ты по гонкам списком'!$J$1:$N$851,2,FALSE) -> М
A123: Дашин Михаил / Dashin Mihail / | N123: 217.6 | Q123: 217.6 | R123: 217.6 | S123: 0 | T123: 0 | U123: 0 | V123: 217.6 | W123: 0 | X123: =VLOOKUP(A123,'личные рез-ты по гонкам списком'!$J$1:$N$851,2,FALSE) -> М
A124: Дашкевич Павел / Dashkevich Pavel / 1999 | H124: 86.49 | L124: 101.98 | Q124: 188.47 | R124: 101.98 | S124: 86.49 | T124: 0 | U124: 0 | V124: 188.47 | W124: 0 | X124: =VLOOKUP(A124,'личные рез-ты по гонкам списком'!$J$1:$N$851,2,FALSE) -> М
A125: Дашкевич Сергей / Dashkevich Sergej / 1996 | H125: 39.92 | Q125: 39.92 | R125: 39.92 | S125: 0 | T125: 0 | U125: 0 | V125: 39.92 | W125: 0 | X125: =VLOOKUP(A125,'личные рез-ты по гонкам списком'!$J$1:$N$851,2,FALSE) -> М
A126: Дегтярев Сергей / Degtyarev Sergej / 1983 | D126: 649.51 | F126: 191.41 | Q126: 840.92 | R126: 649.51 | S126: 191.41 | T126: 0 | U126: 0 | V126: 840.92 | W126: 0 | X126: =VLOOKUP(A126,'личные рез-ты по гонкам списком'!$J$1:$N$851,2,FALSE) -> М
A127: Дедков Никита / Dedkov Nikita / 1998 | L127: 193.23 | Q127: 193.23 | R127: 193.23 | S127: 0 | T127: 0 | U127: 0 | V127: 193.23 | W127: 0 | X127: =VLOOKUP(A127,'личные рез-ты по гонкам списком'!$J$1:$N$851,2,FALSE) -> М
A128: Делендик Максим / Delendik Maksim / 1992 | L128: 144.92 | Q128: 144.92 | R128: 144.92 | S128: 0 | T128: 0 | U128: 0 | V128: 144.92 | W128: 0 | X128: =VLOOKUP(A128,'личные рез-ты по гонкам списком'!$J$1:$N$851,2,FALSE) -> М
A129: Делендик Надежда / Delendik Nadezhda / 1987 | C129: 437.76 | M129: 328.86 | Q129: 766.62 | R129: 437.76 | S129: 328.86 | T129: 0 | U129: 0 | V129: 766.62 | W129: 0 | X129: =VLOOKUP(A129,'личные рез-ты по гонкам списком'!$J$1:$N$851,2,FALSE) -> Ж
A130: Дельянов Одиссей / Delyanov Odissej / 1979 | F130: 357.31 | Q130: 357.31 | R130: 357.31 | S130: 0 | T130: 0 | U130: 0 | V130: 357.31 | W130: 0 | X130: =VLOOKUP(A130,'личные рез-ты по гонкам списком'!$J$1:$N$851,2,FALSE) -> М
A131: Домбровский Евгений / Dombrovskij Evgenij / 1987 | H131: 279.42 | Q131: 279.42 | R131: 279.42 | S131: 0 | T131: 0 | U131: 0 | V131: 279.42 | W131: 0 | X131: =VLOOKUP(A131,'личные рез-ты по гонкам списком'!$J$1:$N$851,2,FALSE) -> М
A132: Драгун Алина / Dragun Alina / 1993 | C132: 412.75 | Q132: 412.75 | R132: =LARGE(B132:P132,1) -> 412.75 | S132: =IF(COUNT(B132:P132)=1,0,LARGE(B132:P132,2)) -> 0 | T132: =IF(COUNT(B132:P132)<3,0,LARGE(B132:P132,3)) -> 0 | U132: =IF(COUNT(B132:P132)<4,0,LARGE(B132:P132,4)) -> 0 | V132: =SUM(R132:U132) -> 412.75 | W132: =V132-Q132 -> 0 | X132: =VLOOKUP(A132,'личные рез-ты по гонкам списком'!$J$1:$N$851,2,FALSE) -> Ж
A133: Драгун Борис / Dragun Boris / 1970 | F133: 248.84 | K133: 298.16 | Q133: 547 | R133: 298.16 | S133: 248.84 | T133: 0 | U133: 0 | V133: 547 | W133: 0 | X133: =VLOOKUP(A133,'личные рез-ты по гонкам списком'!$J$1:$N$851,2,FALSE) -> М
A134: Дубровский Виктор / Dubrovskij Viktor / 1961 | D134: 105.33 | Q134: 105.33 | R134: 105.33 | S134: 0 | T134: 0 | U134: 0 | V134: 105.33 | W134: 0 | X134: =VLOOKUP(A134,'личные рез-ты по гонкам списком'!$J$1:$N$851,2,FALSE) -> М
A135: Дубровский Евгений / Dubrovskij Evgenij / 1984 | D135: 87.77 | Q135: 87.77 | R135: 87.77 | S135: 0 | T135: 0 | U135: 0 | V135: 87.77 | W135: 0 | X135: =VLOOKUP(A135,'личные рез-ты по гонкам списком'!$J$1:$N$851,2,FALSE) -> М
A136: Дунаева Мария / Dunaeva Mariya / 1983 | H136: 171.95 | Q136: 171.95 | R136: 171.95 | S136: 0 | T136: 0 | U136: 0 | V136: 171.95 | W136: 0 | X136: =VLOOKUP(A136,'личные рез-ты по гонкам списком'!$J$1:$N$851,2,FALSE) -> Ж
A137: Дундуков Андрей / Dundukov Andrej / 1985 | G137: 128.9 | L137: 85.88 | Q137: 214.78 | R137: 128.9 | S137: 85.88 | T137: 0 | U137: 0 | V137: 214.78 | W137: 0 | X137: =VLOOKUP(A137,'личные рез-ты по гонкам списком'!$J$1:$N$851,2,FALSE) -> М
A138: Дурейко Анна / Durejko Anna / 1987 | C138: 12.51 | Q138: 12.51 | R138: 12.51 | S138: 0 | T138: 0 | U138: 0 | V138: 12.51 | W138: 0 | X138: =VLOOKUP(A138,'личные рез-ты по гонкам списком'!$J$1:$N$851,2,FALSE) -> Ж
A139: Дышлевич Сергей / Dyshlevich Sergej / 1982 | L139: 182.49 | Q139: 182.49 | R139: 182.49 | S139: 0 | T139: 0 | U139: 0 | V139: 182.49 | W139: 0 | X139: =VLOOKUP(A139,'личные рез-ты по гонкам списком'!$J$1:$N$851,2,FALSE) -> М
A140: Евсюченя Александр / Evsyuchenya Aleksandr / 1991 | I140: 329.17 | P140: 736.89 | Q140: 1066.06 | R140: 736.89 | S140: 329.17 | T140: 0 | U140: 0 | V140: 1066.06 | W140: 0 | X140: =VLOOKUP(A140,'личные рез-ты по гонкам списком'!$J$1:$N$851,2,FALSE) -> М
A141: Едомская Вольга / Edomskaya Volga / 1987 | E141: 340.27 | H141: 329.57 | N141: 211.85 | Q141: 881.69 | R141: 340.27 | S141: 329.57 | T141: 211.85 | U141: 0 | V141: 881.69 | W141: 0 | X141: =VLOOKUP(A141,'личные рез-ты по гонкам списком'!$J$1:$N$851,2,FALSE) -> Ж
A142: Ермак Алексей / Ermak Aleksej / 1984 | F142: 165.89 | Q142: 165.89 | R142: 165.89 | S142: 0 | T142: 0 | U142: 0 | V142: 165.89 | W142: 0 | X142: =VLOOKUP(A142,'личные рез-ты по гонкам списком'!$J$1:$N$851,2,FALSE) -> М
A143: Ермохин Максим / Ermohin Maksim / 1975 | F143: 433.87 | I143: 384.04 | Q143: 817.91 | R143: 433.87 | S143: 384.04 | T143: 0 | U143: 0 | V143: 817.91 | W143: 0 | X143: =VLOOKUP(A143,'личные рез-ты по гонкам списком'!$J$1:$N$851,2,FALSE) -> М
A144: Жданович Александра / Zhdanovich Aleksandra / 1985 | G144: 232.02 | L144: 194.69 | Q144: 426.71 | R144: 232.02 | S144: 194.69 | T144: 0 | U144: 0 | V144: 426.71 | W144: 0 | X144: =VLOOKUP(A144,'личные рез-ты по гонкам списком'!$J$1:$N$851,2,FALSE) -> Ж
A145: Жданович Андрей / Zhdanovich Andrej / 1973 | F145: 287.12 | Q145: 287.12 | R145: 287.12 | S145: 0 | T145: 0 | U145: 0 | V145: 287.12 | W145: 0 | X145: =VLOOKUP(A145,'личные рез-ты по гонкам списком'!$J$1:$N$851,2,FALSE) -> М
A146: Жданович Максим / Zhdanovich Maksim / 1987 | D146: 561.73 | Q146: 561.73 | R146: 561.73 | S146: 0 | T146: 0 | U146: 0 | V146: 561.73 | W146: 0 | X146: =VLOOKUP(A146,'личные рез-ты по гонкам списком'!$J$1:$N$851,2,FALSE) -> М
A147: Жевняк Андрей / Zhevnyak Andrej / 1986 | L147: 187.86 | Q147: 187.86 | R147: 187.86 | S147: 0 | T147: 0 | U147: 0 | V147: 187.86 | W147: 0 | X147: =VLOOKUP(A147,'личные рез-ты по гонкам списком'!$J$1:$N$851,2,FALSE) -> М
A148: Жидович Вадим / Zhidovich Vadim / 1984 | D148: 491.52 | E148: 231.61 | I148: 208.48 | M148: 68.86 | Q148: 1000.47 | R148: 491.52 | S148: 231.61 | T148: 208.48 | U148: 68.86 | V148: 1000.47 | W148: 0 | X148: =VLOOKUP(A148,'личные рез-ты по гонкам списком'!$J$1:$N$851,2,FALSE) -> М
A149: Жила Анастасия / Zhila Anastasiya / 1994 | K149: 298.16 | L149: 213.23 | Q149: 511.39 | R149: 298.16 | S149: 213.23 | T149: 0 | U149: 0 | V149: 511.39 | W149: 0 | X149: =VLOOKUP(A149,'личные рез-ты по гонкам списком'!$J$1:$N$851,2,FALSE) -> Ж
A150: Жук Лия / Zhuk Liya / 1980 | C150: 75.04 | Q150: 75.04 | R150: 75.04 | S150: 0 | T150: 0 | U150: 0 | V150: 75.04 | W150: 0 | X150: =VLOOKUP(A150,'личные рез-ты по гонкам списком'!$J$1:$N$851,2,FALSE) -> Ж
A151: Жукович Артем / Zhukovich Artem / 1988 | H151: 93.14 | Q151: 93.14 | R151: 93.14 | S151: 0 | T151: 0 | U151: 0 | V151: 93.14 | W151: 0 | X151: =VLOOKUP(A151,'личные рез-ты по гонкам списком'!$J$1:$N$851,2,FALSE) -> М
A152: Журавлёв Андрей / Zhuravljov Andrej / 1978 | F152: 484.91 | M152: 359.07 | Q152: 843.98 | R152: 484.91 | S152: 359.07 | T152: 0 | U152: 0 | V152: 843.98 | W152: 0 | X152: =VLOOKUP(A152,'личные рез-ты по гонкам списком'!$J$1:$N$851,2,FALSE) -> М
A153: Журавлёва Оксана / Zhuravljova Oksana / 1980 | E153: 405.09 | L153: 259.59 | Q153: 664.68 | R153: 405.09 | S153: 259.59 | T153: 0 | U153: 0 | V153: 664.68 | W153: 0 | X153: =VLOOKUP(A153,'личные рез-ты по гонкам списком'!$J$1:$N$851,2,FALSE) -> Ж
A154: Жучин Алексей / Zhuchin Aleksej / 1983 | G154: 283.57 | H154: 332.64 | Q154: 616.21 | R154: 332.64 | S154: 283.57 | T154: 0 | U154: 0 | V154: 616.21 | W154: 0 | X154: =VLOOKUP(A154,'личные рез-ты по гонкам списком'!$J$1:$N$851,2,FALSE) -> М
A155: Жучина Катерина / Zhuchina Katerina / 1986 | G155: 154.68 | H155: 128.96 | Q155: 283.64 | R155: 154.68 | S155: 128.96 | T155: 0 | U155: 0 | V155: 283.64 | W155: 0 | X155: =VLOOKUP(A155,'личные рез-ты по гонкам списком'!$J$1:$N$851,2,FALSE) -> Ж
A156: Жучков Алексей / Zhuchkov Aleksej / 1985 | D156: 193.1 | F156: 140.37 | J156: 178.57 | M156: 29.51 | Q156: 541.55 | R156: 193.1 | S156: 178.57 | T156: 140.37 | U156: 29.51 | V156: 541.55 | W156: 0 | X156: =VLOOKUP(A156,'личные рез-ты по гонкам списком'!$J$1:$N$851,2,FALSE) -> М
A157: Забабуро Сергей / Zababuro Sergej / 1978 | M157: 270.53 | Q157: 270.53 | R157: 270.53 | S157: 0 | T157: 0 | U157: 0 | V157: 270.53 | W157: 0 | X157: =VLOOKUP(A157,'личные рез-ты по гонкам списком'!$J$1:$N$851,2,FALSE) -> М
A158: Забелова Юлия / Zabelova Yuliya / 1978 | C158: 87.55 | Q158: 87.55 | R158: 87.55 | S158: 0 | T158: 0 | U158: 0 | V158: 87.55 | W158: 0 | X158: =VLOOKUP(A158,'личные рез-ты по гонкам списком'!$J$1:$N$851,2,FALSE) -> Ж
A159: Завалова Анастасия / Zavalova Anastasiya / 1994 | L159: 55.63 | Q159: 55.63 | R159: 55.63 | S159: 0 | T159: 0 | U159: 0 | V159: 55.63 | W159: 0 | X159: =VLOOKUP(A159,'личные рез-ты по гонкам списком'!$J$1:$N$851,2,FALSE) -> Ж
A160: Загорнов Александр / Zagornov Aleksandr / 1966 | D160: 140.43 | Q160: 140.43 | R160: 140.43 | S160: 0 | T160: 0 | U160: 0 | V160: 140.43 | W160: 0 | X160: =VLOOKUP(A160,'личные рез-ты по гонкам списком'!$J$1:$N$851,2,FALSE) -> М
A161: Зайчук Кирилл / Zajchuk Kirill / 1990 | E161: 197.3 | Q161: 197.3 | R161: 197.3 | S161: 0 | T161: 0 | U161: 0 | V161: 197.3 | W161: 0 | X161: =VLOOKUP(A161,'личные рез-ты по гонкам списком'!$J$1:$N$851,2,FALSE) -> М
A162: Занько Юрий / Zanko Yurij / 1982 | P162: 151.71 | Q162: 151.71 | R162: 151.71 | S162: 0 | T162: 0 | U162: 0 | V162: 151.71 | W162: 0 | X162: =VLOOKUP(A162,'личные рез-ты по гонкам списком'!$J$1:$N$851,2,FALSE) -> М
A163: Заречанский Юрий / Zarechanskij Yurij / 1980 | C163: 200.12 | Q163: 200.12 | R163: 200.12 | S163: 0 | T163: 0 | U163: 0 | V163: 200.12 | W163: 0 | X163: =VLOOKUP(A163,'личные рез-ты по гонкам списком'!$J$1:$N$851,2,FALSE) -> М
A164: Захаркин Сергей / Zaharkin Sergej / 1976 | E164: 420.34 | Q164: 420.34 | R164: 420.34 | S164: 0 | T164: 0 | U164: 0 | V164: 420.34 | W164: 0 | X164: =VLOOKUP(A164,'личные рез-ты по гонкам списком'!$J$1:$N$851,2,FALSE) -> М
A165: Захаров Иван / Zaharov Ivan / 1979 | G165: 77.34 | Q165: 77.34 | R165: 77.34 | S165: 0 | T165: 0 | U165: 0 | V165: 77.34 | W165: 0 | X165: =VLOOKUP(A165,'личные рез-ты по гонкам списком'!$J$1:$N$851,2,FALSE) -> М
A166: Захарьев Алексей / Zaharev Aleksej / 1984 | M166: 265.62 | Q166: 265.62 | R166: 265.62 | S166: 0 | T166: 0 | U166: 0 | V166: 265.62 | W166: 0 | X166: =VLOOKUP(A166,'личные рез-ты по гонкам списком'!$J$1:$N$851,2,FALSE) -> М
A167: Заяц Александр / Zayats Aleksandr / 1978 | F167: 267.98 | Q167: 267.98 | R167: 267.98 | S167: 0 | T167: 0 | U167: 0 | V167: 267.98 | W167: 0 | X167: =VLOOKUP(A167,'личные рез-ты по гонкам списком'!$J$1:$N$851,2,FALSE) -> М
A168: Зеленкевич Валентина / Zelenkevich Valentina / 1999 | C168: 487.79 | Q168: 487.79 | R168: 487.79 | S168: 0 | T168: 0 | U168: 0 | V168: 487.79 | W168: 0 | X168: =VLOOKUP(A168,'личные рез-ты по гонкам списком'!$J$1:$N$851,2,FALSE) -> Ж
A169: Зеленко Алексей / Zelenko Aleksej / 1980 | I169: 131.67 | Q169: 131.67 | R169: 131.67 | S169: 0 | T169: 0 | U169: 0 | V169: 131.67 | W169: 0 | X169: =VLOOKUP(A169,'личные рез-ты по гонкам списком'!$J$1:$N$851,2,FALSE) -> М
A170: Зеленко Диана / Zelenko Diana / 1988 | G170: 128.9 | Q170: 128.9 | R170: 128.9 | S170: 0 | T170: 0 | U170: 0 | V170: 128.9 | W170: 0 | X170: =VLOOKUP(A170,'личные рез-ты по гонкам списком'!$J$1:$N$851,2,FALSE) -> Ж
A171: Зеленко Дмитрий / Zelenko Dmitrij / 1987 | E171: 343.13 | Q171: 343.13 | R171: 343.13 | S171: 0 | T171: 0 | U171: 0 | V171: 343.13 | W171: 0 | X171: =VLOOKUP(A171,'личные рез-ты по гонкам списком'!$J$1:$N$851,2,FALSE) -> М
A172: Зеленский Александр / Zelenskij Aleksandr / 1978 | M172: 162.32 | Q172: 162.32 | R172: 162.32 | S172: 0 | T172: 0 | U172: 0 | V172: 162.32 | W172: 0 | X172: =VLOOKUP(A172,'личные рез-ты по гонкам списком'!$J$1:$N$851,2,FALSE) -> М
A173: Зеленцова Галина / Zelentsova Galina / 1988 | N173: 220.67 | Q173: 220.67 | R173: 220.67 | S173: 0 | T173: 0 | U173: 0 | V173: 220.67 | W173: 0 | X173: =VLOOKUP(A173,'личные рез-ты по гонкам списком'!$J$1:$N$851,2,FALSE) -> Ж
A174: Зиновенко Павел / Zinovenko Pavel / 1997 | L174: 279.1 | Q174: 279.1 | R174: 279.1 | S174: 0 | T174: 0 | U174: 0 | V174: 279.1 | W174: 0 | X174: =VLOOKUP(A174,'личные рез-ты по гонкам списком'!$J$1:$N$851,2,FALSE) -> М
A175: Зуевский Роман / Zuevskij Roman / 1986 | H175: 186.28 | Q175: 186.28 | R175: 186.28 | S175: 0 | T175: 0 | U175: 0 | V175: 186.28 | W175: 0 | X175: =VLOOKUP(A175,'личные рез-ты по гонкам списком'!$J$1:$N$851,2,FALSE) -> М
A176: Зуй Александр / Zuj Aleksandr / 1980 | C176: 118.25 | I176: 65.83 | Q176: 184.08 | R176: 118.25 | S176: 65.83 | T176: 0 | U176: 0 | V176: 184.08 | W176: 0 | X176: =VLOOKUP(A176,'личные рез-ты по гонкам списком'!$J$1:$N$851,2,FALSE) -> М
A177: Зуй Марина / Zuj Marina / 1984 | H177: 57.32 | Q177: 57.32 | R177: 57.32 | S177: 0 | T177: 0 | U177: 0 | V177: 57.32 | W177: 0 | X177: =VLOOKUP(A177,'личные рез-ты по гонкам списком'!$J$1:$N$851,2,FALSE) -> Ж
A178: Зуйков Антон / Zujkov Anton / 1995 | M178: 339.4 | Q178: 339.4 | R178: 339.4 | S178: 0 | T178: 0 | U178: 0 | V178: 339.4 | W178: 0 | X178: =VLOOKUP(A178,'личные рез-ты по гонкам списком'!$J$1:$N$851,2,FALSE) -> М
A179: Зументс Роберт / Zuments Robert / 1979 | D179: 35.11 | Q179: 35.11 | R179: 35.11 | S179: 0 | T179: 0 | U179: 0 | V179: 35.11 | W179: 0 | X179: =VLOOKUP(A179,'личные рез-ты по гонкам списком'!$J$1:$N$851,2,FALSE) -> М
A180: Зятиков Евгений / Zyatikov Evgenij / 1982 | J180: 142.86 | M180: 9.84 | Q180: 152.7 | R180: 142.86 | S180: 9.84 | T180: 0 | U180: 0 | V180: 152.7 | W180: 0 | X180: =VLOOKUP(A180,'личные рез-ты по гонкам списком'!$J$1:$N$851,2,FALSE) -> М
A181: Зятикова Наталья / Zyatikova Natalya / 1983 | J181: 238.09 | L181: 18.54 | Q181: 256.63 | R181: 238.09 | S181: 18.54 | T181: 0 | U181: 0 | V181: 256.63 | W181: 0 | X181: =VLOOKUP(A181,'личные рез-ты по гонкам списком'!$J$1:$N$851,2,FALSE) -> Ж
A182: Иванов Денис / Ivanov Denis / 1990 | C182: 154.64 | Q182: 154.64 | R182: 154.64 | S182: 0 | T182: 0 | U182: 0 | V182: 154.64 | W182: 0 | X182: =VLOOKUP(A182,'личные рез-ты по гонкам списком'!$J$1:$N$851,2,FALSE) -> М
A183: Иванова Екатерина / Ivanova Ekaterina / 1989 | C183: 62.54 | Q183: 62.54 | R183: 62.54 | S183: 0 | T183: 0 | U183: 0 | V183: 62.54 | W183: 0 | X183: =VLOOKUP(A183,'личные рез-ты по гонкам списком'!$J$1:$N$851,2,FALSE) -> Ж
A184: Иванцов Вячеслав / Ivantsov Vyacheslav / 1986 | L184: 209.33 | Q184: 209.33 | R184: 209.33 | S184: 0 | T184: 0 | U184: 0 | V184: 209.33 | W184: 0 | X184: =VLOOKUP(A184,'личные рез-ты по гонкам списком'!$J$1:$N$851,2,FALSE) -> М
A185: Иванчик Александр / Ivanchik Aleksandr / 1990 | P185: 303.42 | Q185: 303.42 | R185: 303.42 | S185: 0 | T185: 0 | U185: 0 | V185: 303.42 | W185: 0 | X185: =VLOOKUP(A185,'личные рез-ты по гонкам списком'!$J$1:$N$851,2,FALSE) -> М
A186: Иванчик Константин / Ivanchik Konstantin / 1983 | J186: 392.86 | Q186: 392.86 | R186: 392.86 | S186: 0 | T186: 0 | U186: 0 | V186: 392.86 | W186: 0 | X186: =VLOOKUP(A186,'личные рез-ты по гонкам списком'!$J$1:$N$851,2,FALSE) -> М
A187: Игнатович Александр / Ignatovich Aleksandr / 1992 | E187: 265.93 | Q187: 265.93 | R187: 265.93 | S187: 0 | T187: 0 | U187: 0 | V187: 265.93 | W187: 0 | X187: =VLOOKUP(A187,'личные рез-ты по гонкам списком'!$J$1:$N$851,2,FALSE) -> М
A188: Илатовский Дмитрий / Ilatovskij Dmitrij / 1974 | F188: 197.79 | Q188: 197.79 | R188: 197.79 | S188: 0 | T188: 0 | U188: 0 | V188: 197.79 | W188: 0 | X188: =VLOOKUP(A188,'личные рез-ты по гонкам списком'!$J$1:$N$851,2,FALSE) -> М
A189: Иолтуховский Владислав / Ioltuhovskij Vladislav / 1971 | F189: 121.23 | I189: 263.34 | Q189: 384.57 | R189: 263.34 | S189: 121.23 | T189: 0 | U189: 0 | V189: 384.57 | W189: 0 | X189: =VLOOKUP(A189,'личные рез-ты по гонкам списком'!$J$1:$N$851,2,FALSE) -> М
A190: Исаев Антон / Isaev Anton / 1979 | B190: 838.71 | O190: 1024.1 | Q190: 1862.81 | R190: 1024.1 | S190: 838.71 | T190: 0 | U190: 0 | V190: 1862.81 | W190: 0 | X190: =VLOOKUP(A190,'личные рез-ты по гонкам списком'!$J$1:$N$851,2,FALSE) -> М
A191: Искорцев Алексей / Iskortsev Aleksej / 1980 | E191: 274.51 | M191: 122.97 | Q191: 397.48 | R191: 274.51 | S191: 122.97 | T191: 0 | U191: 0 | V191: 397.48 | W191: 0 | X191: =VLOOKUP(A191,'личные рез-ты по гонкам списком'!$J$1:$N$851,2,FALSE) -> М
A192: Йоцюс Виталий / Jotsyus Vitalij / | L192: 37.57 | Q192: 37.57 | R192: 37.57 | S192: 0 | T192: 0 | U192: 0 | V192: 37.57 | W192: 0 | X192: =VLOOKUP(A192,'личные рез-ты по гонкам списком'!$J$1:$N$851,2,FALSE) -> М
A193: Казак Дмитрий / Kazak Dmitrij / 1979 | D193: 614.4 | M193: 216.43 | Q193: 830.83 | R193: 614.4 | S193: 216.43 | T193: 0 | U193: 0 | V193: 830.83 | W193: 0 | X193: =VLOOKUP(A193,'личные рез-ты по гонкам списком'!$J$1:$N$851,2,FALSE) -> М
A194: Казак Константин / Kazak Konstantin / 2004 | N194: 134.71 | Q194: 134.71 | R194: 134.71 | S194: 0 | T194: 0 | U194: 0 | V194: 134.71 | W194: 0 | X194: =VLOOKUP(A194,'личные рез-ты по гонкам списком'!$J$1:$N$851,2,FALSE) -> М
A195: Казак Наталья / Kazak Natalya / 1979 | H195: 100.3 | N195: 17.65 | Q195: 117.95 | R195: 100.3 | S195: 17.65 | T195: 0 | U195: 0 | V195: 117.95 | W195: 0 | X195: =VLOOKUP(A195,'личные рез-ты по гонкам списком'!$J$1:$N$851,2,FALSE) -> Ж
A196: Казакевич Ирина / Kazakevich Irina / 1969 | E196: 421.29 | Q196: 421.29 | R196: =LARGE(B196:P196,1) -> 421.29 | S196: =IF(COUNT(B196:P196)=1,0,LARGE(B196:P196,2)) -> 0 | T196: =IF(COUNT(B196:P196)<3,0,LARGE(B196:P196,3)) -> 0 | U196: =IF(COUNT(B196:P196)<4,0,LARGE(B196:P196,4)) -> 0 | V196: =SUM(R196:U196) -> 421.29 | W196: =V196-Q196 -> 0 | X196: =VLOOKUP(A196,'личные рез-ты по гонкам списком'!$J$1:$N$851,2,FALSE) -> Ж
A197: Казарин Дмитрий / Kazarin Dmitrij / 1994 | C197: 227.41 | E197: 120.1 | I197: 197.5 | Q197: 545.01 | R197: 227.41 | S197: 197.5 | T197: 120.1 | U197: 0 | V197: 545.01 | W197: 0 | X197: =VLOOKUP(A197,'личные рез-ты по гонкам списком'!$J$1:$N$851,2,FALSE) -> М
A198: Калвинковская Ольга / Kalvinkovskaya Olga / 1994 | C198: 450.27 | Q198: 450.27 | R198: 450.27 | S198: 0 | T198: 0 | U198: 0 | V198: 450.27 | W198: 0 | X198: =VLOOKUP(A198,'личные рез-ты по гонкам списком'!$J$1:$N$851,2,FALSE) -> Ж
A199: Кальвинковская Екатерина / Kalvinkovskaya Ekaterina / 1993 | C199: 337.7 | Q199: 337.7 | R199: 337.7 | S199: 0 | T199: 0 | U199: 0 | V199: 337.7 | W199: 0 | X199: =VLOOKUP(A199,'личные рез-ты по гонкам списком'!$J$1:$N$851,2,FALSE) -> Ж
A200: Калюжный Дмитрий / Kalyuzhnyj Dmitrij / 1986 | L200: 21.47 | Q200: 21.47 | R200: 21.47 | S200: 0 | T200: 0 | U200: 0 | V200: 21.47 | W200: 0 | X200: =VLOOKUP(A200,'личные рез-ты по гонкам списком'!$J$1:$N$851,2,FALSE) -> М
... 396 more rows

Sheet Рейтинг Абс
A1: № п/п | B1: Фамилия, Имя, Год рождения | C1: Пол | D1: Сумма баллов
A2: 1 | B2: Синица Кирилл / Sinitsa Kirill / 1981 | C2: М | D2: 3242.29
A3: 2 | B3: Молочко Александр / Molochko Aleksandr / 1981 | C3: М | D3: 2353.91
A4: 3 | B4: Скирук Юлия / Skiruk Yuliya / 1988 | C4: Ж | D4: 2256.36
A5: 4 | B5: Крисенков Алексей / Krisenkov Aleksej / 1983 | C5: М | D5: 2232.69
A6: 5 | B6: Храмов Антон / Hramov Anton / 1991 | C6: М | D6: 2199.64
A7: 6 | B7: Тюев Даниил / Tyuev Daniil / 1977 | C7: М | D7: 2023.08
A8: 7 | B8: Харитонов Иван / Haritonov Ivan / 1973 | C8: М | D8: 1961.09
A9: 8 | B9: Исаев Антон / Isaev Anton / 1979 | C9: М | D9: 1862.81
A10: 9 | B10: Лысенко Павел / Lysenko Pavel / 1966 | C10: М | D10: 1835.31
A11: 10 | B11: Скуратович Антон / Skuratovich Anton / 1985 | C11: М | D11: 1825.44
A12: 11 | B12: Селютин Владимир / Selyutin Vladimir / 1990 | C12: М | D12: 1752.15
A13: 12 | B13: Попадюк Игорь / Popadyuk Igor / 1982 | C13: М | D13: 1704.03
A14: 13 | B14: Вагин Андрей / Vagin Andrej / 1989 | C14: М | D14: 1671.86
A15: 14 | B15: Коровец Богдан / Korovets Bogdan / 1976 | C15: М | D15: 1619.81
A16: 15 | B16: Маркевич Денис / Markevich Denis / 1981 | C16: М | D16: 1589.92
A17: 16 | B17: Борисевич Леонид / Borisevich Leonid / 1969 | C17: М | D17: 1588.27
A18: 17 | B18: Лойко Сергей / Lojko Sergej / 1985 | C18: М | D18: 1522.78
A19: 18 | B19: Федорович Николай / Fedorovich Nikolaj / 1959 | C19: М | D19: 1507.3
A20: 19 | B20: Березовский Андрей / Berezovskij Andrej / 1973 | C20: М | D20: 1454.44
A21: 20 | B21: Черкас Александра / Cherkas Aleksandra / 1992 | C21: Ж | D21: 1430.74
A22: 21 | B22: Хорошавин Вячеслав / Horoshavin Vyacheslav / 1985 | C22: М | D22: 1420.8
A23: 22 | B23: Лисовский Виктор / Lisovskij Viktor / 1964 | C23: М | D23: 1407.48
A24: 23 | B24: Сидоревич Александр / Sidorevich Aleksandr / 1985 | C24: М | D24: 1396.03
A25: 24 | B25: Глушков Александр / Glushkov Aleksandr / 1980 | C25: М | D25: 1385.2
A26: 25 | B26: Суховерхая Татьяна / Suhoverhaya Tatyana / 1986 | C26: Ж | D26: 1356.5
A27: 26 | B27: Цвирбут Юлия / Tsvirbut Yuliya / 1992 | C27: Ж | D27: 1352.71
A28: 27 | B28: Подрез Ярослав / Podrez Yaroslav / 1996 | C28: М | D28: 1346.74
A29: 28 | B29: Мальков Валентин / Malkov Valentin / 1988 | C29: М | D29: 1327.33
A30: 29 | B30: Лесковец Александр / Leskovets Aleksandr / 1990 | C30: М | D30: 1317.88
A31: 30 | B31: Белая Юлия / Belaya Yuliya / 1988 | C31: Ж | D31: 1314.28
A32: 31 | B32: Тарасенко Павел / Tarasenko Pavel / 1983 | C32: М | D32: 1302.43
A33: 32 | B33: Ласюк Юрий / Lasyuk Yurij / 1987 | C33: М | D33: 1294.67
A34: 33 | B34: Володько Андрей / Volodko Andrej / 1986 | C34: М | D34: 1255.39
A35: 34 | B35: Мартысевич Роман / Martysevich Roman / 1993 | C35: М | D35: 1200.08
A36: 35 | B36: Сулимчик Оксана / Sulimchik Oksana / 1986 | C36: Ж | D36: 1195.93
A37: 36 | B37: Михно Алла / Mihno Alla / 1979 | C37: Ж | D37: 1143.49
A38: 37 | B38: Молчан Александр / Molchan Aleksandr / 1988 | C38: М | D38: 1125.97
A39: 38 | B39: Суховей Михаил / Suhovej Mihail / 1991 | C39: М | D39: 1118.68
A40: 39 | B40: Милинкевич Елена / Milinkevich Elena / 1977 | C40: Ж | D40: 1106.72
A41: 40 | B41: Тихонов Василий / Tihonov Vasilij / 1993 | C41: М | D41: 1086.92
A42: 41 | B42: Бузо Александр / Buzo Aleksandr / 1982 | C42: М | D42: 1084.23
A43: 42 | B43: Пивень Андрей / Piven Andrej / 1992 | C43: М | D43: 1066.77
A44: 43 | B44: Евсюченя Александр / Evsyuchenya Aleksandr / 1991 | C44: М | D44: 1066.06
A45: 44 | B45: Алексеев Алексей / Alekseev Aleksej / 1980 | C45: М | D45: 1053.13
A46: 45 | B46: Генсировский Павел / Gensirovskij Pavel / 1979 | C46: М | D46: 1041.15
A47: 46 | B47: Гурская Татьяна / Gurskaya Tatyana / 1980 | C47: Ж | D47: 1041.15
A48: 47 | B48: Рагойша Пётр / Ragojsha Pjotr / 1976 | C48: М | D48: 1036.52
A49: 48 | B49: Жидович Вадим / Zhidovich Vadim / 1984 | C49: М | D49: 1000.47
A50: 49 | B50: Козич Андрей / Kozich Andrej / 1986 | C50: М | D50: 983.31
A51: 50 | B51: Полякова Анна / Polyakova Anna / 1987 | C51: Ж | D51: 963.02
A52: 51 | B52: Овсиюк Богдан / Ovsiyuk Bogdan / 1993 | C52: М | D52: 954.94
A53: 52 | B53: Грабовец Павел / Grabovets Pavel / 1981 | C53: М | D53: 954.39
A54: 53 | B54: Лавник Игорь / Lavnik Igor / 1983 | C54: М | D54: 942.61
A55: 54 | B55: Шепетько Сергей / Shepetko Sergej / 1987 | C55: М | D55: 915.17
A56: 55 | B56: Едомская Вольга / Edomskaya Volga / 1987 | C56: Ж | D56: 881.69
A57: 56 | B57: Побединский Александр / Pobedinskij Aleksandr / 1983 | C57: М | D57: 867.63
A58: 57 | B58: Католиков Роман / Katolikov Roman / 1985 | C58: М | D58: 865.91
A59: 58 | B59: Борисевич Анастасия / Borisevich Anastasiya / 1985 | C59: Ж | D59: 851.86
A60: 59 | B60: Леонов Иван / Leonov Ivan / 1986 | C60: М | D60: 846.91
A61: 60 | B61: Журавлёв Андрей / Zhuravljov Andrej / 1978 | C61: М | D61: 843.98
A62: 61 | B62: Дегтярев Сергей / Degtyarev Sergej / 1983 | C62: М | D62: 840.92
A63: 62 | B63: Казак Дмитрий / Kazak Dmitrij / 1979 | C63: М | D63: 830.83
A64: 63 | B64: Гилевич Диана / Gilevich Diana / 1993 | C64: Ж | D64: 822.76
A65: 64 | B65: Ермохин Максим / Ermohin Maksim / 1975 | C65: М | D65: 817.91
A66: 65 | B66: Окромешко Антон / Okromeshko Anton / 1990 | C66: М | D66: 809.79
A67: 66 | B67: Невмержицкая Анна / Nevmerzhitskaya Anna / 1997 | C67: Ж | D67: 806.14
A68: 67 | B68: Миканович Антон / Mikanovich Anton / 1990 | C68: М | D68: 805.76
A69: 68 | B69: Мосийчук Максим / Mosijchuk Maksim / 1984 | C69: М | D69: 797.65
A70: 69 | B70: Кирcанов Алексей / Kircanov Aleksej / 1981 | C70: М | D70: 795.25
A71: 70 | B71: Величко Павел / Velichko Pavel / 1982 | C71: М | D71: 776.36
A72: 71 | B72: Фенченко Алексей / Fenchenko Aleksej / 1989 | C72: М | D72: 768.07
A73: 72 | B73: Делендик Надежда / Delendik Nadezhda / 1987 | C73: Ж | D73: 766.62
A74: 73 | B74: Брытько Роман / Brytko Roman / 1995 | C74: М | D74: 762.22
A75: 74 | B75: Палий Андрей / Palij Andrej / 1984 | C75: М | D75: 747.22
A76: 75 | B76: Кордунская Екатерина / Kordunskaya Ekaterina / 1983 | C76: Ж | D76: 730.53
A77: 76 | B77: Торубарова Татьяна / Torubarova Tatyana / 1983 | C77: Ж | D77: 719.72
A78: 77 | B78: Некрасов Василий / Nekrasov Vasilij / 1986 | C78: М | D78: 715.21
A79: 78 | B79: Брагин Иван / Bragin Ivan / 1986 | C79: М | D79: 714.28
A80: 79 | B80: Чернель Татьяна / Chernel Tatyana / 1982 | C80: Ж | D80: 710.82
A81: 80 | B81: Попов Юрий / Popov Yurij / 1969 | C81: М | D81: 702.17
A82: 81 | B82: Пухаева Светлана / Puhaeva Svetlana / 1980 | C82: Ж | D82: 697.87
A83: 82 | B83: Новікаў Анатоль / Novіkau Anatol / 1984 | C83: М | D83: 694.1
A84: 83 | B84: Полещук Татьяна / Poleschuk Tatyana / 1988 | C84: Ж | D84: 694.1
A85: 84 | B85: Грек Илья / Grek Ilya / 1992 | C85: М | D85: 685.56
A86: 85 | B86: Белинская Галина / Belinskaya Galina / 1980 | C86: Ж | D86: 684.25
A87: 86 | B87: Юкевич Александр / Yukevich Aleksandr / 1983 | C87: М | D87: 674.7
A88: 87 | B88: Орловский Павел / Orlovskij Pavel / 1989 | C88: М | D88: 670.27
A89: 88 | B89: Гидлевский Дмитрий / Gidlevskij Dmitrij / 1986 | C89: М | D89: 668.6
A90: 89 | B90: Журавлёва Оксана / Zhuravljova Oksana / 1980 | C90: Ж | D90: 664.68
A91: 90 | B91: Печёнов Георгий / Pechjonov Georgij / 1975 | C91: М | D91: 663.09
A92: 91 | B92: Олин Денис / Olin Denis / 1976 | C92: М | D92: 657.88
A93: 92 | B93: Выборный Александр / Vybornyj Aleksandr / 1985 | C93: М | D93: 656.09
A94: 93 | B94: Нестерович Сергей / Nesterovich Sergej / 1994 | C94: М | D94: 640.06
A95: 94 | B95: Свечников Антон / Svechnikov Anton / 1991 | C95: М | D95: 632.36
A96: 95 | B96: Остаповец Евгений / Ostapovets Evgenij / 1990 | C96: М | D96: 631.76
A97: 96 | B97: Обухова Екатерина / Obuhova Ekaterina / 1978 | C97: Ж | D97: 631.62
A98: 97 | B98: Бабицкий Кирилл / Babitskij Kirill / 1998 | C98: М | D98: 628.52
A99: 98 | B99: Шило Руслан / Shilo Ruslan / 1993 | C99: М | D99: 623.79
A100: 99 | B100: Жучин Алексей / Zhuchin Aleksej / 1983 | C100: М | D100: 616.21
A101: 100 | B101: Кондяр Павел / Kondyar Pavel / 1993 | C101: М | D101: 615.83
A102: 101 | B102: Нечаев Владимир / Nechaev Vladimir / 1995 | C102: М | D102: 615.77
A103: 102 | B103: Кликун Татьяна / Klikun Tatyana / 1989 | C103: Ж | D103: 609.36
A104: 103 | B104: Арабиенко Татьяна / Arabienko Tatyana / 1986 | C104: Ж | D104: 609
A105: 104 | B105: Лисовский Павел / Lisovskij Pavel / 1986 | C105: М | D105: 606.85
A106: 105 | B106: Медвецкий Денис / Medvetskij Denis / 1986 | C106: М | D106: 598.16
A107: 106 | B107: Сорокин Денис / Sorokin Denis / 1998 | C107: М | D107: 597.39
A108: 107 | B108: Прокопович Ростислав / Prokopovich Rostislav / 1982 | C108: М | D108: 596.84
A109: 108 | B109: Кислицын Артем / Kislitsyn Artem / 1992 | C109: М | D109: 596.32
A110: 109 | B110: Лещинский Владимир / Leschinskij Vladimir / 1983 | C110: М | D110: 579.29
A111: 110 | B111: Куцун Надежда / Kutsun Nadezhda / 1982 | C111: Ж | D111: 578.98
A112: 111 | B112: Гусаревич Денис / Gusarevich Denis / 1983 | C112: М | D112: 578.42
A113: 112 | B113: Шклярик Олег / Shklyarik Oleg / 1970 | C113: М | D113: 575.4
A114: 113 | B114: Михно Борис / Mihno Boris / 1982 | C114: М | D114: 570.05
A115: 114 | B115: Веремейчик Юрий / Veremejchik Yurij / 1979 | C115: М | D115: 567.81
A116: 115 | B116: Жданович Максим / Zhdanovich Maksim / 1987 | C116: М | D116: 561.73
A117: 116 | B117: Колташова Елена / Koltashova Elena / 1984 | C117: Ж | D117: 553.63
A118: 117 | B118: Трасковский Дмитрий / Traskovskij Dmitrij / 1986 | C118: М | D118: 549.5
A119: 118 | B119: Драгун Борис / Dragun Boris / 1970 | C119: М | D119: 547
A120: 119 | B120: Казарин Дмитрий / Kazarin Dmitrij / 1994 | C120: М | D120: 545.01
A121: 120 | B121: Минько Алексей / Minko Aleksej / 1997 | C121: М | D121: 544.18
A122: 121 | B122: Рачковский Сергей / Rachkovskij Sergej / 1988 | C122: М | D122: 541.83
A123: 122 | B123: Жучков Алексей / Zhuchkov Aleksej / 1985 | C123: М | D123: 541.55
A124: 123 | B124: Шапелевич Максим / Shapelevich Maksim / 1987 | C124: М | D124: 537.22
A125: 124 | B125: Тофоров Дмитрий / Toforov Dmitrij / 1991 | C125: М | D125: 536.69
A126: 125 | B126: Радиончик Александр / Radionchik Aleksandr / 1985 | C126: М | D126: 534.68
A127: 126 | B127: Баронов Роман / Baronov Roman / 1993 | C127: М | D127: 526.09
A128: 127 | B128: Хамицевич Михаил / Hamitsevich Mihail / 1980 | C128: М | D128: 516.88
A129: 128 | B129: Михалкин Сергей / Mihalkin Sergej / 1989 | C129: Ж | D129: 516.82
A130: 129 | B130: Жила Анастасия / Zhila Anastasiya / 1994 | C130: Ж | D130: 511.39
A131: 130 | B131: Сердитов Вадим / Serditov Vadim / 1993 | C131: М | D131: 510.44
A132: 131 | B132: Пучик Александр / Puchik Aleksandr / 1983 | C132: М | D132: 509.07
A133: 132 | B133: Ходан Александр / Hodan Aleksandr / 1988 | C133: М | D133: 504.06
A134: 133 | B134: Аржаников Евгений / Arzhanikov Evgenij / 1976 | C134: М | D134: 503.18
A135: 134 | B135: Ланин Иван / Lanin Ivan / 1989 | C135: М | D135: 500.97
A136: 135 | B136: Толкачев Дмитрий / Tolkachev Dmitrij / 1971 | C136: М | D136: 500.3
A137: 136 | B137: Арловская Кристина / Arlovskaya Kristina / 1989 | C137: Ж | D137: 493.59
A138: 137 | B138: Голубева Елена / Golubeva Elena / 1987 | C138: Ж | D138: 493.31
A139: 138 | B139: Шестаков Геннадий / Shestakov Gennadij / 1962 | C139: М | D139: 491.66
A140: 139 | B140: Плодунов Захар / Plodunov Zahar / 1993 | C140: М | D140: 491.2
A141: 140 | B141: Кожан Михаил / Kozhan Mihail / 1946 | C141: М | D141: 489.45
A142: 141 | B142: Зеленкевич Валентина / Zelenkevich Valentina / 1999 | C142: Ж | D142: 487.79
A143: 142 | B143: Крус Виктор / Krus Viktor / 1980 | C143: М | D143: 480.78
A144: 143 | B144: Мурашов Владимир / Murashov Vladimir / 1983 | C144: М | D144: 476.91
A145: 144 | B145: Николаевский Станислав / Nikolaevskij Stanislav / 1985 | C145: М | D145: 473.96
A146: 145 | B146: Радчук Алеся / Radchuk Alesya / 1996 | C146: Ж | D146: 473.71
A147: 146 | B147: Гилевич Кристина / Gilevich Kristina / 1994 | C147: Ж | D147: 469.83
A148: 147 | B148: Ладеев Дмитрий / Ladeev Dmitrij / 1981 | C148: М | D148: 468.31
A149: 148 | B149: Широкова Анастасия / Shirokova Anastasiya / 1988 | C149: Ж | D149: 468.13
A150: 149 | B150: Недведская Елена / Nedvedskaya Elena / 1986 | C150: Ж | D150: 466.44
A151: 150 | B151: Гриб Екатерина / Grib Ekaterina / 1981 | C151: Ж | D151: 462.73
A152: 151 | B152: Савич Евгений / Savich Evgenij / 1980 | C152: М | D152: 461.26
A153: 152 | B153: Трубкина Анастасия / Trubkina Anastasiya / 1989 | C153: Ж | D153: 460.84
A154: 153 | B154: Павловская Светлана / Pavlovskaya Svetlana / 1984 | C154: Ж | D154: 458.52
A155: 154 | B155: Леверовский Александр / Leverovskij Aleksandr / 1988 | C155: М | D155: 457.31
A156: 155 | B156: Солодкин Сергей / Solodkin Sergej / 1984 | C156: М | D156: 453.01
A157: 156 | B157: Калвинковская Ольга / Kalvinkovskaya Olga / 1994 | C157: Ж | D157: 450.27
A158: 157 | B158: Лукьяненко Александр / Lukyanenko Aleksandr / 1984 | C158: М | D158: 445.72
A159: 158 | B159: Трухтанова Елена / Truhtanova Elena / 1985 | C159: Ж | D159: 442.91
A160: 159 | B160: Лукашенок Алексей / Lukashenok Aleksej / 1978 | C160: М | D160: 440.25
A161: 160 | B161: Никонов Максим / Nikonov Maksim / 1979 | C161: М | D161: 438.9
A162: 161 | B162: Туровец Ольга / Turovets Olga / 1979 | C162: Ж | D162: 437.98
A163: 162 | B163: Стасевич Александр / Stasevich Aleksandr / 1987 | C163: М | D163: 437.49
A164: 163 | B164: Куратник Юрий / Kuratnik Yurij / 1987 | C164: М | D164: 436.63
A165: 164 | B165: Гринько Анастасия / Grinko Anastasiya / 1993 | C165: Ж | D165: 436.17
A166: 165 | B166: Комин Игорь / Komin Igor / 1959 | C166: М | D166: 433.81
A167: 166 | B167: Поцелуев Сергей / Potseluev Sergej / 1973 | C167: М | D167: 433.46
A168: 167 | B168: Мурашкина Галина / Murashkina Galina / 1988 | C168: Ж | D168: 429.81
A169: 168 | B169: Волков Николай / Volkov Nikolaj / 1989 | C169: М | D169: 428.91
A170: 169 | B170: Насвит Дмитрий / Nasvit Dmitrij / 1986 | C170: М | D170: 427.93
A171: 170 | B171: Новик Анастасия / Novik Anastasiya / 1985 | C171: Ж | D171: 427.93
A172: 171 | B172: Леденёв Андрей / Ledenjov Andrej / 1971 | C172: М | D172: 427.53
A173: 172 | B173: Камышкайло Анатолий / Kamyshkajlo Anatolij / 1981 | C173: М | D173: 427.49
A174: 173 | B174: Жданович Александра / Zhdanovich Aleksandra / 1985 | C174: Ж | D174: 426.71
A175: 174 | B175: Адамович Ирина / Adamovich Irina / 1973 | C175: Ж | D175: 425.25
A176: 175 | B176: Казакевич Ирина / Kazakevich Irina / 1969 | C176: Ж | D176: 421.29
A177: 176 | B177: Филитарин Дмитрий / Filitarin Dmitrij / 1987 | C177: М | D177: 421.11
A178: 177 | B178: Янович Лена / Yanovich Lena / 1996 | C178: Ж | D178: 421.08
A179: 178 | B179: Захаркин Сергей / Zaharkin Sergej / 1976 | C179: М | D179: 420.34
A180: 179 | B180: Якубовский Игорь / Yakubovskij Igor / 1984 | C180: М | D180: 416.18
A181: 180 | B181: Таранко Марта / Taranko Marta / 1990 | C181: Ж | D181: 415.24
A182: 181 | B182: Григорьева Светлана / Grigoreva Svetlana / 1984 | C182: Ж | D182: 414.52
A183: 182 | B183: Драгун Алина / Dragun Alina / 1993 | C183: Ж | D183: 412.75
A184: 183 | B184: Малалетников Павел / Malaletnikov Pavel / 1982 | C184: М | D184: 411.79
A185: 184 | B185: Чеботаев Сергей / Chebotaev Sergej / 1989 | C185: М | D185: 411.76
A186: 185 | B186: Сильванович Валерия / Silvanovich Valeriya / 1998 | C186: Ж | D186: 411.38
A187: 186 | B187: Балашов Никита / Balashov Nikita / 1983 | C187: М | D187: 409.34
A188: 187 | B188: Липницкая Виктория / Lipnitskaya Viktoriya / 1987 | C188: Ж | D188: 408.14
A189: 188 | B189: Копоть Александр / Kopot Aleksandr / 1992 | C189: М | D189: 404.89
A190: 189 | B190: Чудаков Владислав / Chudakov Vladislav / 1977 | C190: М | D190: 403.8
A191: 190 | B191: Коледа Татьяна / Koleda Tatyana / 1990 | C191: Ж | D191: 400.24
A192: 191 | B192: Симогостицкий Александр / Simogostitskij Aleksandr / 1987 | C192: М | D192: 399.45
A193: 192 | B193: Искорцев Алексей / Iskortsev Aleksej / 1980 | C193: М | D193: 397.48
A194: 193 | B194: Иванчик Константин / Ivanchik Konstantin / 1983 | C194: М | D194: 392.86
A195: 194 | B195: Танасейчук Анна / Tanasejchuk Anna / 1983 | C195: Ж | D195: 388.88
A196: 195 | B196: Медведева Ольга / Medvedeva Olga / 1991 | C196: Ж | D196: 387.73
A197: 196 | B197: Ткачук Дарья / Tkachuk Darya / 1981 | C197: Ж | D197: 387.54
A198: 197 | B198: Никитюк Алексей / Nikityuk Aleksej / 1985 | C198: М | D198: 386.19
A199: 198 | B199: Михнюк Виктор / Mihnyuk Viktor / 1990 | C199: М | D199: 386.02
A200: 199 | B200: Щербаков Илья / Scherbakov Ilya / 1989 | C200: М | D200: 385.7
... 395 more rows

Sheet Рейтинг М
A1: № п/п | B1: Фамилия, Имя, Год рождения | C1: Пол | D1: Сумма баллов
A2: 1 | B2: Синица Кирилл / Sinitsa Kirill / 1981 | C2: М | D2: 3242.29
A3: 2 | B3: Молочко Александр / Molochko Aleksandr / 1981 | C3: М | D3: 2353.91
A4: 3 | B4: Крисенков Алексей / Krisenkov Aleksej / 1983 | C4: М | D4: 2232.69
A5: 4 | B5: Храмов Антон / Hramov Anton / 1991 | C5: М | D5: 2199.64
A6: 5 | B6: Тюев Даниил / Tyuev Daniil / 1977 | C6: М | D6: 2023.08
A7: 6 | B7: Харитонов Иван / Haritonov Ivan / 1973 | C7: М | D7: 1961.09
A8: 7 | B8: Исаев Антон / Isaev Anton / 1979 | C8: М | D8: 1862.81
A9: 8 | B9: Лысенко Павел / Lysenko Pavel / 1966 | C9: М | D9: 1835.31
A10: 9 | B10: Скуратович Антон / Skuratovich Anton / 1985 | C10: М | D10: 1825.44
A11: 10 | B11: Селютин Владимир / Selyutin Vladimir / 1990 | C11: М | D11: 1752.15
A12: 11 | B12: Попадюк Игорь / Popadyuk Igor / 1982 | C12: М | D12: 1704.03
A13: 12 | B13: Вагин Андрей / Vagin Andrej / 1989 | C13: М | D13: 1671.86
A14: 13 | B14: Коровец Богдан / Korovets Bogdan / 1976 | C14: М | D14: 1619.81
A15: 14 | B15: Маркевич Денис / Markevich Denis / 1981 | C15: М | D15: 1589.92
A16: 15 | B16: Борисевич Леонид / Borisevich Leonid / 1969 | C16: М | D16: 1588.27
A17: 16 | B17: Лойко Сергей / Lojko Sergej / 1985 | C17: М | D17: 1522.78
A18: 17 | B18: Федорович Николай / Fedorovich Nikolaj / 1959 | C18: М | D18: 1507.3
A19: 18 | B19: Березовский Андрей / Berezovskij Andrej / 1973 | C19: М | D19: 1454.44
A20: 19 | B20: Хорошавин Вячеслав / Horoshavin Vyacheslav / 1985 | C20: М | D20: 1420.8
A21: 20 | B21: Лисовский Виктор / Lisovskij Viktor / 1964 | C21: М | D21: 1407.48
A22: 21 | B22: Сидоревич Александр / Sidorevich Aleksandr / 1985 | C22: М | D22: 1396.03
A23: 22 | B23: Глушков Александр / Glushkov Aleksandr / 1980 | C23: М | D23: 1385.2
A24: 23 | B24: Подрез Ярослав / Podrez Yaroslav / 1996 | C24: М | D24: 1346.74
A25: 24 | B25: Мальков Валентин / Malkov Valentin / 1988 | C25: М | D25: 1327.33
A26: 25 | B26: Лесковец Александр / Leskovets Aleksandr / 1990 | C26: М | D26: 1317.88
A27: 26 | B27: Тарасенко Павел / Tarasenko Pavel / 1983 | C27: М | D27: 1302.43
A28: 27 | B28: Ласюк Юрий / Lasyuk Yurij / 1987 | C28: М | D28: 1294.67
A29: 28 | B29: Володько Андрей / Volodko Andrej / 1986 | C29: М | D29: 1255.39
A30: 29 | B30: Мартысевич Роман / Martysevich Roman / 1993 | C30: М | D30: 1200.08
A31: 30 | B31: Молчан Александр / Molchan Aleksandr / 1988 | C31: М | D31: 1125.97
A32: 31 | B32: Суховей Михаил / Suhovej Mihail / 1991 | C32: М | D32: 1118.68
A33: 32 | B33: Тихонов Василий / Tihonov Vasilij / 1993 | C33: М | D33: 1086.92
A34: 33 | B34: Бузо Александр / Buzo Aleksandr / 1982 | C34: М | D34: 1084.23
A35: 34 | B35: Пивень Андрей / Piven Andrej / 1992 | C35: М | D35: 1066.77
A36: 35 | B36: Евсюченя Александр / Evsyuchenya Aleksandr / 1991 | C36: М | D36: 1066.06
A37: 36 | B37: Алексеев Алексей / Alekseev Aleksej / 1980 | C37: М | D37: 1053.13
A38: 37 | B38: Генсировский Павел / Gensirovskij Pavel / 1979 | C38: М | D38: 1041.15
A39: 38 | B39: Рагойша Пётр / Ragojsha Pjotr / 1976 | C39: М | D39: 1036.52
A40: 39 | B40: Жидович Вадим / Zhidovich Vadim / 1984 | C40: М | D40: 1000.47
A41: 40 | B41: Козич Андрей / Kozich Andrej / 1986 | C41: М | D41: 983.31
A42: 41 | B42: Овсиюк Богдан / Ovsiyuk Bogdan / 1993 | C42: М | D42: 954.94
A43: 42 | B43: Грабовец Павел / Grabovets Pavel / 1981 | C43: М | D43: 954.39
A44: 43 | B44: Лавник Игорь / Lavnik Igor / 1983 | C44: М | D44: 942.61
A45: 44 | B45: Шепетько Сергей / Shepetko Sergej / 1987 | C45: М | D45: 915.17
A46: 45 | B46: Побединский Александр / Pobedinskij Aleksandr / 1983 | C46: М | D46: 867.63
A47: 46 | B47: Католиков Роман / Katolikov Roman / 1985 | C47: М | D47: 865.91
A48: 47 | B48: Леонов Иван / Leonov Ivan / 1986 | C48: М | D48: 846.91
A49: 48 | B49: Журавлёв Андрей / Zhuravljov Andrej / 1978 | C49: М | D49: 843.98
A50: 49 | B50: Дегтярев Сергей / Degtyarev Sergej / 1983 | C50: М | D50: 840.92
A51: 50 | B51: Казак Дмитрий / Kazak Dmitrij / 1979 | C51: М | D51: 830.83
A52: 51 | B52: Ермохин Максим / Ermohin Maksim / 1975 | C52: М | D52: 817.91
A53: 52 | B53: Окромешко Антон / Okromeshko Anton / 1990 | C53: М | D53: 809.79
A54: 53 | B54: Миканович Антон / Mikanovich Anton / 1990 | C54: М | D54: 805.76
A55: 54 | B55: Мосийчук Максим / Mosijchuk Maksim / 1984 | C55: М | D55: 797.65
A56: 55 | B56: Кирcанов Алексей / Kircanov Aleksej / 1981 | C56: М | D56: 795.25
A57: 56 | B57: Величко Павел / Velichko Pavel / 1982 | C57: М | D57: 776.36
A58: 57 | B58: Фенченко Алексей / Fenchenko Aleksej / 1989 | C58: М | D58: 768.07
A59: 58 | B59: Брытько Роман / Brytko Roman / 1995 | C59: М | D59: 762.22
A60: 59 | B60: Палий Андрей / Palij Andrej / 1984 | C60: М | D60: 747.22
A61: 60 | B61: Некрасов Василий / Nekrasov Vasilij / 1986 | C61: М | D61: 715.21
A62: 61 | B62: Брагин Иван / Bragin Ivan / 1986 | C62: М | D62: 714.28
A63: 62 | B63: Попов Юрий / Popov Yurij / 1969 | C63: М | D63: 702.17
A64: 63 | B64: Новікаў Анатоль / Novіkau Anatol / 1984 | C64: М | D64: 694.1
A65: 64 | B65: Грек Илья / Grek Ilya / 1992 | C65: М | D65: 685.56
A66: 65 | B66: Юкевич Александр / Yukevich Aleksandr / 1983 | C66: М | D66: 674.7
A67: 66 | B67: Орловский Павел / Orlovskij Pavel / 1989 | C67: М | D67: 670.27
A68: 67 | B68: Гидлевский Дмитрий / Gidlevskij Dmitrij / 1986 | C68: М | D68: 668.6
A69: 68 | B69: Печёнов Георгий / Pechjonov Georgij / 1975 | C69: М | D69: 663.09
A70: 69 | B70: Олин Денис / Olin Denis / 1976 | C70: М | D70: 657.88
A71: 70 | B71: Выборный Александр / Vybornyj Aleksandr / 1985 | C71: М | D71: 656.09
A72: 71 | B72: Нестерович Сергей / Nesterovich Sergej / 1994 | C72: М | D72: 640.06
A73: 72 | B73: Свечников Антон / Svechnikov Anton / 1991 | C73: М | D73: 632.36
A74: 73 | B74: Остаповец Евгений / Ostapovets Evgenij / 1990 | C74: М | D74: 631.76
A75: 74 | B75: Бабицкий Кирилл / Babitskij Kirill / 1998 | C75: М | D75: 628.52
A76: 75 | B76: Шило Руслан / Shilo Ruslan / 1993 | C76: М | D76: 623.79
A77: 76 | B77: Жучин Алексей / Zhuchin Aleksej / 1983 | C77: М | D77: 616.21
A78: 77 | B78: Кондяр Павел / Kondyar Pavel / 1993 | C78: М | D78: 615.83
A79: 78 | B79: Нечаев Владимир / Nechaev Vladimir / 1995 | C79: М | D79: 615.77
A80: 79 | B80: Лисовский Павел / Lisovskij Pavel / 1986 | C80: М | D80: 606.85
A81: 80 | B81: Медвецкий Денис / Medvetskij Denis / 1986 | C81: М | D81: 598.16
A82: 81 | B82: Сорокин Денис / Sorokin Denis / 1998 | C82: М | D82: 597.39
A83: 82 | B83: Прокопович Ростислав / Prokopovich Rostislav / 1982 | C83: М | D83: 596.84
A84: 83 | B84: Кислицын Артем / Kislitsyn Artem / 1992 | C84: М | D84: 596.32
A85: 84 | B85: Лещинский Владимир / Leschinskij Vladimir / 1983 | C85: М | D85: 579.29
A86: 85 | B86: Гусаревич Денис / Gusarevich Denis / 1983 | C86: М | D86: 578.42
A87: 86 | B87: Шклярик Олег / Shklyarik Oleg / 1970 | C87: М | D87: 575.4
A88: 87 | B88: Михно Борис / Mihno Boris / 1982 | C88: М | D88: 570.05
A89: 88 | B89: Веремейчик Юрий / Veremejchik Yurij / 1979 | C89: М | D89: 567.81
A90: 89 | B90: Жданович Максим / Zhdanovich Maksim / 1987 | C90: М | D90: 561.73
A91: 90 | B91: Трасковский Дмитрий / Traskovskij Dmitrij / 1986 | C91: М | D91: 549.5
A92: 91 | B92: Драгун Борис / Dragun Boris / 1970 | C92: М | D92: 547
A93: 92 | B93: Казарин Дмитрий / Kazarin Dmitrij / 1994 | C93: М | D93: 545.01
A94: 93 | B94: Минько Алексей / Minko Aleksej / 1997 | C94: М | D94: 544.18
A95: 94 | B95: Рачковский Сергей / Rachkovskij Sergej / 1988 | C95: М | D95: 541.83
A96: 95 | B96: Жучков Алексей / Zhuchkov Aleksej / 1985 | C96: М | D96: 541.55
A97: 96 | B97: Шапелевич Максим / Shapelevich Maksim / 1987 | C97: М | D97: 537.22
A98: 97 | B98: Тофоров Дмитрий / Toforov Dmitrij / 1991 | C98: М | D98: 536.69
A99: 98 | B99: Радиончик Александр / Radionchik Aleksandr / 1985 | C99: М | D99: 534.68
A100: 99 | B100: Баронов Роман / Baronov Roman / 1993 | C100: М | D100: 526.09
A101: 100 | B101: Хамицевич Михаил / Hamitsevich Mihail / 1980 | C101: М | D101: 516.88
A102: 101 | B102: Сердитов Вадим / Serditov Vadim / 1993 | C102: М | D102: 510.44
A103: 102 | B103: Пучик Александр / Puchik Aleksandr / 1983 | C103: М | D103: 509.07
A104: 103 | B104: Ходан Александр / Hodan Aleksandr / 1988 | C104: М | D104: 504.06
A105: 104 | B105: Аржаников Евгений / Arzhanikov Evgenij / 1976 | C105: М | D105: 503.18
A106: 105 | B106: Ланин Иван / Lanin Ivan / 1989 | C106: М | D106: 500.97
A107: 106 | B107: Толкачев Дмитрий / Tolkachev Dmitrij / 1971 | C107: М | D107: 500.3
A108: 107 | B108: Шестаков Геннадий / Shestakov Gennadij / 1962 | C108: М | D108: 491.66
A109: 108 | B109: Плодунов Захар / Plodunov Zahar / 1993 | C109: М | D109: 491.2
A110: 109 | B110: Кожан Михаил / Kozhan Mihail / 1946 | C110: М | D110: 489.45
A111: 110 | B111: Крус Виктор / Krus Viktor / 1980 | C111: М | D111: 480.78
A112: 111 | B112: Мурашов Владимир / Murashov Vladimir / 1983 | C112: М | D112: 476.91
A113: 112 | B113: Николаевский Станислав / Nikolaevskij Stanislav / 1985 | C113: М | D113: 473.96
A114: 113 | B114: Ладеев Дмитрий / Ladeev Dmitrij / 1981 | C114: М | D114: 468.31
A115: 114 | B115: Савич Евгений / Savich Evgenij / 1980 | C115: М | D115: 461.26
A116: 115 | B116: Леверовский Александр / Leverovskij Aleksandr / 1988 | C116: М | D116: 457.31
A117: 116 | B117: Солодкин Сергей / Solodkin Sergej / 1984 | C117: М | D117: 453.01
A118: 117 | B118: Лукьяненко Александр / Lukyanenko Aleksandr / 1984 | C118: М | D118: 445.72
A119: 118 | B119: Лукашенок Алексей / Lukashenok Aleksej / 1978 | C119: М | D119: 440.25
A120: 119 | B120: Никонов Максим / Nikonov Maksim / 1979 | C120: М | D120: 438.9
A121: 120 | B121: Стасевич Александр / Stasevich Aleksandr / 1987 | C121: М | D121: 437.49
A122: 121 | B122: Куратник Юрий / Kuratnik Yurij / 1987 | C122: М | D122: 436.63
A123: 122 | B123: Комин Игорь / Komin Igor / 1959 | C123: М | D123: 433.81
A124: 123 | B124: Поцелуев Сергей / Potseluev Sergej / 1973 | C124: М | D124: 433.46
A125: 124 | B125: Волков Николай / Volkov Nikolaj / 1989 | C125: М | D125: 428.91
A126: 125 | B126: Насвит Дмитрий / Nasvit Dmitrij / 1986 | C126: М | D126: 427.93
A127: 126 | B127: Леденёв Андрей / Ledenjov Andrej / 1971 | C127: М | D127: 427.53
A128: 127 | B128: Камышкайло Анатолий / Kamyshkajlo Anatolij / 1981 | C128: М | D128: 427.49
A129: 128 | B129: Филитарин Дмитрий / Filitarin Dmitrij / 1987 | C129: М | D129: 421.11
A130: 129 | B130: Захаркин Сергей / Zaharkin Sergej / 1976 | C130: М | D130: 420.34
A131: 130 | B131: Якубовский Игорь / Yakubovskij Igor / 1984 | C131: М | D131: 416.18
A132: 131 | B132: Малалетников Павел / Malaletnikov Pavel / 1982 | C132: М | D132: 411.79
A133: 132 | B133: Чеботаев Сергей / Chebotaev Sergej / 1989 | C133: М | D133: 411.76
A134: 133 | B134: Балашов Никита / Balashov Nikita / 1983 | C134: М | D134: 409.34
A135: 134 | B135: Копоть Александр / Kopot Aleksandr / 1992 | C135: М | D135: 404.89
A136: 135 | B136: Чудаков Владислав / Chudakov Vladislav / 1977 | C136: М | D136: 403.8
A137: 136 | B137: Симогостицкий Александр / Simogostitskij Aleksandr / 1987 | C137: М | D137: 399.45
A138: 137 | B138: Искорцев Алексей / Iskortsev Aleksej / 1980 | C138: М | D138: 397.48
A139: 138 | B139: Иванчик Константин / Ivanchik Konstantin / 1983 | C139: М | D139: 392.86
A140: 139 | B140: Никитюк Алексей / Nikityuk Aleksej / 1985 | C140: М | D140: 386.19
A141: 140 | B141: Михнюк Виктор / Mihnyuk Viktor / 1990 | C141: М | D141: 386.02
A142: 141 | B142: Щербаков Илья / Scherbakov Ilya / 1989 | C142: М | D142: 385.7
A143: 142 | B143: Иолтуховский Владислав / Ioltuhovskij Vladislav / 1971 | C143: М | D143: 384.57
A144: 143 | B144: Новиченко Антон / Novichenko Anton / 1997 | C144: М | D144: 383.67
A145: 144 | B145: Тривашкевич Евгений / Trivashkevich Evgenij / 1996 | C145: М | D145: 382.83
A146: 145 | B146: Яцкевич Кирилл / Yatskevich Kirill / 2001 | C146: М | D146: 382.05
A147: 146 | B147: Чичин Юрий / Chichin Yurij / 1979 | C147: М | D147: 380.78
A148: 147 | B148: Таран Виталий / Taran Vitalij / 1983 | C148: М | D148: 377.51
A149: 148 | B149: Астапов Владимир / Astapov Vladimir / 1977 | C149: М | D149: 375.97
A150: 149 | B150: Пісарчык Сяргей / Pіsarchyk Syargej / 1980 | C150: М | D150: 373.83
A151: 150 | B151: Кошур Александр / Koshur Aleksandr / 1988 | C151: М | D151: 372.95
A152: 151 | B152: Лещевич Валерий / Leschevich Valerij / 1989 | C152: М | D152: 372.56
A153: 152 | B153: Остапов Владимир / Ostapov Vladimir / 1977 | C153: М | D153: 370.07
A154: 153 | B154: Аноничев Александр / Anonichev Aleksandr / 1982 | C154: М | D154: 368.91
A155: 154 | B155: Труханов Сергей / Truhanov Sergej / 1987 | C155: М | D155: 368.64
A156: 155 | B156: Мартынов Дмитрий / Martynov Dmitrij / 1984 | C156: М | D156: 365.91
A157: 156 | B157: Салодкин Сергей / Salodkin Sergej / 1984 | C157: М | D157: 363.99
A158: 157 | B158: Симонов Вадим / Simonov Vadim / 1985 | C158: М | D158: 363.43
A159: 158 | B159: Кусов Иван / Kusov Ivan / 1993 | C159: М | D159: 362.09
A160: 159 | B160: Пузаревский Роман / Puzarevskij Roman / 1994 | C160: М | D160: 360.29
A161: 160 | B161: Дельянов Одиссей / Delyanov Odissej / 1979 | C161: М | D161: 357.31
A162: 161 | B162: Гладковский Владислав / Gladkovskij Vladislav / 1990 | C162: М | D162: 354.76
A163: 162 | B163: Асаевич Роман / Asaevich Roman / 1964 | C163: М | D163: 351.08
A164: 163 | B164: Титуленко Егор / Titulenko Egor / 1983 | C164: М | D164: 347.05
A165: 164 | B165: Быков Владимир / Bykov Vladimir / 1977 | C165: М | D165: 346.77
A166: 165 | B166: Гамидов Тимур / Gamidov Timur / 1996 | C166: М | D166: 345.95
A167: 166 | B167: Бабич Виталий / Babich Vitalij / 1981 | C167: М | D167: 345.66
A168: 167 | B168: Зеленко Дмитрий / Zelenko Dmitrij / 1987 | C168: М | D168: 343.13
A169: 168 | B169: Зуйков Антон / Zujkov Anton / 1995 | C169: М | D169: 339.4
A170: 169 | B170: Корожан Александр / Korozhan Aleksandr / 1971 | C170: М | D170: 336.57
A171: 170 | B171: Борисевич Александр / Borisevich Aleksandr / 1989 | C171: М | D171: 336.36
A172: 171 | B172: Юлов Герман / Yulov German / 1993 | C172: М | D172: 333.53
A173: 172 | B173: Воробьёв Дмитрий / Vorobjov Dmitrij / 1988 | C173: М | D173: 329.18
A174: 173 | B174: Коледа Константин / Koleda Konstantin / 1976 | C174: М | D174: 327.47
A175: 174 | B175: Павленко Юрий / Pavlenko Yurij / 1983 | C175: М | D175: 325.98
A176: 175 | B176: Бокша Сергей / Boksha Sergej / 1988 | C176: М | D176: 319.02
A177: 176 | B177: Шабанов Олег / Shabanov Oleg / 1971 | C177: М | D177: 318.64
A178: 177 | B178: Левчук Александр / Levchuk Aleksandr / 1970 | C178: М | D178: 318.2
A179: 178 | B179: Рачковский Николай / Rachkovskij Nikolaj / 1985 | C179: М | D179: 318.13
A180: 179 | B180: Кузьменок Денис / Kuzmenok Denis / 1979 | C180: М | D180: 317.74
A181: 180 | B181: Слободько Дмитрий / Slobodko Dmitrij / 1984 | C181: М | D181: 317.4
A182: 181 | B182: Маханьков Александр / Mahankov Aleksandr / 1983 | C182: М | D182: 314.8
A183: 182 | B183: Явтушенко Вадим / Yavtushenko Vadim / 1981 | C183: М | D183: 314.35
A184: 183 | B184: Герасимук Юрий / Gerasimuk Yurij / 1992 | C184: М | D184: 309.28
A185: 184 | B185: Бунос Анатолий / Bunos Anatolij / 1956 | C185: М | D185: 308.82
A186: 185 | B186: Андуро Сергей / Anduro Sergej / 1986 | C186: М | D186: 307.23
A187: 186 | B187: Львовский Андрей / Lvovskij Andrej / 1991 | C187: М | D187: 306.26
A188: 187 | B188: Афанасьев Иван / Afanasev Ivan / 1979 | C188: М | D188: 305.94
A189: 188 | B189: Иванчик Александр / Ivanchik Aleksandr / 1990 | C189: М | D189: 303.42
A190: 189 | B190: Анацко Леонид / Anatsko Leonid / 1961 | C190: М | D190: 303.08
A191: 190 | B191: Комар Артем / Komar Artem / 1998 | C191: М | D191: 302.71
A192: 191 | B192: Мертенс Андрей / Mertens Andrej / 1992 | C192: М | D192: 301.63
A193: 192 | B193: Шипунов Олег / Shipunov Oleg / 1992 | C193: М | D193: 300.76
A194: 193 | B194: Буховецкий Андрей / Buhovetskij Andrej / 1987 | C194: М | D194: 300.18
A195: 194 | B195: Попов Александр / Popov Aleksandr / 1986 | C195: М | D195: 300.05
A196: 195 | B196: Марчук Александр / Marchuk Aleksandr / 1986 | C196: М | D196: 299.88
A197: 196 | B197: Гайдуков Александр / Gajdukov Aleksandr / 1989 | C197: М | D197: 299.38
A198: 197 | B198: Сафонов Юрий / Safonov Yurij / 1983 | C198: М | D198: 298.42
A199: 198 | B199: Николаевич Дмитрий / Nikolaevich Dmitrij / 1999 | C199: М | D199: 295.21
A200: 199 | B200: Куликовский Ян / Kulikovskij Yan / 1992 | C200: М | D200: 289.54
... 214 more rows

Sheet Рейтинг ж
A1: № п/п | B1: Фамилия, Имя, Год рождения | C1: Пол | D1: Сумма баллов
A2: 1 | B2: Скирук Юлия / Skiruk Yuliya / 1988 | C2: Ж | D2: 2256.36
A3: 2 | B3: Черкас Александра / Cherkas Aleksandra / 1992 | C3: Ж | D3: 1430.74
A4: 3 | B4: Суховерхая Татьяна / Suhoverhaya Tatyana / 1986 | C4: Ж | D4: 1356.5
A5: 4 | B5: Цвирбут Юлия / Tsvirbut Yuliya / 1992 | C5: Ж | D5: 1352.71
A6: 5 | B6: Белая Юлия / Belaya Yuliya / 1988 | C6: Ж | D6: 1314.28
A7: 6 | B7: Сулимчик Оксана / Sulimchik Oksana / 1986 | C7: Ж | D7: 1195.93
A8: 7 | B8: Михно Алла / Mihno Alla / 1979 | C8: Ж | D8: 1143.49
A9: 8 | B9: Милинкевич Елена / Milinkevich Elena / 1977 | C9: Ж | D9: 1106.72
A10: 9 | B10: Гурская Татьяна / Gurskaya Tatyana / 1980 | C10: Ж | D10: 1041.15
A11: 10 | B11: Полякова Анна / Polyakova Anna / 1987 | C11: Ж | D11: 963.02
A12: 11 | B12: Едомская Вольга / Edomskaya Volga / 1987 | C12: Ж | D12: 881.69
A13: 12 | B13: Борисевич Анастасия / Borisevich Anastasiya / 1985 | C13: Ж | D13: 851.86
A14: 13 | B14: Гилевич Диана / Gilevich Diana / 1993 | C14: Ж | D14: 822.76
A15: 14 | B15: Невмержицкая Анна / Nevmerzhitskaya Anna / 1997 | C15: Ж | D15: 806.14
A16: 15 | B16: Делендик Надежда / Delendik Nadezhda / 1987 | C16: Ж | D16: 766.62
A17: 16 | B17: Кордунская Екатерина / Kordunskaya Ekaterina / 1983 | C17: Ж | D17: 730.53
A18: 17 | B18: Торубарова Татьяна / Torubarova Tatyana / 1983 | C18: Ж | D18: 719.72
A19: 18 | B19: Чернель Татьяна / Chernel Tatyana / 1982 | C19: Ж | D19: 710.82
A20: 19 | B20: Пухаева Светлана / Puhaeva Svetlana / 1980 | C20: Ж | D20: 697.87
A21: 20 | B21: Полещук Татьяна / Poleschuk Tatyana / 1988 | C21: Ж | D21: 694.1
A22: 21 | B22: Белинская Галина / Belinskaya Galina / 1980 | C22: Ж | D22: 684.25
A23: 22 | B23: Журавлёва Оксана / Zhuravljova Oksana / 1980 | C23: Ж | D23: 664.68
A24: 23 | B24: Обухова Екатерина / Obuhova Ekaterina / 1978 | C24: Ж | D24: 631.62
A25: 24 | B25: Кликун Татьяна / Klikun Tatyana / 1989 | C25: Ж | D25: 609.36
A26: 25 | B26: Арабиенко Татьяна / Arabienko Tatyana / 1986 | C26: Ж | D26: 609
A27: 26 | B27: Куцун Надежда / Kutsun Nadezhda / 1982 | C27: Ж | D27: 578.98
A28: 27 | B28: Колташова Елена / Koltashova Elena / 1984 | C28: Ж | D28: 553.63
A29: 28 | B29: Михалкин Сергей / Mihalkin Sergej / 1989 | C29: Ж | D29: 516.82
A30: 29 | B30: Жила Анастасия / Zhila Anastasiya / 1994 | C30: Ж | D30: 511.39
A31: 30 | B31: Арловская Кристина / Arlovskaya Kristina / 1989 | C31: Ж | D31: 493.59
A32: 31 | B32: Голубева Елена / Golubeva Elena / 1987 | C32: Ж | D32: 493.31
A33: 32 | B33: Зеленкевич Валентина / Zelenkevich Valentina / 1999 | C33: Ж | D33: 487.79
A34: 33 | B34: Радчук Алеся / Radchuk Alesya / 1996 | C34: Ж | D34: 473.71
A35: 34 | B35: Гилевич Кристина / Gilevich Kristina / 1994 | C35: Ж | D35: 469.83
A36: 35 | B36: Широкова Анастасия / Shirokova Anastasiya / 1988 | C36: Ж | D36: 468.13
A37: 36 | B37: Недведская Елена / Nedvedskaya Elena / 1986 | C37: Ж | D37: 466.44
A38: 37 | B38: Гриб Екатерина / Grib Ekaterina / 1981 | C38: Ж | D38: 462.73
A39: 38 | B39: Трубкина Анастасия / Trubkina Anastasiya / 1989 | C39: Ж | D39: 460.84
A40: 39 | B40: Павловская Светлана / Pavlovskaya Svetlana / 1984 | C40: Ж | D40: 458.52
A41: 40 | B41: Калвинковская Ольга / Kalvinkovskaya Olga / 1994 | C41: Ж | D41: 450.27
A42: 41 | B42: Трухтанова Елена / Truhtanova Elena / 1985 | C42: Ж | D42: 442.91
A43: 42 | B43: Туровец Ольга / Turovets Olga / 1979 | C43: Ж | D43: 437.98
A44: 43 | B44: Гринько Анастасия / Grinko Anastasiya / 1993 | C44: Ж | D44: 436.17
A45: 44 | B45: Мурашкина Галина / Murashkina Galina / 1988 | C45: Ж | D45: 429.81
A46: 45 | B46: Новик Анастасия / Novik Anastasiya / 1985 | C46: Ж | D46: 427.93
A47: 46 | B47: Жданович Александра / Zhdanovich Aleksandra / 1985 | C47: Ж | D47: 426.71
A48: 47 | B48: Адамович Ирина / Adamovich Irina / 1973 | C48: Ж | D48: 425.25
A49: 48 | B49: Казакевич Ирина / Kazakevich Irina / 1969 | C49: Ж | D49: 421.29
A50: 49 | B50: Янович Лена / Yanovich Lena / 1996 | C50: Ж | D50: 421.08
A51: 50 | B51: Таранко Марта / Taranko Marta / 1990 | C51: Ж | D51: 415.24
A52: 51 | B52: Григорьева Светлана / Grigoreva Svetlana / 1984 | C52: Ж | D52: 414.52
A53: 52 | B53: Драгун Алина / Dragun Alina / 1993 | C53: Ж | D53: 412.75
A54: 53 | B54: Сильванович Валерия / Silvanovich Valeriya / 1998 | C54: Ж | D54: 411.38
A55: 54 | B55: Липницкая Виктория / Lipnitskaya Viktoriya / 1987 | C55: Ж | D55: 408.14
A56: 55 | B56: Коледа Татьяна / Koleda Tatyana / 1990 | C56: Ж | D56: 400.24
A57: 56 | B57: Танасейчук Анна / Tanasejchuk Anna / 1983 | C57: Ж | D57: 388.88
A58: 57 | B58: Медведева Ольга / Medvedeva Olga / 1991 | C58: Ж | D58: 387.73
A59: 58 | B59: Ткачук Дарья / Tkachuk Darya / 1981 | C59: Ж | D59: 387.54
A60: 59 | B60: Янченко Ксения / Yanchenko Kseniya / 1997 | C60: Ж | D60: 375.22
A61: 60 | B61: Грейд Юлия / Grejd Yuliya / 1986 | C61: Ж | D61: 359.03
A62: 61 | B62: Куцакова Татьяна / Kutsakova Tatyana / 1987 | C62: Ж | D62: 358.23
A63: 62 | B63: Ямбушева Катерина / Yambusheva Katerina / 1987 | C63: Ж | D63: 356.48
A64: 63 | B64: Варданян Кристина / Vardanyan Kristina / 1981 | C64: Ж | D64: 350.21
A65: 64 | B65: Тимошенко Алена / Timoshenko Alena / 1982 | C65: Ж | D65: 343.9
A66: 65 | B66: Кальвинковская Екатерина / Kalvinkovskaya Ekaterina / 1993 | C66: Ж | D66: 337.7
A67: 66 | B67: Лавриченок Светлана / Lavrichenok Svetlana / 1971 | C67: Ж | D67: 332.18
A68: 67 | B68: Сикорская Настя / Sikorskaya Nastya / 1983 | C68: Ж | D68: 324.07
A69: 68 | B69: Пехтерева Татьяна / Pehtereva Tatyana / 1987 | C69: Ж | D69: 309.35
A70: 69 | B70: Коротких Елена / Korotkih Elena / 1984 | C70: Ж | D70: 296.26
A71: 70 | B71: Козич Галина / Kozich Galina / 1990 | C71: Ж | D71: 287.4
A72: 71 | B72: Телегина София / Telegina Sofiya / 1991 | C72: Ж | D72: 286.58
A73: 72 | B73: Жучина Катерина / Zhuchina Katerina / 1986 | C73: Ж | D73: 283.64
A74: 73 | B74: Хлопцева Инга / Hloptseva Inga / 1982 | C74: Ж | D74: 283.57
A75: 74 | B75: Литвинская Людмила / Litvinskaya Lyudmila / 1977 | C75: Ж | D75: 281.9
A76: 75 | B76: Титова Инна / Titova Inna / 1986 | C76: Ж | D76: 278.13
A77: 76 | B77: Грицук Татьяна / Gritsuk Tatyana / 1973 | C77: Ж | D77: 276.82
A78: 77 | B78: Бондарь Юлия / Bondar Yuliya / 1993 | C78: Ж | D78: 275.16
A79: 78 | B79: Кожемякина Анна / Kozhemyakina Anna / 1991 | C79: Ж | D79: 272.37
A80: 79 | B80: Чеснокова Надежда / Chesnokova Nadezhda / 1988 | C80: Ж | D80: 270.68
A81: 80 | B81: Шахметова Наташа / Shahmetova Natasha / 1992 | C81: Ж | D81: 268.86
A82: 81 | B82: Швайковская Ольга / Shvajkovskaya Olga / 1979 | C82: Ж | D82: 263.34
A83: 82 | B83: Кузеева Марина / Kuzeeva Marina / 1986 | C83: Ж | D83: 262.66
A84: 83 | B84: Чеботаева Валерия / Chebotaeva Valeriya / 1993 | C84: Ж | D84: 259.26
A85: 84 | B85: Шаповалова Ирина / Shapovalova Irina / 1993 | C85: Ж | D85: 257.8
A86: 85 | B86: Зятикова Наталья / Zyatikova Natalya / 1983 | C86: Ж | D86: 256.63
A87: 86 | B87: Малькевич Елена / Malkevich Elena / 1984 | C87: Ж | D87: 250.32
A88: 87 | B88: Марченко Людмила / Marchenko Lyudmila / 1972 | C88: Ж | D88: 250.15
A89: 88 | B89: Кукобникова Вита / Kukobnikova Vita / 1993 | C89: Ж | D89: 243.77
A90: 89 | B90: Малаховская Татьяна / Malahovskaya Tatyana / 1989 | C90: Ж | D90: 243.05
A91: 90 | B91: Верамейчик Елена / Veramejchik Elena / | C91: Ж | D91: 241.04
A92: 91 | B92: Нефедова Оксана / Nefedova Oksana / 1979 | C92: Ж | D92: 237.64
A93: 92 | B93: Будрик Юлия / Budrik Yuliya / 1995 | C93: Ж | D93: 231.77
A94: 93 | B94: Пиньковская Ирина / Pinkovskaya Irina / 1986 | C94: Ж | D94: 229.5
A95: 94 | B95: Булеева Наталья / Buleeva Natalya / 1969 | C95: Ж | D95: 226.85
A96: 95 | B96: Харик Анна / Harik Anna / 1986 | C96: Ж | D96: 225.13
A97: 96 | B97: Лесникович Лиана / Lesnikovich Liana / 1988 | C97: Ж | D97: 222.5
A98: 97 | B98: Пальвинская Валерия / Palvinskaya Valeriya / 1996 | C98: Ж | D98: 221.45
A99: 98 | B99: Зеленцова Галина / Zelentsova Galina / 1988 | C99: Ж | D99: 220.67
A100: 99 | B100: Лисовская Наталья / Lisovskaya Natalya / 1998 | C100: Ж | D100: 219.24
A101: 100 | B101: Василевич Валентина / Vasilevich Valentina / 1998 | C101: Ж | D101: 215.33
A102: 101 | B102: Корожан Наталья / Korozhan Natalya / 1974 | C102: Ж | D102: 212.63
A103: 102 | B103: Литвинка Нина / Litvinka Nina / 1991 | C103: Ж | D103: 210.54
A104: 103 | B104: Малышко Татьяна / Malyshko Tatyana / 1983 | C104: Ж | D104: 206.24
A105: 104 | B105: Пархимович Ирина / Parhimovich Irina / 1988 | C105: Ж | D105: 203.96
A106: 105 | B106: Молочко Анна / Molochko Anna / 2006 | C106: Ж | D106: 203.02
A107: 106 | B107: Тумашик Екатерина / Tumashik Ekaterina / 1984 | C107: Ж | D107: 200.61
A108: 107 | B108: Красовская Инна / Krasovskaya Inna / 1975 | C108: Ж | D108: 200.12
A109: 108 | B109: Вдовиченко Ирина / Vdovichenko Irina / 1989 | C109: Ж | D109: 195.97
A110: 109 | B110: Коновалова Елена / Konovalova Elena / 1975 | C110: Ж | D110: 193.35
A111: 110 | B111: Старовойтова Евгения / Starovojtova Evgeniya / 1996 | C111: Ж | D111: 191.83
A112: 111 | B112: Островцова Марина / Ostrovtsova Marina / 1987 | C112: Ж | D112: 187.61
A113: 112 | B113: Торопова Мария / Toropova Mariya / 1989 | C113: Ж | D113: 186.28
A114: 113 | B114: Павлова Анна / Pavlova Anna / 1992 | C114: Ж | D114: 185.42
A115: 114 | B115: Силивонова Виктория / Silivonova Viktoriya / 1994 | C115: Ж | D115: 185.37
A116: 115 | B116: Ладутько Наталья / Ladutko Natalya / 1974 | C116: Ж | D116: 182.82
A117: 116 | B117: Скабицкая Анна / Skabitskaya Anna / 1987 | C117: Ж | D117: 176.54
A118: 117 | B118: Куликовских Иванна / Kulikovskih Ivanna / 1974 | C118: Ж | D118: 175.1
A119: 118 | B119: Дунаева Мария / Dunaeva Mariya / 1983 | C119: Ж | D119: 171.95
A120: 119 | B120: Федченко Ярослава / Fedchenko Yaroslava / 2002 | C120: Ж | D120: 170.34
A121: 120 | B121: Крипа Светлана / Kripa Svetlana / 1989 | C121: Ж | D121: 167.71
A122: 121 | B122: Селищева Ирина / Selischeva Irina / 1983 | C122: Ж | D122: 167.57
A123: 122 | B123: Рудковская Татьяна / Rudkovskaya Tatyana / 1997 | C123: Ж | D123: 166.88
A124: 123 | B124: Кукареко Екатерина / Kukareko Ekaterina / 1986 | C124: Ж | D124: 166.09
A125: 124 | B125: Кузнецова Наталья / Kuznetsova Natalya / 1984 | C125: Ж | D125: 162.6
A126: 125 | B126: Трубкина Инна / Trubkina Inna / 1972 | C126: Ж | D126: 162.03
A127: 126 | B127: Минич Ольга / Minich Olga / 1989 | C127: Ж | D127: 158.89
A128: 127 | B128: Хинец Анна / Hinets Anna / 1986 | C128: Ж | D128: 150.09
A129: 128 | B129: Стракович Екатерина / Strakovich Ekaterina / 1991 | C129: Ж | D129: 150.06
A130: 129 | B130: Необердина Мария / Neoberdina Mariya / 1987 | C130: Ж | D130: 148.34
A131: 130 | B131: Гладкова Анна / Gladkova Anna / 1985 | C131: Ж | D131: 147.25
A132: 131 | B132: Сильченко Наталья / Silchenko Natalya / | C132: Ж | D132: 145.83
A133: 132 | B133: Войтович Татьяна / Vojtovich Tatyana / 1986 | C133: Ж | D133: 143.29
A134: 133 | B134: Бурак Анжелика / Burak Anzhelika / 1994 | C134: Ж | D134: 141.23
A135: 134 | B135: Лапко Оля / Lapko Olya / 1992 | C135: Ж | D135: 137.02
A136: 135 | B136: Моисеева Вероника / Moiseeva Veronika / 1983 | C136: Ж | D136: 132.4
A137: 136 | B137: Русакова Татьяна / Rusakova Tatyana / 1979 | C137: Ж | D137: 129.79
A138: 137 | B138: Зеленко Диана / Zelenko Diana / 1988 | C138: Ж | D138: 128.9
A139: 138 | B139: Морозова Екатерина / Morozova Ekaterina / 1978 | C139: Ж | D139: 125.07
A140: 139 | B140: Гарбар Екатерина / Garbar Ekaterina / 1989 | C140: Ж | D140: 120.52
A141: 140 | B141: Казак Наталья / Kazak Natalya / 1979 | C141: Ж | D141: 117.95
A142: 141 | B142: Белоцкая Елена / Belotskaya Elena / 1987 | C142: Ж | D142: 116.01
A143: 142 | B143: Левчук Ирина / Levchuk Irina / 1974 | C143: Ж | D143: 114.63
A144: 143 | B144: Фам Вероника / Fam Veronika / 1982 | C144: Ж | D144: 112.57
A145: 144 | B145: Ковалёва Катерина / Kovaljova Katerina / 1987 | C145: Ж | D145: 111.25
A146: 145 | B146: Абаркина Елена / Abarkina Elena / 1983 | C146: Ж | D146: 105.92
A147: 146 | B147: Тимкина Наталья / Timkina Natalya / 1982 | C147: Ж | D147: 100.06
A148: 147 | B148: Якубовская Виктория / Yakubovskaya Viktoriya / 1984 | C148: Ж | D148: 97.1
A149: 148 | B149: Терехова Татьяна / Terehova Tatyana / 1982 | C149: Ж | D149: 92.71
A150: 149 | B150: Когалёнок Елена / Kogaljonok Elena / 1979 | C150: Ж | D150: 90.23
A151: 150 | B151: Забелова Юлия / Zabelova Yuliya / 1978 | C151: Ж | D151: 87.55
A152: 151 | B152: Фамичёва Елена / Famichjova Elena / 1993 | C152: Ж | D152: 85.98
A153: 152 | B153: Нехайчик Мария / Nehajchik Mariya / 1995 | C153: Ж | D153: 83.44
A154: 153 | B154: Петкевич Лилия / Petkevich Liliya / 1990 | C154: Ж | D154: 81.02
A155: 154 | B155: Самусик Елена / Samusik Elena / 1992 | C155: Ж | D155: 79.44
A156: 155 | B156: Шкрабо Ольга / Shkrabo Olga / 1985 | C156: Ж | D156: 77.34
A157: 156 | B157: Жук Лия / Zhuk Liya / 1980 | C157: Ж | D157: 75.04
A158: 157 | B158: Ружицкая Елена / Ruzhitskaya Elena / 1983 | C158: Ж | D158: 74.17
A159: 158 | B159: Гончарик Наталья / Goncharik Natalya / 1991 | C159: Ж | D159: 71.65
A160: 159 | B160: Орлова Татьяна / Orlova Tatyana / 1990 | C160: Ж | D160: 70.62
A161: 160 | B161: Якимчук Надежда / Yakimchuk Nadezhda / 1986 | C161: Ж | D161: 65.83
A162: 161 | B162: Гракович Ольга / Grakovich Olga / 1994 | C162: Ж | D162: 64.9
A163: 162 | B163: Круглова Александра / Kruglova Aleksandra / 1989 | C163: Ж | D163: 64.45
A164: 163 | B164: Иванова Екатерина / Ivanova Ekaterina / 1989 | C164: Ж | D164: 62.54
A165: 164 | B165: Липская Яна / Lipskaya Yana / 2007 | C165: Ж | D165: 61.79
A166: 165 | B166: Зуй Марина / Zuj Marina / 1984 | C166: Ж | D166: 57.32
A167: 166 | B167: Завалова Анастасия / Zavalova Anastasiya / 1994 | C167: Ж | D167: 55.63
A168: 167 | B168: Липская Наталья / Lipskaya Natalya / 1977 | C168: Ж | D168: 52.96
A169: 168 | B169: Прокопенко Анна / Prokopenko Anna / 1980 | C169: Ж | D169: 50.03
A170: 169 | B170: Ковальчук Екатерина / Kovalchuk Ekaterina / 1987 | C170: Ж | D170: 46.35
A171: 170 | B171: Кривальцевич Валентина / Krivaltsevich Valentina / 1984 | C171: Ж | D171: 46.35
A172: 171 | B172: Гарбуз Алла / Garbuz Alla / 1969 | C172: Ж | D172: 46.31
A173: 172 | B173: Будыхина Татьяна / Budyhina Tatyana / 1985 | C173: Ж | D173: 37.52
A174: 173 | B174: Родионова Светлана / Rodionova Svetlana / 1981 | C174: Ж | D174: 35.31
A175: 174 | B175: Федченко Олеся / Fedchenko Olesya / 1977 | C175: Ж | D175: 32.92
A176: 175 | B176: Михайлова Марина / Mihajlova Marina / 1988 | C176: Ж | D176: 27.81
A177: 176 | B177: Ветохина София / Vetohina Sofiya / 2010 | C177: Ж | D177: 26.48
A178: 177 | B178: Лабунская Ирина / Labunskaya Irina / 1983 | C178: Ж | D178: 25.78
A179: 178 | B179: Поволоцкая Кристина / Povolotskaya Kristina / 1990 | C179: Ж | D179: 25.01
A180: 179 | B180: Карабанькова Марина / Karabankova Marina / 1989 | C180: Ж | D180: 23.6
A181: 180 | B181: Клауч Екатерина / Klauch Ekaterina / 1987 | C181: Ж | D181: 12.89
A182: 181 | B182: Дурейко Анна / Durejko Anna / 1987 | C182: Ж | D182: 12.51
